{"text_format":"1","workbook":"xlsx","n_sheets":5,"sheets":["0_Facility_id","1_Survey","2_Dashboard","3_WeightingAssistent","4_DataSlave"],"not_rendered":{"charts":12,"images":0,"macros":1,"external_links":0,"defined_names":147,"comments":2,"pivot_tables":0},"unopened":[],"bounds":{"document_bytes":16777216,"sheet_cells":100000,"rows_first":2000,"rows_last":500,"rows_between":2000,"halvings":0,"cell_chars":16384,"cell_head_chars":4096},"cells_cut":0,"cells_raw":0,"read":"whole","date_system":"1900"}

{"sheet":"0_Facility_id","index":0,"n_rows":17,"n_cols":3,"rows_kept":17,"cut":false,"hidden":false,"merged":[[0,21,0,22]]}
[null,"Security Survey for Health Care Facilities"]
[null,"Facility Identification Sheet"]
[]
[null,null,"Write you answer below as free text"]
[null,"Facility name"]
[null,"Date of the assessment"]
[null,"Assessor name"]
[null,"Location of facility"]
[null,"Region/Province/ District"]
[null,"If ICRC supported, what is the recipient place \n(ask your GIS officer in case of doubt)"]
[null,"Type of facility \n(i.e. Health centre, maternal clinic, national referal hospital,  etc.)"]
[null,"Managing authority (public, private, Government, NGO supported etc.)"]
[null,"Is the facility in urban or rural environment?"]
[null,"Is your facility offering inpatient beds or is outpatient only?"]
[null,"If inpatient how many beds?"]
[null,"Total number of personnel in hospital during an average day"]
[null,"On average for how many hours is your facility opened for per day?"]

{"sheet":"1_Survey","index":1,"n_rows":68,"n_cols":7,"rows_kept":68,"cut":false,"hidden":false,"merged":[[63,1,63,4],[64,1,64,4],[65,1,65,4],[60,1,60,4],[62,1,62,4],[47,1,47,4],[41,1,41,4],[42,1,42,4],[44,1,44,4],[46,1,46,4],[59,1,59,4],[61,1,61,5],[52,1,52,4],[53,1,53,4],[55,1,55,4],[49,1,49,4],[3,11,3,15],[6,1,6,4],[7,1,7,4],[8,1,8,4],[10,1,10,4],[4,1,4,3],[9,11,9,16],[3,1,3,3],[9,1,9,5],[5,1,5,5],[5,6,5,9],[6,6,6,9],[7,6,7,9],[8,6,8,9],[9,6,9,9],[10,6,10,9],[3,6,3,9],[43,11,43,16],[48,11,48,16],[54,11,54,16],[59,11,59,16],[38,11,38,16],[37,1,37,4],[26,1,26,4],[28,1,28,4],[19,1,19,4],[21,1,21,4],[23,1,23,4],[35,1,35,4],[31,1,31,4],[33,1,33,4],[32,1,32,5],[34,1,34,4],[36,1,36,5],[25,1,25,5],[27,1,27,4],[29,1,29,5],[30,1,30,4],[57,1,57,4],[58,1,58,4],[51,1,51,4],[11,11,11,16],[13,11,13,16],[20,11,20,16],[30,11,30,16],[34,11,34,16],[11,1,11,5],[13,1,13,5],[20,1,20,5],[18,1,18,4],[24,1,24,4],[14,1,14,4],[15,1,15,4],[16,1,16,4],[17,1,17,4],[12,1,12,4],[22,1,22,5],[16,6,16,9],[17,6,17,9],[18,6,18,9],[19,6,19,9],[20,6,20,9],[11,6,11,9],[12,6,12,9],[13,6,13,9],[39,1,39,4],[38,1,38,4],[40,1,40,5],[43,1,43,4],[45,1,45,5],[48,1,48,4],[50,1,50,5],[54,1,54,4],[56,1,56,5],[14,6,14,9],[15,6,15,9],[26,6,26,9],[27,6,27,9],[28,6,28,9],[29,6,29,9],[30,6,30,9],[21,6,21,9],[22,6,22,9],[23,6,23,9],[24,6,24,9],[25,6,25,9],[44,6,44,9],[45,6,45,9],[36,6,36,9],[37,6,37,9],[38,6,38,9],[39,6,39,9],[40,6,40,9],[31,6,31,9],[32,6,32,9],[33,6,33,9],[34,6,34,9],[35,6,35,9],[41,6,41,9],[42,6,42,9],[43,6,43,9],[61,6,61,9],[62,6,62,9],[63,6,63,9],[64,6,64,9],[65,6,65,9],[56,6,56,9],[57,6,57,9],[58,6,58,9],[59,6,59,9],[60,6,60,9],[66,1,66,4],[67,1,67,4],[22,11,22,16],[25,11,25,16],[29,11,29,16],[32,11,32,16],[36,11,36,16],[40,11,40,16],[45,11,45,16],[50,11,50,16],[56,11,56,16],[61,11,61,16],[66,6,66,9],[67,6,67,9],[51,6,51,9],[52,6,52,9],[53,6,53,9],[54,6,54,9],[55,6,55,9],[46,6,46,9],[47,6,47,9],[48,6,48,9],[49,6,49,9],[50,6,50,9]]}
[null,"Security Survey for Health Care Facilities"]
[null,"Survey Form"]
[]
[null,"Indicator",null,null,null,"Answer (click on drop down menu)","Observations"]
[]
[null,"Hazards"]
[null,"1.1.1 Heavy weapons \nLikelihood ratings: Zero – No chance of hazard occurring in this situation and nothing reported. Low - Unlikely to happen; no nearby or past events to consider, even if the use of heavy weapons was reported. Average - Proximity of potential military targets and hotspots.  Reported use of heavy weaponry in the nearby area and/or in the past and there is a chance this may happen again. High - Where the use of heavy weaponry is reported in nearby areas or in recent past events and there is a strong likelihood there could be the use of heavy weaponry which could affect the facility. Or, currently in a conflict and the use of heavy weapon is reported.    "]
[null,"1.1.2 Intrusions and attacks \nLikelihood ratings: Zero –No chance of occurring in this situation and nothing reported. Low -Unlikely to happen-no nearby or past events reported or that should be considered. Average - Reported use of small arms in the nearby area and/or in the past and there is a chance of this happening here. High - Where such events have been reported in nearby areas or in recent past events and there is a strong likelihood there could be the use of small weapons again. Or, currently facing this issue."]
[null,"1.1.3 Mass influx of persons\nLikelihood ratings: Zero – No chance of occurring and nothing reported. Low - Unlikely to happen and no nearby or past events reported or that should be considered. Average – Events reported in the past or in nearby areas and current events show this may be something the facility will experience. High - Where such events have been reported in nearby areas or in recent past events and there is a strong likelihood there could be another influx of people into the facility. Or, currently facing this issue."]
[null,"External Exposure "]
[null,"1.2.1. Conditions of External Infrastructure \nLikelihood ratings:  N/A – Not applicable to this situation (the health care facility is completely self-sufficient and does not rely on external infrastructure for daily operations to continue). Low - Basic services (power, water, and others) provided to the facility frequently shut down and their quality is below acceptable standards (I.e. water is not used by local for drinking purpose). Reparations are erratic and not reliable. Average - Basic services are reliable and do not breakdown often but in case of crisis, such response is not so reliable. Quality of some services may be questionable. (I.e. water is not used by locals for drinking purposes). Basic response when services are disrupted. High - The basic provision of services is continuous and of good quality. In case of breakdown reparations are provided in reasonable time and interruption of the service are pre-emptively communicated. "]
[null,"Confidence Evaluation "]
[null,"1.3.1 Confidence in hazard identification\nConfidence ratings: Low - Information is limited in quantity and quality, with very few reliable sources and little or no corroboration. Average - Information is based on a couple of sources, is generally felt to be accurate and there is some corroboration across sources. High - Information is of high quality, obtained from several reliable sources and is generally corroborated or is the current situation. "]
[null,"Safety & Security"]
[null,"2.1.1 Risk Assessment \nPreparedness rating: Zero-No risk assessment and contingency plan. Low - Risk assessment and/or contingency plan developed partially but are not comprehensive. Average - Both assessment and contingency plan developed and personnel have been trained but no resources (financial and human) dedicated for full implementation and no regular updates (not reviewed or maintained). High - Full risk assessment conducted and fed into a comprehensive contingency plan. Personnel trained, resources dedicated for the implementation and regular reviews carried out."]
[null,"2.1.2 Identification of facility\nPreparedness rating: Zero-No signs of identification. Low- Some signs of identification displayed, more signage is acknowledged and required. Average- Some signs of identification displayed and geographic coordinates shared with some parties to a conflict but not all. High- Visible signs of identification displayed and geolocation shared with all parties to a conflict. N/A-Not applicable to this situation (Where there are strong reasons not to identify a healthcare facility, then this indicator is not applicable)."]
[null,"2.1.3 \"No weapons\" policy\nPreparedness rating: Zero-No signs displayed. Low - \"No weapons\" signs displayed. Average -\"No weapons\" signs displayed and staff trained on how to apply this policy and what to do in difficult circumstances. High - \"No weapons\" signs displayed, staff trained and the policy communicated to and explained to all parties to a conflict and other relevant local actors.  N/A-Not applicable to this situation."]
[null,"2.1.4 Perception Review\nPreparedness rating: Zero- No communication. Low – Sporadic dialogue with the local community. No communication with parties to a conflict. Average – Some communication with some parties to a conflict and local community but not all stakeholders. High – Systematic and continuous communication with all parties to a conflict and a local community.  N/A-Not applicable to this situation (Where there are strong reasons not to communicate with parties to a conflict, local authorities or communities or to conduct the perception review, this indicator is not applicable).   "]
[null,"2.1.5 Fire Protection\nPreparedness rating: Zero- no measures in place. Low-There are some fire extinguishers/hydrants, but their maintenance is not systematically monitored and there is no overall fire protection and evacuation plans. No or little contact with firefighters and no drills are performed. Average- Some measures implemented based on a fire protection and evacuation plan. E.g. Fire extinguishers/hydrants and smoke detectors may be installed but they are infrequently maintained. Risk areas are identified. No drills or training for staff. No communication with fire department. High-The facility has appropriate fire control plans and measures in place and staff are trained. There are also fire detection mechanisms in place which are inspected regularly. There are good communication with local firefighters and they are aware of the layout of the health care facility. "]
[null,"2.1.6 Security monitoring\nPreparedness rating: Zero- No monitoring system in place. Low - Some monitoring takes place, but covers a small percentage of the facility.  Average - There is a monitoring process including how to report incidents, in place but lack of resources means they cannot be monitored for the needed times.  High - Systematic monitoring of the facility for the duration that is necessary. Staff have been trained and clear incident reporting procedures are in place. "]
[null,"Media "]
[null,"2.2.1 Media Strategy\nPreparedness rating: Zero- No media strategy exists. Low- Basic media procedures exist but spokesperson has not been nominated and limited contact with media. Average-Media strategy exists, spokesperson has been assigned but no training. High-Media strategy exists, qualified spokesperson assigned and all staff informed of the procedures. Active measures implemented to fully engage stakeholders. N/A-Not applicable to this situation (When engaging with the media is impossible or compromises the security of the facility, this indicator is not applicable.)"]
[null,"Patients and relatives "]
[null,"2.3.1 Accomodating needs of patient's relatives\nPreparedness rating: Zero-There is no consideration for patient’s relatives’. Low-Very limited space for relatives. Staff are not trained to deal with them. Continued incidents of assault (verbal, physical) against health care personnel reported. Average-Limited space exists for relatives; toilets, cleaning area and a possibility to acquire food have been accounted for. Incidents of assault (verbal, physical) against health care personnel have been reported. High-Appropriate space dedicated for relatives including toilets, cleaning area and a possibility to acquire food have been accounted for. Incidents of assault (verbal, physical) against health care personnel reported and staff are trained with how to deal with relatives of patients. N/A-Not applicable to this situation (In a health care facility where no prolonged stay of patients and their relatives is required or possible, this indicator is not applicable.)"]
[null,"2.3.2 Management of patient information\nPreparedness rating: Zero-No procedures to deal with patient’s information and personnel not trained. Low-Limited procedures to deal with patients’ information established but personnel haven’t been trained. Emergency situations have not been addressed. Average - Procedures to deal with patients’ information established (including in emergency situations), personnel have been informed. No backup system in place. High-Comprehensive procedures to deal with patients’ information established, systematic training of personnel and backup system in place. "]
[null,"Staff and equipment"]
[null,"2.4.1 Surge capacity of personnel and equipment \nPreparedness rating: Zero- No plans concerning surge capacity. Low-Limited procedures exist but staff are not informed and lack of resources. Average-Procedures exist and personnel have been trained but there are no adequate resources (HR, equipment) to scale up the capacity during emergencies. High-Procedures exist, personnel have been trained and there is enough staff to meet anticipated needs in an emergency. Records of extra equipment are available and up to date, and special arrangements in terms of logistics are also secured.  "]
[null,"2.4.2 Stocks of medicines and instruments\nPreparedness rating: Zero-No overview of what medicines or quantity are needed or what is currently available in the facility. Low-An overview of currently available medicines exists but there is no procedures to monitor and secure the availability of crucial medicines and medical instruments in times of an emergency. Staff are not informed nor trained. Average-there is a system in place that identifies and monitors the quantity of essential medical items that should always be available. There are assigned and trained persons to identify when there is a fall in stock. Stocks or other supplies will not count for more than 72 hours in an emergency. High-There is a system in place that identifies the crucial items that should always be available. There are trained persons to identify when there is a fall in stock and how to proceed to order more items. A facility counts with a stock of essential medical items that would allow it to operate beyond 72 hours (either by keeping stock of more items or by having identifying reliable suppliers). "]
[null,"2.4.3 Storage of supplies \nPreparedness rating: Zero-Currently no storage capacity. Low-Limited storage capacity available but no measure to secure it. Average-Storage facilities exist to enable availability of essential medical items and other supplies during emergencies and some measures in place to secure them. High- Storage facilities exist to enable availability of essential medical items and other supplies during emergencies and measures in place to secure them against unauthorised entry. The storage facilities are monitored and properly maintained. Personnel trained accordingly. Supplies are strategically placed to ensure that they are accessible to the relevant persons at all times.  N/A-Not applicable to this situation (Where extra storage of supplies is not necessary to maintain the daily operations of the health care facility, or when the health care facility is located within the supply chain, then this indicator is not necessary)"]
[null,"Relocation"]
[null,"2.5.1 Suitability of relocation\nPreparedness rating: Zero-No assessment of the new location is carried out and no plan for potential relocation developed. Low-Limited assessment of a new location conducted but no risk mitigation in place nor a systematic preparation of the relocation. Average-Assessment of the new location carried out and plan for a relocation developed. High-Comprehensive assessment of a new location carried out, including a risk mitigation strategy when moving and the availability of essential infrastructure. Relocation plan developed based on the assessment of which medical services will be prioritised. Logistical arrangements in place.  N/A-Not applicable to this situation (Where a health care facility will never be in a position to relocate within the hazards presented (due to its function, other nearby facilities, etc.) or if the facility can close without help other facilities then this indicator is not applicable)"]
[null,"2.5.2 Evacuation to new place\nPreparedness ratings: Zero-No evacuation procedures in place. Low-plan exists but only as a document.  Average-plan exists, and personnel have been informed but no drills are conducted. There are limited resources to help facilitate the movement. High-Plan exists, personnel have been trained and evacuation drills have been held. Resources to help relocate have been identified and located. N/A-Not applicable to this situation (Where a health care facility will never be in a position to relocate within the hazards presented (due to its function, other nearby facilities etc.) and therefore no need to physically relocate, then this indicator is not applicable)"]
[null,"Access"]
[null,"2.6.1 Access route\nPreparedness rating:Low-there is only one route to and from the health care facility. Average-there are alternative access routes that have been identified. High-there are alternative routes identified and are included in assessments and planning. The quality of such routes have been accounted for. Where appropriate, local authorities have been approached to discuss the use of these routes. "]
[null,"2.6.2. Access of health care personnel and ambulances \nPreparedness rating:  Zero-No specific procedures to facilitate access of health care personnel and medical transport. Low-Procedures for access of staff and medical transport implemented only on an ad hoc basis. Average-Special procedures for access of staff and medical transport in place. High-Special procedures for access of staff in place and separate entrance available. Personnel have been informed and trained. Identification and other necessary measures introduced. N/A-Not applicable to this situation (Where health care facilities do not need specific or alternative routes to the facility (i.e. the facility doesn’t have ambulances etc.) due to the small size and function of the facility, then this indicator is not applicable.)"]
[null,"2.6.3 Secure supplier resources\nPreparedness ratings: Zero-Reliance on an unreliable supplier and no measures in place in mitigate the risks. Low- No special procedures for emergency situation and only one supplier. Average- Reliance on a supplier but alternatives identified and procedures to use those supplies have been drafted. High-Reliance on multiple suppliers and comprehensive emergency plan for continued supply in emergencies set up with relevant actors (e.g. suppliers, relevant authorities, humanitarian organizations etc.). "]
[null,"Managing access and control"]
[null,"3.1.1 Saftey of internal and external lighting system \nPreparedness rating: Zero-There is no lighting. Low - Internal and external lighting systems are in poor condition as they aren’t reliable and there are no protective measures. Average – Lighting is in fair condition as it is normally reliable and provides the light needed; some measures provide partial protection. High – Lighting system is in good condition, reliable and provides adequate lighting. Measures in place to secure it. Sufficient stock of necessary spare parts and back up plans are in place. "]
[null,"3.1.2 Preparedness of perimeter fence \nPreparedness ratings:  Zero - No fence/ perimeter wall. Low - Existing fence/perimeter wall is partially damaged or encompasses only part of a facility, impeding the facility’s daily operations. Average – Existing fence/perimeter encompasses entire compound where needed. The fence is not completely efficient due to partial damage or insufficient height.  High - A good quality perimeter wall or fence exists, and is in a good condition as the material and height are sufficient for its purpose. The fence is regularly maintained and any damages are fixed in a timely manner.  N/A-Not applicable to this situation (where health care facility does not need a perimeter fence because of its location or function, or when the facility is within another facility and the fence is not needed, then this indicator is not relevant.)"]
[null,"3.1.3 Preparedness of gates and entrances \nPreparedness ratings: Zero - No security screening infrastructure at entrances i.e. no barriers. Low - The existing barriers are in poor condition as they do not function properly and therefore limited security screening carried out.  Average – Barriers to entry are in good condition and normally reliable but are not suitable for large influx of people. High – Gates and entrances in good and reliable conditions and maintained regularly. Systematic security screening carried out by trained staff. Emergency procedures and available so that the infrastructure in place can manage massive influx of people during emergencies. N/A-Not applicable to this situation (Where the health care facility does not require specific screening procedures due to its location or otherwise, this indicator is not relevant.)"]
[null,"Structure "]
[null,"3.2.1 Condition of the building\nPreparedness ratings: Zero-No maintenance i.e. multiple holes in the building, dampness and broken parts due to severe weathering. Low - Quite extensive signs of deterioration registered:  cracks on some of the walls, dampness etc. Limited maintenance carried out. Average - Some deterioration caused only by potential weathering. Internally, the building is generally well maintained. Maintenance carried out. High - No deterioration or cracks observed. Exterior has not been affected by weathering and in a good condition internally. Systematic maintenance carried out.  "]
[null,"3.2.2 Structural integrity \nPreparedness ratings: Low -  Poor structural system: cracks on the ground and first floors, construction materials with flaking, cracks larger than 3mm (concrete) excessive deformations (steel and wood). Average - Moderate structural system design. Some damage to building and only partially repaired; presence of cracks between 1 and 3 mm (concrete), moderate and visible deformations (steel and wood) or rust with no flaking. High - Good structural system design. Minor or no damage and building fully repaired if damage exists; cracks less than 1 mm (concrete), no visible deformations, no rust "]
[null,"3.2.3 Material \nPreparedness ratings: Low - Weak construction materials such as wood, bamboo, tarpaulins, tents etc. Average - Buildings constructed with resistant materials such as concrete and masonry. High - Robust construction materials such as masonry and reinforced concrete with fire considerations incorporated in. Roof is strong and thick enough to ensure stray bullets (if known) do not penetrate the roof."]
[null,"3.2.4 Passive security measures\nPreparedness level: Zero- Safe areas not identified. Low – Safe areas identified but are not suitable or adequate for the facility. Average – Safe areas identified and staff are trained. However limited equipment so procedures for how they should be used and when are limited. High – Safe areas identified and fitted into a facility with all the necessary equipment and infrastructure (e.g. ventilation etc.). Staff trained and procedures in place specifying the use of these areas.  N/A-Not applicable to this situation (Where the facility is only one unit and only has space for this and is too small, or such need is irrelevant to the context of the facility, then this indicator is not applicable.)"]
[null,"Layout"]
[null,"3.3.1 Distribution of critical areas\nPreparedness levels: Zero- Critical areas are not identified so no protective measures in place. Low- Critical areas identified but no protective measures in place. Average - Limited measures in place to protect critical areas (e.g. security fencing or locked doors) but scarce or no staff vigilance over these areas. High- Comprehensive measures in place to secure critical areas (e.g. existence of a specific fencing or secured doors to access these areas, existence of monitoring system is in place etc.). These areas are situated in the core or the building, not easily accessible through windows or outside doors."]
[null,"3.3.2 Facility layout: spread vs concentrated \nPreparedness rating: Spread- Services are broken into smaller, single story, separate buildings within the plot. Medium Concentration - Large, low-rise buildings, with a medium density of equipment and users per ground floor area. Concentrated- All the services (healthcare and supportive services) are concentrated in a single (multi story) building. Large scale buildings with a high concentration of equipment and people."]
[null,"3.3.3 Existence of free space \nPreparedness ratings: Zero - No free space available. Low - Space for expansion has not been planned for specifically but potentially some areas could be used for this purpose. Average - Space has been identified and it is enough to allow a significant extension of the activities. High - Space is identified, and it is big enough to accommodate a surface equivalent of the existing number of beds. Overview of what resources and equipment is readily available. Procedures exist and have been tested, personnel have been trained, and equipment, supplies and other resources are available to carry out the expansion of space.  N/A-Not applicable to this situation (Where the health care facility does not require additional  space to continue daily operations in case of an emergency, then this indicator is not applicable.)"]
[null,"3.3.4 Location of Valuable assets\nPreparedness rating: Zero-no considerations given to valuable assets. Low - Not all valuable assets are identified and limited measures in place to protect some of valuable assets. Average - Valuable assets are stored in places where there are some measures to provide partial protection. High - Valuable assets are stored in locked rooms, and in areas within the facility that have higher levels of protection in case of partial destruction of the facility. N/A-Not applicable to this situation (Where the health care facility only consist of one asset or has no valuable asset but the one unit that it is, then this indicator is not relevant.)"]
[null,"Exposure"]
[null,"3.4.1 Opening: Windows\nPreparedness ratings: Zero - Broken or no windows-(e.g. just holes in the wall). Low - Windows in poor condition, the frames are made of weak material and can be easily damaged. There are no protection measures. Average - Windows in fair condition, is working properly and not easily damaged. The material, hinges and security measures of the windows have been considered and some of been implemented for protection reasons. High - Windows in good condition, is not damaged and working properly. The material, hinges and comprehensive security measures for the windows are in place.  Exterior windows are either laminated or have grids (where possible or appropriate). Extra measures in place in critical areas.   "]
[null,"3.4.2 Opening:doors\nPreparedness ratings: Zero -There are no doors (just open space). Low - Doors are in poor condition as they are damaged, made of weak material and do not function properly. Average - Most doors in fair condition; the doors of critical areas or rooms are of good quality material and have good handles/locks. All doors are functioning properly. High - All doors are in good condition, made of good material and security procedures in place to enhance the protection from unauthorised entries. Critical areas are given extra attention and more security measures.  "]
[null,"3.4.3 Exposure of the building\nPreparedness ratings: Zero-all critical areas are exposed to risks. Low - Most façades and windows are completely exposed and facing an open exterior area.  Average - Most façades and windows facing exterior areas are partly covered or protected (by annexed buildings, blinders, etc.). High - Most parts of the facility (especially the critical areas) are not exposed from the exterior or special security measures are in place to protect all openings facing the exterior. (For example low-rise buildings protected by high walls, or existence of inner courtyards where most of the ward windows are facing).  "]
[null,"3.4.4 Standoff distance \nPreparedness ratings: Zero - TThe main walls surrounding a facility are directly exposed onto the outside.  Low - Limited (<10m) distance between the closest building and the perimeter of the facility. Average - There is 30m standoff distance but no or light fence. High - Standoff distance is more than 30m and the perimeter consist of a solid wall (e.g.: masonry or concrete wall).  N/A-Not applicable to this situation (Where the health care facility is located within other facilities, or when the facility is small and there is no need for a standoff distance for the facility in question then this indicator is not relevant.)"]
[null,"3.4.5 Protection of potential hazard area\nPreparedness rating: Zero--No consideration for critical areas. Low –Critical areas are identified and limited protective measures implemented. Average-Critical areas have been identified and protection measures are in place but are limited (due to lack of resources). Monitoring for critical assets in place. High –Critical areas are properly secured. Procedures to deal with emergencies included in the overall contingency plan of a health care facility. N/A-Not applicable to this situation (Where health care facilities consist of only one specific asset, or have no risk areas, then this indicator is not relevant.)"]
[null,"Internal circulation"]
[null,"3.5.1 Safety of movement \nPreparedness ratings:  Zero - Corridors and circulation spaces do not exist but are needed. Low - Corridors are narrow and there are obstacles which makes access and movement difficult. Access into different rooms is hampered for wheelchair access or stretches. Average - Corridors and circulation areas are cleared from physical obstacles.  There are clear and visible signs around and within the health care facility including unauthorised areas. Most areas within a facility do not have more than one route to access. High - Corridors are at least two stretches wide and do not have any physical obstacles hindering the movement. There are clear and visible signs around and within a health care facility, including unauthorised areas.  N/A-Not applicable to this situation (Where there are no corridors or a need for patients or staff to move around the facility, or when the facility is small and just made of a room then this indicator is not relevant)"]
[null,"3.5.2 Safety of stairways \nPreparedness ratings: Zero - Stairs cannot be used due to damage or physical obstacles. Low - Stairs are damaged or prone to damage and no maintenance is conducted. Physical obstacles hamper movement.  Average - All stairways are equipped with railings and the stairways are generally in good condition. They are not inspected or maintained regularly. High - The stairs are not damaged and are wide enough for the needs of the facility. Stairs are fitted with railings. There are no obstacles in the way. Stairs in areas of highly concentrated persons are inspected regularly. N/A-Not applicable to this situation (Where the health care facility does not have stairs, this indicator is not relevant.)"]
[null,"3.5.3 Safety of elevator system\nPreparedness ratings: Zero-Elevators are not functioning. Low - Elevators are damaged and their functioning is unstable. Average - Elevators are functioning and they are maintained regularly. High - Elevators are functioning well. They are maintained regularly and measures are in place to protect from any potential damage. Personnel informed about the limitations of their use during emergencies.  N/A - Not applicable in this situation (Where health care facility does not have elevators, this indicator is not relevant.)"]
[null,"3.5.4 Evacuation route\nPreparedness ratings: Zero- No exit and evacuation routes available. Low - Exit and evacuation routes are not clearly marked and are blocked. Average - Some exit and evacuation routes are marked and most of them are clear of physical obstacles. High-Exit and evacuation routes clearly marked and free from physical obstacles. Personnel are aware of the routes. Drills and training are conducted frequently.  "]
[null,"Self sufficiency"]
[null,"3.6.1 Safety of telecommunication systemy\n Preparedness rating: Zero- No communication system. Low-Communication equipment is in poor condition as it is not reliable and has no protective measures. There are no alternative communication system or it does not work. Average-Communication equipment is in fair condition with limited protective measures. Communication system is generally reliable. Limited back-up system in place but personnel are not trained. High-Communication equipment is in good condition, is regularly maintained and protective measures are in place. A back-up communication system is in place and maintained regularly.  Staff are informed and well-trained. "]
[null,"3.6.2 Safety of water supply\nPreparedness rating: Zero-No water supply. Low-Water infrastructure is in poor state and/or poorly maintained. It may provide storage capacity of less than a day (use 50-80 litre/bed*day as reference). Water quality is less than local average. Average- Current infrastructure is in good condition and regularly maintained. There is storage capacity between 1 and 3 days. Water quality is similar to local standards. High-Current infrastructure is in good condition and regularly maintained.  Water meets recognised standards of quality.  An alternative backup infrastructure is able to provide at least 3 days of water demand, to all critical areas. Plans for rationalization of the consumption exist and the relative infrastructure is in place.  "]
[null,"3.6.3 Safety of electrical equipment\nPreparedness rating: Zero- The existing electrical network is severely deficient. Low-Power supply is not stable. The internal electrical network is in poor conditions and prone to accidents (switchboards in bad state and not protected, cables and main connections exposed). There is no back-up system for power and generator is in poor condition (if generator is available). Average-The overall conditions of the network is acceptable and works well under normal conditions. The main elements are protected (switchboards, connections, transformers, etc.)  Alternative sources are not fully stable but will cover the minimum needs of the critical areas and automatically come on. Generators are in fair condition, protected and occasionally tested. High- Main network elements are well protected (buried cables, locked boxes for switch board, etc.). The network is documented and plans of maintenance exist. Back-up systems exist will be activated automatically in case of emergencies; it is well maintained and will allow the continuity of services  Generators function without any disruptions and are protected and tested frequently. "]
[null,"3.6.4 Safety of medical waste disposal \nPreparedness rating: Zero- There is currently inadequate disposal of medical waste with no backup plan. Low-The current infrastructure is acceptable for current situation but there are no backup plans to dispose of medical waste. Average-The current infrastructure is in good condition. There is a backup plan but resources are limited to implement it and staff are not trained. High-Current infrastructure is in good condition. There is a functioning backup plan to dispose of medical waste and personnel are trained on regular and emergency procedures. "]
[null,"3.6.5 Safety of sewage disposal \nPreparedness rating: Zero-Current wastewater management is not adequately managed for the facility. Low-Current system is in an acceptable condition but no backup plans to dispose of wastewater safely. Average-The current infrastructure is in good condition and is secured. There is no backup plan, but current system can handle an increase in capacity. Personnel are partially trained in case of emergency situation. High-The current infrastructure is in good condition and is secured. There is a backup plan to dispose of wastewater and personnel are trained. The back-up infrastructure is in place and well maintained.  N/A-Not applicable to this situation (Where a health care facility is within another facility that manages sewage disposal, or the facility does not produce wastewater then this indicator is not relevant)."]
[null,"3.6.6. Safety of storage and evacuation of corpses\nPreparedness rating: Zero- Regular process of dead bodies’ disposal does not meet the demands of the facility. Low-Procedures for dealing with mass-casualty incidents does not exist or exists only as a document. Average-A system for mass-casualty incidents are set up but resources are insufficient to ensure it can function adequately. High-Procedures and system for mass-casualty incidents exist and there are sufficient resources to implement it. Personnel have been trained.  N/A-Not applicable to this situation (Where management of corpses are not part of the daily operations of the facility, then this indicator is not relevant."]

{"sheet":"2_Dashboard","index":2,"n_rows":142,"n_cols":52,"rows_kept":142,"cut":false,"hidden":false,"merged":[[0,21,0,22],[13,8,15,8],[7,8,9,8],[7,4,9,4],[10,4,12,4],[13,4,15,4]]}
[null,"Security Survey for Health Care Facilities"]
[null,"Results Dashboard ",null,null,null,null,null,null,null,"Facility:",{"$f":"IF(ISBLANK(id_name),\"\",id_name)","v":""},null,null,null,null,null,null,null,null,null,null,null,null,"version: 161004"]
[]
[]
[]
[]
[]
[null,null,null,null,{"$f":"IF('4_DataSlave'!$AK$51>0.5,'4_DataSlave'!$AK$51,0)","v":{"$error":"#VALUE!"}}]
[]
[]
[null,null,null,null,{"$f":"IF(AND('4_DataSlave'!$AK$51>=0.35,'4_DataSlave'!$AK$51<=0.5),'4_DataSlave'!$AK$51,0)","v":{"$error":"#VALUE!"}}]
[]
[]
[null,null,null,null,{"$f":"IF('4_DataSlave'!$AK$51<0.35,'4_DataSlave'!$AK$51,0)","v":{"$error":"#VALUE!"}}]
[]
[]
[]
[]
[]
[]
[]
[]
[]
[]
[null,null,null,null,null,null,null,null,null,null,null,null,null,null,null,null,null,null,null,null,{"$f":"IF(AND('4_DataSlave'!$V$6=1,SUM('4_DataSlave'!$V$2:$V$4)>=6),\"High\",0)","v":0},{"$f":"IF(AND('4_DataSlave'!$V$6=2,SUM('4_DataSlave'!$V$2:$V$4)>=6),\"High\",0)","v":0},{"$f":"IF(AND('4_DataSlave'!$V$6=3,SUM('4_DataSlave'!$V$2:$V$4)>=6),\"High\",0)","v":0}]
[null,null,null,null,null,null,null,null,null,null,null,null,null,null,null,null,null,null,null,null,{"$f":"IF(AND('4_DataSlave'!$V$6=1,SUM('4_DataSlave'!$V$2:$V$4)<6),IF(SUM('4_DataSlave'!$V$2:$V$4)>=2,\"High\",0),0)","v":0},{"$f":"IF(AND('4_DataSlave'!$V$6=2,SUM('4_DataSlave'!$V$2:$V$4)<6),IF(SUM('4_DataSlave'!$V$2:$V$4)>=2,\"Average\",0),0)","v":0},{"$f":"IF(AND('4_DataSlave'!$V$6=3,SUM('4_DataSlave'!$V$2:$V$4)<6),IF(SUM('4_DataSlave'!$V$2:$V$4)>=2,\"Average\",0),0)","v":0}]
[null,null,null,null,null,null,null,null,null,null,null,null,null,null,null,null,null,null,null,null,{"$f":"IF(AND('4_DataSlave'!$V$6=1,SUM('4_DataSlave'!$V$2:$V$4)<2),\"Low\",0)","v":0},{"$f":"IF(AND('4_DataSlave'!$V$6=2,SUM('4_DataSlave'!$V$2:$V$4)<2),\"Low\",0)","v":0},{"$f":"IF(AND('4_DataSlave'!$V$6=3,SUM('4_DataSlave'!$V$2:$V$4)<2),\"Low\",0)","v":0}]
[]
[]
[]
[]
[]
[null,null,null,null,null,null,null,null,null,null,null,null,null,null,null,null,null,null,null,null,null,null,null,null,null,null,null,null,null,null,null,null,null,null,null,null,null,null,null,null,"Time","Inner",66,33,0,"Outer",null,"Legend",null,"Achievable","actual","Charted"]
[null,null,null,null,null,null,null,null,null,null,null,null,null,null,null,null,null,null,null,null,null,null,null,null,null,null,null,null,null,null,null,null,null,null,null,null,null,null,null,null,{"$f":"'4_DataSlave'!E8","v":"Contingency"},{"$f":"IF($AZ34=1,1,0)","v":0},{"$f":"IF(AND($AZ34<1,$AZ34>=0.65),2,0)","v":0},{"$f":"IF(AND($AZ34<0.65,$AZ34>=0.32),3,0)","v":0},{"$f":"IF(AND($AZ34<0.32,$AZ34>=0),4,0)","v":4},{"$f":"IF($AZ34<0,5,0)","v":0},null,1,null,{"$f":"'4_DataSlave'!AC8","v":{"$error":"#VALUE!"}},{"$f":"'4_DataSlave'!AK8","v":{"$error":"#VALUE!"}},{"$f":"IFERROR(AY34/AX34,0)","v":0}]
[null,null,null,null,null,null,null,null,null,null,null,null,null,null,null,null,null,null,null,null,null,null,null,null,null,null,null,null,null,null,null,null,null,null,null,null,null,null,null,null,{"$f":"'4_DataSlave'!E9","v":"Identification "},0,0,0,{"$f":"IF(AND($AZ35<0.32,$AZ35>=0),4,0)","v":4},0,null,2,null,{"$f":"'4_DataSlave'!AC9","v":{"$error":"#VALUE!"}},{"$f":"'4_DataSlave'!AK9","v":{"$error":"#VALUE!"}},0]
[null,null,null,null,null,null,null,null,null,null,null,null,null,null,null,null,null,null,null,null,null,null,null,null,null,null,null,null,null,null,null,null,null,null,null,null,null,null,null,null,{"$f":"'4_DataSlave'!E10","v":"No_weapons "},0,0,0,4,0,null,3,null,{"$f":"'4_DataSlave'!AC10","v":{"$error":"#VALUE!"}},{"$f":"'4_DataSlave'!AK10","v":{"$error":"#VALUE!"}},0]
[null,null,null,null,null,null,null,null,null,null,null,null,null,null,null,null,null,null,null,null,null,null,null,null,null,null,null,null,null,null,null,null,null,null,null,null,null,null,null,null,{"$f":"'4_DataSlave'!E11","v":"Perception"},0,0,0,4,0,null,4,null,{"$f":"'4_DataSlave'!AC11","v":{"$error":"#VALUE!"}},{"$f":"'4_DataSlave'!AK11","v":{"$error":"#VALUE!"}},0]
[null,null,null,null,null,null,null,null,null,null,null,null,null,null,null,null,null,null,null,null,null,null,null,null,null,null,null,null,null,null,null,null,null,null,null,null,null,null,null,null,{"$f":"'4_DataSlave'!E12","v":"Fire "},0,0,0,4,0,null,5,null,{"$f":"'4_DataSlave'!AC12","v":{"$error":"#VALUE!"}},{"$f":"'4_DataSlave'!AK12","v":{"$error":"#VALUE!"}},0]
[null,null,null,null,null,null,null,null,null,null,null,null,null,null,null,null,null,null,null,null,null,null,null,null,null,null,null,null,null,null,null,null,null,null,null,null,null,null,null,null,{"$f":"'4_DataSlave'!E13","v":"Security "},0,0,0,4,0,null,null,null,{"$f":"'4_DataSlave'!AC13","v":{"$error":"#VALUE!"}},{"$f":"'4_DataSlave'!AK13","v":{"$error":"#VALUE!"}},0]
[null,null,null,null,null,null,null,null,null,null,null,null,null,null,null,null,null,null,null,null,null,null,null,null,null,null,null,null,null,null,null,null,null,null,null,null,null,null,null,null,{"$f":"'4_DataSlave'!E14","v":"Media"},0,0,0,4,0,null,null,null,{"$f":"'4_DataSlave'!AC14","v":{"$error":"#VALUE!"}},{"$f":"'4_DataSlave'!AK14","v":{"$error":"#VALUE!"}},0]
[null,null,null,null,null,null,null,null,null,null,null,null,null,null,null,null,null,null,null,null,null,null,null,null,null,null,null,null,null,null,null,null,null,null,null,null,null,null,null,null,{"$f":"'4_DataSlave'!E15","v":"Relatives"},0,0,0,4,0,null,null,null,{"$f":"'4_DataSlave'!AC15","v":{"$error":"#VALUE!"}},{"$f":"'4_DataSlave'!AK15","v":{"$error":"#VALUE!"}},0]
[null,null,null,null,null,null,null,null,null,null,null,null,null,null,null,null,null,null,null,null,null,null,null,null,null,null,null,null,null,null,null,null,null,null,null,null,null,null,null,null,{"$f":"'4_DataSlave'!E16","v":"Records"},0,0,0,4,0,null,null,null,{"$f":"'4_DataSlave'!AC16","v":{"$error":"#VALUE!"}},{"$f":"'4_DataSlave'!AK16","v":{"$error":"#VALUE!"}},0]
[null,null,null,null,null,null,null,null,null,null,null,null,null,null,null,null,null,null,null,null,null,null,null,null,null,null,null,null,null,null,null,null,null,null,null,null,null,null,null,null,{"$f":"'4_DataSlave'!E17","v":"Surge "},0,0,0,4,0,null,null,null,{"$f":"'4_DataSlave'!AC17","v":{"$error":"#VALUE!"}},{"$f":"'4_DataSlave'!AK17","v":{"$error":"#VALUE!"}},0]
[null,null,null,null,null,null,null,null,null,null,null,null,null,null,null,null,null,null,null,null,null,null,null,null,null,null,null,null,null,null,null,null,null,null,null,null,null,null,null,null,{"$f":"'4_DataSlave'!E18","v":"MedStock"},0,0,0,4,0,null,null,null,{"$f":"'4_DataSlave'!AC18","v":{"$error":"#VALUE!"}},{"$f":"'4_DataSlave'!AK18","v":{"$error":"#VALUE!"}},0]
[null,null,null,null,null,null,null,null,null,null,null,null,null,null,null,null,null,null,null,null,null,null,null,null,null,null,null,null,null,null,null,null,null,null,null,null,null,null,null,null,{"$f":"'4_DataSlave'!E19","v":"Storage "},0,0,0,4,0,null,null,null,{"$f":"'4_DataSlave'!AC19","v":{"$error":"#VALUE!"}},{"$f":"'4_DataSlave'!AK19","v":{"$error":"#VALUE!"}},0]
[null,null,null,null,null,null,null,null,null,null,null,null,null,null,null,null,null,null,null,null,null,null,null,null,null,null,null,null,null,null,null,null,null,null,null,null,null,null,null,null,{"$f":"'4_DataSlave'!E20","v":"Relocation "},0,0,0,4,0,null,null,null,{"$f":"'4_DataSlave'!AC20","v":{"$error":"#VALUE!"}},{"$f":"'4_DataSlave'!AK20","v":{"$error":"#VALUE!"}},0]
[null,null,null,null,null,null,null,null,null,null,null,null,null,null,null,null,null,null,null,null,null,null,null,null,null,null,null,null,null,null,null,null,null,null,null,null,null,null,null,null,{"$f":"'4_DataSlave'!E21","v":"Reloc_Plan"},0,0,0,4,0,null,null,null,{"$f":"'4_DataSlave'!AC21","v":{"$error":"#VALUE!"}},{"$f":"'4_DataSlave'!AK21","v":{"$error":"#VALUE!"}},0]
[null,null,null,null,null,null,null,null,null,null,null,null,null,null,null,null,null,null,null,null,null,null,null,null,null,null,null,null,null,null,null,null,null,null,null,null,null,null,null,null,{"$f":"'4_DataSlave'!E22","v":"Access "},0,0,0,4,0,null,null,null,{"$f":"'4_DataSlave'!AC22","v":{"$error":"#VALUE!"}},{"$f":"'4_DataSlave'!AK22","v":{"$error":"#VALUE!"}},0]
[null,null,null,null,null,null,null,null,null,null,null,null,null,null,null,null,null,null,null,null,null,null,null,null,null,null,null,null,null,null,null,null,null,null,null,null,null,null,null,null,{"$f":"'4_DataSlave'!E23","v":"Ambulances"},0,0,0,4,0,null,null,null,{"$f":"'4_DataSlave'!AC23","v":{"$error":"#VALUE!"}},{"$f":"'4_DataSlave'!AK23","v":{"$error":"#VALUE!"}},0]
[null,null,null,null,null,null,null,null,null,null,null,null,null,null,null,null,null,null,null,null,null,null,null,null,null,null,null,null,null,null,null,null,null,null,null,null,null,null,null,null,{"$f":"'4_DataSlave'!E24","v":"Supplier"},0,0,0,4,0,null,null,null,{"$f":"'4_DataSlave'!AC24","v":{"$error":"#VALUE!"}},{"$f":"'4_DataSlave'!AK24","v":{"$error":"#VALUE!"}},0]
[null,null,null,null,null,null,null,null,null,null,null,null,null,null,null,null,null,null,null,null,null,null,null,null,null,null,null,null,null,null,null,null,null,null,null,null,null,null,null,null,{"$f":"'4_DataSlave'!E25","v":"Lighting "},0,0,0,4,0,null,null,null,{"$f":"'4_DataSlave'!AC25","v":{"$error":"#VALUE!"}},{"$f":"'4_DataSlave'!AK25","v":{"$error":"#VALUE!"}},0]
[null,null,null,null,null,null,null,null,null,null,null,null,null,null,null,null,null,null,null,null,null,null,null,null,null,null,null,null,null,null,null,null,null,null,null,null,null,null,null,null,{"$f":"'4_DataSlave'!E26","v":"Fence "},0,0,0,4,0,null,null,null,{"$f":"'4_DataSlave'!AC26","v":{"$error":"#VALUE!"}},{"$f":"'4_DataSlave'!AK26","v":{"$error":"#VALUE!"}},0]
[null,null,null,null,null,null,null,null,null,null,null,null,null,null,null,null,null,null,null,null,null,null,null,null,null,null,null,null,null,null,null,null,null,null,null,null,null,null,null,null,{"$f":"'4_DataSlave'!E27","v":"Gates"},0,0,0,4,0,null,null,null,{"$f":"'4_DataSlave'!AC27","v":{"$error":"#VALUE!"}},{"$f":"'4_DataSlave'!AK27","v":{"$error":"#VALUE!"}},0]
[null,null,null,null,null,null,null,null,null,null,null,null,null,null,null,null,null,null,null,null,null,null,null,null,null,null,null,null,null,null,null,null,null,null,null,null,null,null,null,null,{"$f":"'4_DataSlave'!E28","v":"Condition"},0,0,0,4,0,null,null,null,{"$f":"'4_DataSlave'!AC28","v":{"$error":"#VALUE!"}},{"$f":"'4_DataSlave'!AK28","v":{"$error":"#VALUE!"}},0]
[null,null,null,null,null,null,null,null,null,null,null,null,null,null,null,null,null,null,null,null,null,null,null,null,null,null,null,null,null,null,null,null,null,null,null,null,null,null,null,null,{"$f":"'4_DataSlave'!E29","v":"Integrity "},0,0,0,4,0,null,null,null,{"$f":"'4_DataSlave'!AC29","v":{"$error":"#VALUE!"}},{"$f":"'4_DataSlave'!AK29","v":{"$error":"#VALUE!"}},0]
[null,null,null,null,null,null,null,null,null,null,null,null,null,null,null,null,null,null,null,null,null,null,null,null,null,null,null,null,null,null,null,null,null,null,null,null,null,null,null,null,{"$f":"'4_DataSlave'!E30","v":"Material"},0,0,0,4,0,null,null,null,{"$f":"'4_DataSlave'!AC30","v":{"$error":"#VALUE!"}},{"$f":"'4_DataSlave'!AK30","v":{"$error":"#VALUE!"}},0]
[null,null,null,null,null,null,null,null,null,null,null,null,null,null,null,null,null,null,null,null,null,null,null,null,null,null,null,null,null,null,null,null,null,null,null,null,null,null,null,null,{"$f":"'4_DataSlave'!E31","v":"Passive_Sec "},0,0,0,4,0,null,null,null,{"$f":"'4_DataSlave'!AC31","v":{"$error":"#VALUE!"}},{"$f":"'4_DataSlave'!AK31","v":{"$error":"#VALUE!"}},0]
[null,null,null,null,null,null,null,null,null,null,null,null,null,null,null,null,null,null,null,null,null,null,null,null,null,null,null,null,null,null,null,null,null,null,null,null,null,null,null,null,{"$f":"'4_DataSlave'!E32","v":"Priority areas "},0,0,0,4,0,null,null,null,{"$f":"'4_DataSlave'!AC32","v":{"$error":"#VALUE!"}},{"$f":"'4_DataSlave'!AK32","v":{"$error":"#VALUE!"}},0]
[null,null,null,null,null,null,null,null,null,null,null,null,null,null,null,null,null,null,null,null,null,null,null,null,null,null,null,null,null,null,null,null,null,null,null,null,null,null,null,null,{"$f":"'4_DataSlave'!E33","v":"Layout "},0,0,0,4,0,null,null,null,{"$f":"'4_DataSlave'!AC33","v":{"$error":"#VALUE!"}},{"$f":"'4_DataSlave'!AK33","v":{"$error":"#VALUE!"}},0]
[null,null,null,null,null,null,null,null,null,null,null,null,null,null,null,null,null,null,null,null,null,null,null,null,null,null,null,null,null,null,null,null,null,null,null,null,null,null,null,null,{"$f":"'4_DataSlave'!E34","v":"Free space "},0,0,0,4,0,null,null,null,{"$f":"'4_DataSlave'!AC34","v":{"$error":"#VALUE!"}},{"$f":"'4_DataSlave'!AK34","v":{"$error":"#VALUE!"}},0]
[null,null,null,null,null,null,null,null,null,null,null,null,null,null,null,null,null,null,null,null,null,null,null,null,null,null,null,null,null,null,null,null,null,null,null,null,null,null,null,null,{"$f":"'4_DataSlave'!E35","v":"Valuable assets "},0,0,0,4,0,null,null,null,{"$f":"'4_DataSlave'!AC35","v":{"$error":"#VALUE!"}},{"$f":"'4_DataSlave'!AK35","v":{"$error":"#VALUE!"}},0]
[null,null,null,null,null,null,null,null,null,null,null,null,null,null,null,null,null,null,null,null,null,null,null,null,null,null,null,null,null,null,null,null,null,null,null,null,null,null,null,null,{"$f":"'4_DataSlave'!E36","v":"Windows"},0,0,0,4,0,null,null,null,{"$f":"'4_DataSlave'!AC36","v":{"$error":"#VALUE!"}},{"$f":"'4_DataSlave'!AK36","v":{"$error":"#VALUE!"}},0]
[null,null,null,null,null,null,null,null,null,null,null,null,null,null,null,null,null,null,null,null,null,null,null,null,null,null,null,null,null,null,null,null,null,null,null,null,null,null,null,null,{"$f":"'4_DataSlave'!E37","v":"Doors"},0,0,0,4,0,null,null,null,{"$f":"'4_DataSlave'!AC37","v":{"$error":"#VALUE!"}},{"$f":"'4_DataSlave'!AK37","v":{"$error":"#VALUE!"}},0]
[null,null,null,null,null,null,null,null,null,null,null,null,null,null,null,null,null,null,null,null,null,null,null,null,null,null,null,null,null,null,null,null,null,null,null,null,null,null,null,null,{"$f":"'4_DataSlave'!E38","v":"Exposure "},0,0,0,4,0,null,null,null,{"$f":"'4_DataSlave'!AC38","v":{"$error":"#VALUE!"}},{"$f":"'4_DataSlave'!AK38","v":{"$error":"#VALUE!"}},0]
[null,null,null,null,null,null,null,null,null,null,null,null,null,null,null,null,null,null,null,null,null,null,null,null,null,null,null,null,null,null,null,null,null,null,null,null,null,null,null,null,{"$f":"'4_DataSlave'!E39","v":"Standoff "},0,0,0,4,0,null,null,null,{"$f":"'4_DataSlave'!AC39","v":{"$error":"#VALUE!"}},{"$f":"'4_DataSlave'!AK39","v":{"$error":"#VALUE!"}},0]
[null,null,null,null,null,null,null,null,null,null,null,null,null,null,null,null,null,null,null,null,null,null,null,null,null,null,null,null,null,null,null,null,null,null,null,null,null,null,null,null,{"$f":"'4_DataSlave'!E40","v":"Int_fence"},0,0,0,4,0,null,null,null,{"$f":"'4_DataSlave'!AC40","v":{"$error":"#VALUE!"}},{"$f":"'4_DataSlave'!AK40","v":{"$error":"#VALUE!"}},0]
[null,null,null,null,null,null,null,null,null,null,null,null,null,null,null,null,null,null,null,null,null,null,null,null,null,null,null,null,null,null,null,null,null,null,null,null,null,null,null,null,{"$f":"'4_DataSlave'!E41","v":"Movement"},0,0,0,4,0,null,null,null,{"$f":"'4_DataSlave'!AC41","v":{"$error":"#VALUE!"}},{"$f":"'4_DataSlave'!AK41","v":{"$error":"#VALUE!"}},0]
[null,null,null,null,null,null,null,null,null,null,null,null,null,null,null,null,null,null,null,null,null,null,null,null,null,null,null,null,null,null,null,null,null,null,null,null,null,null,null,null,{"$f":"'4_DataSlave'!E42","v":"Stairs"},0,0,0,4,0,null,null,null,{"$f":"'4_DataSlave'!AC42","v":{"$error":"#VALUE!"}},{"$f":"'4_DataSlave'!AK42","v":{"$error":"#VALUE!"}},0]
[null,null,null,null,null,null,null,null,null,null,null,null,null,null,null,null,null,null,null,null,null,null,null,null,null,null,null,null,null,null,null,null,null,null,null,null,null,null,null,null,{"$f":"'4_DataSlave'!E43","v":"Elevators"},0,0,0,4,0,null,null,null,{"$f":"'4_DataSlave'!AC43","v":{"$error":"#VALUE!"}},{"$f":"'4_DataSlave'!AK43","v":{"$error":"#VALUE!"}},0]
[null,null,null,null,null,null,null,null,null,null,null,null,null,null,null,null,null,null,null,null,null,null,null,null,null,null,null,null,null,null,null,null,null,null,null,null,null,null,null,null,{"$f":"'4_DataSlave'!E44","v":"Evacuation "},0,0,0,4,0,null,null,null,{"$f":"'4_DataSlave'!AC44","v":{"$error":"#VALUE!"}},{"$f":"'4_DataSlave'!AK44","v":{"$error":"#VALUE!"}},0]
[null,null,null,null,null,null,null,null,null,null,null,null,null,null,null,null,null,null,null,null,null,null,null,null,null,null,null,null,null,null,null,null,null,null,null,null,null,null,null,null,{"$f":"'4_DataSlave'!E45","v":"Telecom "},0,0,0,4,0,null,null,null,{"$f":"'4_DataSlave'!AC45","v":{"$error":"#VALUE!"}},{"$f":"'4_DataSlave'!AK45","v":{"$error":"#VALUE!"}},0]
[null,null,null,null,null,null,null,null,null,null,null,null,null,null,null,null,null,null,null,null,null,null,null,null,null,null,null,null,null,null,null,null,null,null,null,null,null,null,null,null,{"$f":"'4_DataSlave'!E46","v":"Water "},0,0,0,4,0,null,null,null,{"$f":"'4_DataSlave'!AC46","v":{"$error":"#VALUE!"}},{"$f":"'4_DataSlave'!AK46","v":{"$error":"#VALUE!"}},0]
[null,null,null,null,null,null,null,null,null,null,null,null,null,null,null,null,null,null,null,null,null,null,null,null,null,null,null,null,null,null,null,null,null,null,null,null,null,null,null,null,{"$f":"'4_DataSlave'!E47","v":"Electrical  "},0,0,0,4,0,null,null,null,{"$f":"'4_DataSlave'!AC47","v":{"$error":"#VALUE!"}},{"$f":"'4_DataSlave'!AK47","v":{"$error":"#VALUE!"}},0]
[null,null,null,null,null,null,null,null,null,null,null,null,null,null,null,null,null,null,null,null,null,null,null,null,null,null,null,null,null,null,null,null,null,null,null,null,null,null,null,null,{"$f":"'4_DataSlave'!E48","v":"Med_waste"},0,0,0,4,0,null,null,null,{"$f":"'4_DataSlave'!AC48","v":{"$error":"#VALUE!"}},{"$f":"'4_DataSlave'!AK48","v":{"$error":"#VALUE!"}},0]
[null,null,null,null,null,null,null,null,null,null,null,null,null,null,null,null,null,null,null,null,null,null,null,null,null,null,null,null,null,null,null,null,null,null,null,null,null,null,null,null,{"$f":"'4_DataSlave'!E49","v":"Sewage "},0,0,0,4,0,null,null,null,{"$f":"'4_DataSlave'!AC49","v":{"$error":"#VALUE!"}},{"$f":"'4_DataSlave'!AK49","v":{"$error":"#VALUE!"}},0]
[null,null,null,null,null,null,null,null,null,null,null,null,null,null,null,null,null,null,null,null,null,null,null,null,null,null,null,null,null,null,null,null,null,null,null,null,null,null,null,null,{"$f":"'4_DataSlave'!E50","v":"Dead"},0,0,0,4,0,null,null,null,{"$f":"'4_DataSlave'!AC50","v":{"$error":"#VALUE!"}},{"$f":"'4_DataSlave'!AK50","v":{"$error":"#VALUE!"}},0]
[]
[]
[]
[]
[]
[]
[]
[]
[]
[]
[]
[]
[]
[]
[]
[]
[]
[]
[]
[]
[]
[]
[null,null,null,null,null,null,null,null,null,null,null,null,null,null,null,null,null,null,null,null,null,null,null,null,null,null,null,null,null,null,null,null,null,null,null,null,null,null,null,null,"Time","Inner",66,33,0,"Outer"]
[null,null,null,null,null,null,null,null,null,null,null,null,null,null,null,null,null,null,null,null,null,null,null,null,null,null,null,null,null,null,null,null,null,null,null,null,null,null,null,null,{"$f":"AO34","v":"Contingency"},1,1,1,1,1]
[null,null,null,null,null,null,null,null,null,null,null,null,null,null,null,null,null,null,null,null,null,null,null,null,null,null,null,null,null,null,null,null,null,null,null,null,null,null,null,null,"Identification ",1,1,1,1,1]
[null,null,null,null,null,null,null,null,null,null,null,null,null,null,null,null,null,null,null,null,null,null,null,null,null,null,null,null,null,null,null,null,null,null,null,null,null,null,null,null,"No_weapons ",1,1,1,1,1]
[null,null,null,null,null,null,null,null,null,null,null,null,null,null,null,null,null,null,null,null,null,null,null,null,null,null,null,null,null,null,null,null,null,null,null,null,null,null,null,null,"Perception",1,1,1,1,1]
[null,null,null,null,null,null,null,null,null,null,null,null,null,null,null,null,null,null,null,null,null,null,null,null,null,null,null,null,null,null,null,null,null,null,null,null,null,null,null,null,"Fire ",1,1,1,1,1]
[null,null,null,null,null,null,null,null,null,null,null,null,null,null,null,null,null,null,null,null,null,null,null,null,null,null,null,null,null,null,null,null,null,null,null,null,null,null,null,null,"Security ",1,1,1,1,1]
[null,null,null,null,null,null,null,null,null,null,null,null,null,null,null,null,null,null,null,null,null,null,null,null,null,null,null,null,null,null,null,null,null,null,null,null,null,null,null,null,"Media",1,1,1,1,1]
[null,null,null,null,null,null,null,null,null,null,null,null,null,null,null,null,null,null,null,null,null,null,null,null,null,null,null,null,null,null,null,null,null,null,null,null,null,null,null,null,"Relatives",1,1,1,1,1]
[null,null,null,null,null,null,null,null,null,null,null,null,null,null,null,null,null,null,null,null,null,null,null,null,null,null,null,null,null,null,null,null,null,null,null,null,null,null,null,null,"Records",1,1,1,1,1]
[null,null,null,null,null,null,null,null,null,null,null,null,null,null,null,null,null,null,null,null,null,null,null,null,null,null,null,null,null,null,null,null,null,null,null,null,null,null,null,null,"Surge ",1,1,1,1,1]
[null,null,null,null,null,null,null,null,null,null,null,null,null,null,null,null,null,null,null,null,null,null,null,null,null,null,null,null,null,null,null,null,null,null,null,null,null,null,null,null,"MedStock",1,1,1,1,1]
[null,null,null,null,null,null,null,null,null,null,null,null,null,null,null,null,null,null,null,null,null,null,null,null,null,null,null,null,null,null,null,null,null,null,null,null,null,null,null,null,"Storage ",1,1,1,1,1]
[null,null,null,null,null,null,null,null,null,null,null,null,null,null,null,null,null,null,null,null,null,null,null,null,null,null,null,null,null,null,null,null,null,null,null,null,null,null,null,null,"Relocation ",1,1,1,1,1]
[null,null,null,null,null,null,null,null,null,null,null,null,null,null,null,null,null,null,null,null,null,null,null,null,null,null,null,null,null,null,null,null,null,null,null,null,null,null,null,null,"Reloc_Plan",1,1,1,1,1]
[null,null,null,null,null,null,null,null,null,null,null,null,null,null,null,null,null,null,null,null,null,null,null,null,null,null,null,null,null,null,null,null,null,null,null,null,null,null,null,null,"Access ",1,1,1,1,1]
[null,null,null,null,null,null,null,null,null,null,null,null,null,null,null,null,null,null,null,null,null,null,null,null,null,null,null,null,null,null,null,null,null,null,null,null,null,null,null,null,"Ambulances",1,1,1,1,1]
[null,null,null,null,null,null,null,null,null,null,null,null,null,null,null,null,null,null,null,null,null,null,null,null,null,null,null,null,null,null,null,null,null,null,null,null,null,null,null,null,"Supplier",1,1,1,1,1]
[null,null,null,null,null,null,null,null,null,null,null,null,null,null,null,null,null,null,null,null,null,null,null,null,null,null,null,null,null,null,null,null,null,null,null,null,null,null,null,null,"Lighting ",1,1,1,1,1]
[null,null,null,null,null,null,null,null,null,null,null,null,null,null,null,null,null,null,null,null,null,null,null,null,null,null,null,null,null,null,null,null,null,null,null,null,null,null,null,null,"Fence ",1,1,1,1,1]
[null,null,null,null,null,null,null,null,null,null,null,null,null,null,null,null,null,null,null,null,null,null,null,null,null,null,null,null,null,null,null,null,null,null,null,null,null,null,null,null,"Gates",1,1,1,1,1]
[null,null,null,null,null,null,null,null,null,null,null,null,null,null,null,null,null,null,null,null,null,null,null,null,null,null,null,null,null,null,null,null,null,null,null,null,null,null,null,null,"Condition",1,1,1,1,1]
[null,null,null,null,null,null,null,null,null,null,null,null,null,null,null,null,null,null,null,null,null,null,null,null,null,null,null,null,null,null,null,null,null,null,null,null,null,null,null,null,"Integrity ",1,1,1,1,1]
[null,null,null,null,null,null,null,null,null,null,null,null,null,null,null,null,null,null,null,null,null,null,null,null,null,null,null,null,null,null,null,null,null,null,null,null,null,null,null,null,"Material",1,1,1,1,1]
[null,null,null,null,null,null,null,null,null,null,null,null,null,null,null,null,null,null,null,null,null,null,null,null,null,null,null,null,null,null,null,null,null,null,null,null,null,null,null,null,"Passive_Sec ",1,1,1,1,1]
[null,null,null,null,null,null,null,null,null,null,null,null,null,null,null,null,null,null,null,null,null,null,null,null,null,null,null,null,null,null,null,null,null,null,null,null,null,null,null,null,"Priority areas ",1,1,1,1,1]
[null,null,null,null,null,null,null,null,null,null,null,null,null,null,null,null,null,null,null,null,null,null,null,null,null,null,null,null,null,null,null,null,null,null,null,null,null,null,null,null,"Layout ",1,1,1,1,1]
[null,null,null,null,null,null,null,null,null,null,null,null,null,null,null,null,null,null,null,null,null,null,null,null,null,null,null,null,null,null,null,null,null,null,null,null,null,null,null,null,"Free space ",1,1,1,1,1]
[null,null,null,null,null,null,null,null,null,null,null,null,null,null,null,null,null,null,null,null,null,null,null,null,null,null,null,null,null,null,null,null,null,null,null,null,null,null,null,null,"Valuable assets ",1,1,1,1,1]
[null,null,null,null,null,null,null,null,null,null,null,null,null,null,null,null,null,null,null,null,null,null,null,null,null,null,null,null,null,null,null,null,null,null,null,null,null,null,null,null,"Windows",1,1,1,1,1]
[null,null,null,null,null,null,null,null,null,null,null,null,null,null,null,null,null,null,null,null,null,null,null,null,null,null,null,null,null,null,null,null,null,null,null,null,null,null,null,null,"Doors",1,1,1,1,1]
[null,null,null,null,null,null,null,null,null,null,null,null,null,null,null,null,null,null,null,null,null,null,null,null,null,null,null,null,null,null,null,null,null,null,null,null,null,null,null,null,"Exposure ",1,1,1,1,1]
[null,null,null,null,null,null,null,null,null,null,null,null,null,null,null,null,null,null,null,null,null,null,null,null,null,null,null,null,null,null,null,null,null,null,null,null,null,null,null,null,"Standoff ",1,1,1,1,1]
[null,null,null,null,null,null,null,null,null,null,null,null,null,null,null,null,null,null,null,null,null,null,null,null,null,null,null,null,null,null,null,null,null,null,null,null,null,null,null,null,"Int_fence",1,1,1,1,1]
[null,null,null,null,null,null,null,null,null,null,null,null,null,null,null,null,null,null,null,null,null,null,null,null,null,null,null,null,null,null,null,null,null,null,null,null,null,null,null,null,"Movement",1,1,1,1,1]
[null,null,null,null,null,null,null,null,null,null,null,null,null,null,null,null,null,null,null,null,null,null,null,null,null,null,null,null,null,null,null,null,null,null,null,null,null,null,null,null,"Stairs",1,1,1,1,1]
[null,null,null,null,null,null,null,null,null,null,null,null,null,null,null,null,null,null,null,null,null,null,null,null,null,null,null,null,null,null,null,null,null,null,null,null,null,null,null,null,"Elevators",1,1,1,1,1]
[null,null,null,null,null,null,null,null,null,null,null,null,null,null,null,null,null,null,null,null,null,null,null,null,null,null,null,null,null,null,null,null,null,null,null,null,null,null,null,null,"Evacuation ",1,1,1,1,1]
[null,null,null,null,null,null,null,null,null,null,null,null,null,null,null,null,null,null,null,null,null,null,null,null,null,null,null,null,null,null,null,null,null,null,null,null,null,null,null,null,"Telecom ",1,1,1,1,1]
[null,null,null,null,null,null,null,null,null,null,null,null,null,null,null,null,null,null,null,null,null,null,null,null,null,null,null,null,null,null,null,null,null,null,null,null,null,null,null,null,"Water ",1,1,1,1,1]
[null,null,null,null,null,null,null,null,null,null,null,null,null,null,null,null,null,null,null,null,null,null,null,null,null,null,null,null,null,null,null,null,null,null,null,null,null,null,null,null,"Electrical  ",1,1,1,1,1]
[null,null,null,null,null,null,null,null,null,null,null,null,null,null,null,null,null,null,null,null,null,null,null,null,null,null,null,null,null,null,null,null,null,null,null,null,null,null,null,null,"Med_waste",1,1,1,1,1]
[null,null,null,null,null,null,null,null,null,null,null,null,null,null,null,null,null,null,null,null,null,null,null,null,null,null,null,null,null,null,null,null,null,null,null,null,null,null,null,null,"Sewage ",1,1,1,1,1]
[null,null,null,null,null,null,null,null,null,null,null,null,null,null,null,null,null,null,null,null,null,null,null,null,null,null,null,null,null,null,null,null,null,null,null,null,null,null,null,null,"Dead",1,1,1,1,1]

{"sheet":"3_WeightingAssistent","index":3,"n_rows":50,"n_cols":49,"rows_kept":50,"cut":false,"hidden":true,"merged":[[0,86,2,86],[5,5,10,5],[5,19,10,19],[5,27,10,27],[5,25,10,25],[5,31,10,31],[5,29,10,29],[5,7,10,7],[5,9,10,9],[5,11,10,11],[5,13,10,13],[5,17,10,17],[5,15,10,15],[5,23,10,23],[5,21,10,21],[0,80,2,80],[0,74,2,74],[0,71,2,73],[0,77,2,79],[5,1,21,1],[22,1,47,1],[5,3,21,3],[22,3,47,3],[19,13,21,13],[22,11,47,11],[22,13,47,13],[1,15,1,17],[11,15,16,15],[11,17,16,17],[17,15,18,15],[17,17,18,17],[19,15,21,15],[19,17,21,17],[22,15,47,15],[22,17,47,17],[1,11,1,13],[11,11,16,11],[11,13,16,13],[11,5,16,5],[22,9,47,9],[22,7,47,7],[22,5,47,5],[1,7,1,9],[17,19,18,19],[19,19,21,19],[19,5,21,5],[17,5,18,5],[17,7,18,7],[17,9,18,9],[19,7,21,7],[19,9,21,9],[12,19,13,19],[14,19,16,19],[11,7,16,7],[11,9,16,9],[17,11,18,11],[17,13,18,13],[19,11,21,11],[42,29,47,29],[42,31,47,31],[29,31,32,31],[33,29,37,29],[33,31,37,31],[38,29,41,29],[38,31,41,31],[33,25,37,25],[33,27,37,27],[38,25,41,25],[38,27,41,27],[42,25,47,25],[42,27,47,27],[42,23,47,23],[42,21,47,21],[33,23,37,23],[33,21,37,21],[38,23,41,23],[38,21,41,21],[33,19,37,19],[38,19,41,19],[42,19,47,19],[29,19,32,19],[29,21,32,21],[29,25,32,25],[29,29,32,29],[29,23,32,23],[29,27,32,27],[25,19,28,19],[22,21,24,21],[22,23,24,23],[25,21,28,21],[25,23,28,23],[22,19,24,19],[22,25,24,25],[22,27,24,27],[25,25,28,25],[25,27,28,27],[22,29,24,29],[22,31,24,31],[25,29,28,29],[25,31,28,31],[19,27,21,27],[12,29,13,29],[12,31,13,31],[14,29,16,29],[14,31,16,31],[17,29,18,29],[17,31,18,31],[19,29,21,29],[19,31,21,31],[12,27,13,27],[14,27,16,27],[17,27,18,27],[17,21,18,21],[19,21,21,21],[17,23,18,23],[19,23,21,23],[12,23,13,23],[12,21,13,21],[14,23,16,23],[14,21,16,21],[19,25,21,25],[12,25,13,25],[14,25,16,25],[17,25,18,25]]}
[]
[null,"DOMAIN",null,null,null,"IMPERATIVE",null,null,null,null,null,null,null,null,null,"Sceanrio 3",null,null,null,"CATEGORY",null,null,null,"Scenario 1",null,null,null,"Scenario 2",null,null,null,"Scenario 3",null,"Item",null,"Scenario 1",null,null,null,null,"Scenario 2",null,null,null,null,null,null,null,"Scenario 3"]
[null,"Name",null,"Score",null,"Name",null,"Scoring  ",null,"Score",null,"Scoring  ",null,"Weight",null,"Scoring  ",null,"Weight",null,"Name",null,"Scoring  ",null,"Score",null,"Scoring  ",null,"Weight",null,"Scoring  ",null,"Weight",null,"Name","Code ","Direct","Scoring",null,"Score",null,"Direct","Scoring",null,null,null,"Direction",null,null,"Weight"]
[null,null,null,null,null,null,null,null,null,null,null,null,null,null,null,null,null,null,null,null,null,null,null,null,null,null,null,null,null,null,null,null,null,null,null,null,null,null,null,null,null,null,null,null,null,null,"Scoring"]
[null,null,null,null,null,null,null,null,null,1,null,null,null,1,null,null,null,1,null,null,null,null,null,{"$f":"MAX($J$6:$J$48)","v":0.7},null,null,null,{"$f":"MAX($J$6:$J$48)","v":0.7},null,null,null,{"$f":"MAX($J$6:$J$48)","v":0.7},null,null,null,null,null,null,0.2,null,null,null,null,0.2,null,null,null,null,0.2]
[null,"MANAGEMENT",null,0.3,null,"PROCESS/PREPARDNESS ",null,5,null,{"$f":"$D$6*H$6/SUM(H$6:H$22)","v":0.125},null,10,null,{"$f":"$D$6*L$6/SUM(L$6:L$22)","v":0.25},null,5,null,{"$f":"$D$6*P$6/SUM(P$6:P$22)","v":0.15},null,"Safety and security framework ",null,1,null,{"$f":"J$6*V6/SUM(V$6)","v":0.125},null,1,null,{"$f":"N$6*Z6/SUM(Z$6)","v":0.25},null,1,null,{"$f":"R$6*AD6/SUM(AD$6)","v":0.15},null,{"$f":"'4_DataSlave'!D8","v":"Risk assessment & Contingency planning"},{"$f":"'4_DataSlave'!E8","v":"Contingency"},"+",11,null,{"$f":"X$6*AK6/SUM(AK$6:AK$11)","v":5.2884615384615384E-2},null,"+",5,null,{"$f":"AB$6*AP6/SUM(AP$6:AP$11)","v":5.2083333333333336E-2},null,"+",10,null,{"$f":"AF$6*AU6/SUM(AU$6:AU$11)","v":5.1724137931034482E-2}]
[null,null,null,null,null,null,null,null,null,null,null,null,null,null,null,null,null,null,null,null,null,null,null,null,null,null,null,null,null,null,null,null,null,{"$f":"'4_DataSlave'!D9","v":"Identification "},{"$f":"'4_DataSlave'!E9","v":"Identification "},"+",3,null,1.4423076923076924E-2,null,"+",2,null,2.0833333333333332E-2,null,"+",1,null,5.1724137931034482E-3]
[null,null,null,null,null,null,null,null,null,null,null,null,null,null,null,null,null,null,null,null,null,null,null,null,null,null,null,null,null,null,null,null,null,{"$f":"'4_DataSlave'!D10","v":"\"No weapons\" policy"},{"$f":"'4_DataSlave'!E10","v":"No_weapons "},"+",0,null,0,null,"+",1,null,1.0416666666666666E-2,null,"+",2,null,1.0344827586206896E-2]
[null,null,null,null,null,null,null,null,null,null,null,null,null,null,null,null,null,null,null,null,null,null,null,null,null,null,null,null,null,null,null,null,null,{"$f":"'4_DataSlave'!D11","v":"Perception review"},{"$f":"'4_DataSlave'!E11","v":"Perception"},"+",1,null,4.807692307692308E-3,null,"+",1,null,1.0416666666666666E-2,null,"+",2,null,1.0344827586206896E-2]
[null,null,null,null,null,null,null,null,null,null,null,null,null,null,null,null,null,null,null,null,null,null,null,null,null,null,null,null,null,null,null,null,null,{"$f":"'4_DataSlave'!D12","v":"Fire protection system  "},{"$f":"'4_DataSlave'!E12","v":"Fire "},"+",10,null,4.807692307692308E-2,null,"+",5,null,5.2083333333333336E-2,null,"+",10,null,5.1724137931034482E-2]
[null,null,null,null,null,null,null,null,null,null,null,null,null,null,null,null,null,null,null,null,null,null,null,null,null,null,null,null,null,null,null,null,null,{"$f":"'4_DataSlave'!D13","v":"Monitoring of a HC facility HR guards"},{"$f":"'4_DataSlave'!E13","v":"Security "},"+",1,null,4.807692307692308E-3,null,"+",10,null,0.10416666666666667,null,"+",4,null,2.0689655172413793E-2]
[null,null,null,null,null,"PEOPLE",null,4,null,{"$f":"$D$6*H$12/SUM(H$6:H$22)","v":9.9999999999999992E-2},null,1,null,{"$f":"$D$6*L$12/SUM(L$6:L$22)","v":2.4999999999999998E-2},null,4,null,{"$f":"$D$6*P$12/SUM(P$6:P$22)","v":0.12},null,"Media",null,0.5,null,{"$f":"J$12*V12/SUM(V$12:V$17)","v":7.6923076923076919E-3},null,0.5,null,{"$f":"N$12*Z12/SUM(Z$12:Z$17)","v":4.9999999999999992E-3},null,0.5,null,{"$f":"R$12*AD12/SUM(AD$12:AD$17)","v":6.3157894736842104E-3},null,{"$f":"'4_DataSlave'!D14","v":"Media strategy"},{"$f":"'4_DataSlave'!E14","v":"Media"},"+",1,null,{"$f":"$X$12*AK12/SUM($AK$12)","v":7.6923076923076919E-3},null,"+",1,null,{"$f":"$AB$12*AP12/SUM($AP$12)","v":4.9999999999999992E-3},null,"+",1,null,{"$f":"$AF$12*AU12/SUM($AU$12)","v":6.3157894736842104E-3}]
[null,null,null,null,null,null,null,null,null,null,null,null,null,null,null,null,null,null,null,"Patients and relatives",null,2,null,{"$f":"J$12*V13/SUM(V$12:V$17)","v":3.0769230769230767E-2},null,1,null,{"$f":"N$12*Z13/SUM(Z$12:Z$17)","v":9.9999999999999985E-3},null,3,null,{"$f":"R$12*AD13/SUM(AD$12:AD$17)","v":3.7894736842105259E-2},null,{"$f":"'4_DataSlave'!D15","v":"Accomodating needs of patients' relatives\n"},{"$f":"'4_DataSlave'!E15","v":"Relatives"},"+",1,null,{"$f":"$X$13*AK13/SUM($AK$13:$AK$14)","v":1.5384615384615384E-2},null,"+",1,null,{"$f":"$AB$13*AP13/SUM($AP$13:$AP$14)","v":4.9999999999999992E-3},null,"+",1,null,{"$f":"$AF$13*AU13/SUM($AU$13:$AU$14)","v":1.8947368421052629E-2}]
[null,null,null,null,null,null,null,null,null,null,null,null,null,null,null,null,null,null,null,null,null,null,null,null,null,null,null,null,null,null,null,null,null,{"$f":"'4_DataSlave'!D16","v":"Protection of patients medical records"},{"$f":"'4_DataSlave'!E16","v":"Records"},"+",1,null,{"$f":"$X$13*AK14/SUM($AK$13:$AK$14)","v":1.5384615384615384E-2},null,"+",1,null,{"$f":"$AB$13*AP14/SUM($AP$13:$AP$14)","v":4.9999999999999992E-3},null,"+",1,null,{"$f":"$AF$13*AU14/SUM($AU$13:$AU$14)","v":1.8947368421052629E-2}]
[null,null,null,null,null,null,null,null,null,null,null,null,null,null,null,null,null,null,null,"Staff & Equipments",null,4,null,{"$f":"J$12*V15/SUM(V$12:V$17)","v":6.1538461538461535E-2},null,1,null,{"$f":"N$12*Z15/SUM(Z$12:Z$17)","v":9.9999999999999985E-3},null,6,null,{"$f":"R$12*AD15/SUM(AD$12:AD$17)","v":7.5789473684210518E-2},null,{"$f":"'4_DataSlave'!D17","v":"Surge capacity"},{"$f":"'4_DataSlave'!E17","v":"Surge "},"+",1,null,{"$f":"$X$15*AK15/SUM($AK$15:$AK$17)","v":2.0512820512820513E-2},null,"-",1,null,{"$f":"$AB$15*AP15/SUM($AP$15:$AP$17)","v":3.3333333333333327E-3},null,"+",5,null,{"$f":"$AF$15*AU15/SUM($AU$15:$AU$17)","v":3.4449760765550237E-2}]
[null,null,null,null,null,null,null,null,null,null,null,null,null,null,null,null,null,null,null,null,null,null,null,null,null,null,null,null,null,null,null,null,null,{"$f":"'4_DataSlave'!D18","v":"Stock of medicines, instruments and other items  "},{"$f":"'4_DataSlave'!E18","v":"MedStock"},"+",1,null,{"$f":"$X$15*AK16/SUM($AK$15:$AK$17)","v":2.0512820512820513E-2},null,"-",1,null,{"$f":"$AB$15*AP16/SUM($AP$15:$AP$17)","v":3.3333333333333327E-3},null,"+",3,null,{"$f":"$AF$15*AU16/SUM($AU$15:$AU$17)","v":2.066985645933014E-2}]
[null,null,null,null,null,null,null,null,null,null,null,null,null,null,null,null,null,null,null,null,null,null,null,null,null,null,null,null,null,null,null,null,null,{"$f":"'4_DataSlave'!D19","v":"Storage of supplies"},{"$f":"'4_DataSlave'!E19","v":"Storage "},"+",1,null,{"$f":"$X$15*AK17/SUM($AK$15:$AK$17)","v":2.0512820512820513E-2},null,"-",1,null,{"$f":"$AB$15*AP17/SUM($AP$15:$AP$17)","v":3.3333333333333327E-3},null,"+",3,null,{"$f":"$AF$15*AU17/SUM($AU$15:$AU$17)","v":2.066985645933014E-2}]
[null,null,null,null,null,"RELOCATION",null,1,null,{"$f":"$D$6*H$18/SUM(H$6:H$22)","v":2.4999999999999998E-2},null,0,null,{"$f":"$D$6*L$18/SUM(L$6:L$22)","v":0},null,0,null,{"$f":"$D$6*P$18/SUM(P$6:P$22)","v":0},null,"Re-Location",null,1,null,{"$f":"J$18*V18/SUM(V$18)","v":2.4999999999999998E-2},null,0,null,{"$f":"IFERROR(N$18*Z18/SUM(Z$18),0)","v":0},null,1,null,{"$f":"R$18*AD18/SUM(AD$18)","v":0},null,{"$f":"'4_DataSlave'!D20","v":"Suitability of new location "},{"$f":"'4_DataSlave'!E20","v":"Relocation "},"+",2,null,{"$f":"$X$18*AK18/SUM($AK$18:$AK$19)","v":9.9999999999999985E-3},null,"+",0,null,{"$f":"IFERROR($AB$18*AP18/SUM($AP$18:$AP$19),0)","v":0},null,"+",1,null,{"$f":"$AF$18*AU18/SUM($AU$18:$AU$19)","v":0}]
[null,null,null,null,null,null,null,null,null,null,null,null,null,null,null,null,null,null,null,null,null,null,null,null,null,null,null,null,null,null,null,null,null,{"$f":"'4_DataSlave'!D21","v":"Evacuation"},{"$f":"'4_DataSlave'!E21","v":"Reloc_Plan"},"+",3,null,{"$f":"$X$18*AK19/SUM($AK$18:$AK$19)","v":1.4999999999999999E-2},null,"+",0,null,{"$f":"IFERROR($AB$18*AP19/SUM($AP$18:$AP$19),0)","v":0},null,"+",1,null,{"$f":"$AF$18*AU19/SUM($AU$18:$AU$19)","v":0}]
[null,null,null,null,null,"ACCESS",null,2,null,{"$f":"$D$6*H$20/SUM(H$6:H$22)","v":4.9999999999999996E-2},null,1,null,{"$f":"$D$6*L$20/SUM(L$6:L$22)","v":2.4999999999999998E-2},null,1,null,{"$f":"$D$6*P$20/SUM(P$6:P$22)","v":0.03},null,"Access External",null,2,null,{"$f":"J$20*V20/SUM(V$20)","v":4.9999999999999996E-2},null,1,null,{"$f":"N$20*Z20/SUM(Z$20)","v":2.4999999999999998E-2},null,1,null,{"$f":"R$20*AD20/SUM(AD$20)","v":0.03},null,{"$f":"'4_DataSlave'!D22","v":"Access routes"},{"$f":"'4_DataSlave'!E22","v":"Access "},"+",1,null,{"$f":"$X$20*AK20/SUM($AK$20:$AK$22)","v":1.6666666666666666E-2},null,"+",1,null,{"$f":"IFERROR($AB$20*AP20/SUM(AP$20:AP$22),0)","v":2.4999999999999998E-2},null,"+",3,null,{"$f":"$AF$20*AU20/SUM($AU$20:$AU$22)","v":1.4999999999999999E-2}]
[null,null,null,null,null,null,null,null,null,null,null,null,null,null,null,null,null,null,null,null,null,null,null,null,null,null,null,null,null,null,null,null,null,{"$f":"'4_DataSlave'!D23","v":"Access of HC personnel and ambulances"},{"$f":"'4_DataSlave'!E23","v":"Ambulances"},"+",1,null,{"$f":"$X$20*AK21/SUM($AK$20:$AK$22)","v":1.6666666666666666E-2},null,"+",0,null,{"$f":"IFERROR($AB$20*AP21/SUM(AP$20:AP$22),0)","v":0},null,"+",2,null,{"$f":"$AF$20*AU21/SUM($AU$20:$AU$22)","v":0.01}]
[null,null,null,null,null,null,null,null,null,null,null,null,null,null,null,null,null,null,null,null,null,null,null,null,null,null,null,null,null,null,null,null,null,{"$f":"'4_DataSlave'!D24","v":"Secure supplier resources "},{"$f":"'4_DataSlave'!E24","v":"Supplier"},"+",1,null,{"$f":"$X$20*AK22/SUM($AK$20:$AK$22)","v":1.6666666666666666E-2},null,"+",0,null,{"$f":"IFERROR($AB$20*AP22/SUM(AP$20:AP$22),0)","v":0},null,"+",1,null,{"$f":"$AF$20*AU22/SUM($AU$20:$AU$22)","v":5.0000000000000001E-3}]
[null,"INFRASTRUCTURE",null,0.7,null,"INFRASTRUCTURE",null,1,null,{"$f":"D23*$H$23/SUM($H$23)","v":0.7},null,1,null,{"$f":"D23*$L$23/SUM($L$23)","v":0.7},null,1,null,{"$f":"D23*$P$23/SUM($P$23)","v":0.7},null,"Managing Access and Control Entries",null,1,null,{"$f":"$J$23*$V$23/SUM($V$23:$V$48)","v":2.5925925925925925E-2},null,9,null,{"$f":"$J$23*$Z23/SUM($Z$23:$Z$48)","v":0.27391304347826084},null,4,null,{"$f":"$J$23*$AD$23/SUM($AD$23:$AD$48)","v":0.1728395061728395},null,{"$f":"'4_DataSlave'!D25","v":"Lighting systems"},{"$f":"'4_DataSlave'!E25","v":"Lighting "},"+",2,null,{"$f":"$X$23*AK23/SUM($AK$23:$AK$25)","v":1.2962962962962963E-2},null,"+",2,null,{"$f":"$AB$23*AP23/SUM($AP$23:$AP$25)","v":9.1304347826086943E-2},null,"+",2,null,{"$f":"$AF$23*AU23/SUM($AU$23:$AU$25)","v":3.8408779149519887E-2}]
[null,null,null,null,null,null,null,null,null,null,null,null,null,null,null,null,null,null,null,null,null,null,null,null,null,null,null,null,null,null,null,null,null,{"$f":"'4_DataSlave'!D26","v":"Safety of the perimeter fence "},{"$f":"'4_DataSlave'!E26","v":"Fence "},"+",1,null,{"$f":"$X$23*AK24/SUM($AK$23:$AK$25)","v":6.4814814814814813E-3},null,"+",2,null,{"$f":"$AB$23*AP24/SUM($AP$23:$AP$25)","v":9.1304347826086943E-2},null,"+",4,null,{"$f":"$AF$23*AU24/SUM($AU$23:$AU$25)","v":7.6817558299039773E-2}]
[null,null,null,null,null,null,null,null,null,null,null,null,null,null,null,null,null,null,null,null,null,null,null,null,null,null,null,null,null,null,null,null,null,{"$f":"'4_DataSlave'!D27","v":"Gates and entrances"},{"$f":"'4_DataSlave'!E27","v":"Gates"},"+",1,null,{"$f":"$X$23*AK25/SUM($AK$23:$AK$25)","v":6.4814814814814813E-3},null,"+",2,null,{"$f":"$AB$23*AP25/SUM($AP$23:$AP$25)","v":9.1304347826086943E-2},null,"+",3,null,{"$f":"$AF$23*AU25/SUM($AU$23:$AU$25)","v":5.761316872427983E-2}]
[null,null,null,null,null,null,null,null,null,null,null,null,null,null,null,null,null,null,null,"Structural Preventive Measures",null,6,null,{"$f":"$J$23*$V$26/SUM($V$23:$V$48)","v":0.15555555555555553},null,2,null,{"$f":"$J$23*$Z26/SUM($Z$23:$Z$48)","v":6.08695652173913E-2},null,0.2,null,{"$f":"$J$23*$AD26/SUM($AD$23:$AD$48)","v":8.6419753086419745E-3},null,{"$f":"'4_DataSlave'!D28","v":"Conditions"},{"$f":"'4_DataSlave'!E28","v":"Condition"},"+",0,null,{"$f":"$X$26*AK26/SUM($AK$26:$AK$29)","v":0},null,"+",1,null,{"$f":"$AB$26*AP26/SUM($AP$26:$AP$29)","v":3.043478260869565E-2},null,"-",1,null,{"$f":"$AF$26*AU26/SUM($AU$26:$AU$29)","v":8.6419753086419745E-3}]
[null,null,null,null,null,null,null,null,null,null,null,null,null,null,null,null,null,null,null,null,null,null,null,null,null,null,null,null,null,null,null,null,null,{"$f":"'4_DataSlave'!D29","v":"Structural Integrity"},{"$f":"'4_DataSlave'!E29","v":"Integrity "},"+",2,null,{"$f":"$X$26*AK27/SUM($AK$26:$AK$29)","v":5.1851851851851843E-2},null,"+",0,null,{"$f":"$AB$26*AP27/SUM($AP$26:$AP$29)","v":0},null,"+",0,null,{"$f":"$AF$26*AU27/SUM($AU$26:$AU$29)","v":0}]
[null,null,null,null,null,null,null,null,null,null,null,null,null,null,null,null,null,null,null,null,null,null,null,null,null,null,null,null,null,null,null,null,null,{"$f":"'4_DataSlave'!D30","v":"Structure Material "},{"$f":"'4_DataSlave'!E30","v":"Material"},"+",1,null,{"$f":"$X$26*AK28/SUM($AK$26:$AK$29)","v":2.5925925925925922E-2},null,"+",0,null,{"$f":"$AB$26*AP28/SUM($AP$26:$AP$29)","v":0},null,"+",0,null,{"$f":"$AF$26*AU28/SUM($AU$26:$AU$29)","v":0}]
[null,null,null,null,null,null,null,null,null,null,null,null,null,null,null,null,null,null,null,null,null,null,null,null,null,null,null,null,null,null,null,null,null,{"$f":"'4_DataSlave'!D31","v":"Reinforce critical structure element"},{"$f":"'4_DataSlave'!E31","v":"Passive_Sec "},"+",3,null,{"$f":"$X$26*AK29/SUM($AK$26:$AK$29)","v":7.7777777777777765E-2},null,"+",1,null,{"$f":"$AB$26*AP29/SUM($AP$26:$AP$29)","v":3.043478260869565E-2},null,"+",0,null,{"$f":"$AF$26*AU29/SUM($AU$26:$AU$29)","v":0}]
[null,null,null,null,null,null,null,null,null,null,null,null,null,null,null,null,null,null,null,"Layout : space arrengements",null,8,null,{"$f":"$J$23*$V$30/SUM($V$23:$V$48)","v":0.2074074074074074},null,5,null,{"$f":"$J$23*$Z30/SUM($Z$23:$Z$48)","v":0.15217391304347827},null,4,null,{"$f":"$J$23*$AD30/SUM($AD$23:$AD$48)","v":0.1728395061728395},null,{"$f":"'4_DataSlave'!D32","v":"Distribution operational priority areas"},{"$f":"'4_DataSlave'!E32","v":"Priority areas "},"+",3,null,{"$f":"$X$30*AK30/SUM($AK$30:$AK$33)","v":5.6565656565656569E-2},null,"+",1,null,{"$f":"$AB$30*AP30/SUM($AP$30:$AP$33)","v":2.1739130434782612E-2},null,"+",2,null,{"$f":"$AF$30*AU30/SUM($AU$30:$AU$33)","v":4.9382716049382713E-2}]
[null,null,null,null,null,null,null,null,null,null,null,null,null,null,null,null,null,null,null,null,null,null,null,null,null,null,null,null,null,null,null,null,null,{"$f":"'4_DataSlave'!D33","v":"Concentrated vs. Spread"},{"$f":"'4_DataSlave'!E33","v":"Layout "},"-",6,null,{"$f":"$X$30*AK31/SUM($AK$30:$AK$33)","v":0.11313131313131314},null,"+",2,null,{"$f":"$AB$30*AP31/SUM($AP$30:$AP$33)","v":4.3478260869565223E-2},null,"+",0,null,{"$f":"$AF$30*AU31/SUM($AU$30:$AU$33)","v":0}]
[null,null,null,null,null,null,null,null,null,null,null,null,null,null,null,null,null,null,null,null,null,null,null,null,null,null,null,null,null,null,null,null,null,{"$f":"'4_DataSlave'!D34","v":"Existence of free space"},{"$f":"'4_DataSlave'!E34","v":"Free space "},"+",2,null,{"$f":"$X$30*AK32/SUM($AK$30:$AK$33)","v":3.7710437710437708E-2},null,"+",0,null,{"$f":"$AB$30*AP32/SUM($AP$30:$AP$33)","v":0},null,"+",4,null,{"$f":"$AF$30*AU32/SUM($AU$30:$AU$33)","v":9.8765432098765427E-2}]
[null,null,null,null,null,null,null,null,null,null,null,null,null,null,null,null,null,null,null,null,null,null,null,null,null,null,null,null,null,null,null,null,null,{"$f":"'4_DataSlave'!D35","v":"Location of  valuable assests"},{"$f":"'4_DataSlave'!E35","v":"Valuable assets "},"+",0,null,{"$f":"$X$30*AK33/SUM($AK$30:$AK$33)","v":0},null,"+",4,null,{"$f":"$AB$30*AP33/SUM($AP$30:$AP$33)","v":8.6956521739130446E-2},null,"+",1,null,{"$f":"$AF$30*AU33/SUM($AU$30:$AU$33)","v":2.4691358024691357E-2}]
[null,null,null,null,null,null,null,null,null,null,null,null,null,null,null,null,null,null,null,"Exposure to external threaths",null,4,null,{"$f":"$J$23*$V$34/SUM($V$23:$V$48)","v":0.1037037037037037},null,4,null,{"$f":"$J$23*$Z34/SUM($Z$23:$Z$48)","v":0.1217391304347826},null,1,null,{"$f":"$J$23*$AD34/SUM($AD$23:$AD$48)","v":4.3209876543209874E-2},null,{"$f":"'4_DataSlave'!D36","v":"Opening:  windows"},{"$f":"'4_DataSlave'!E36","v":"Windows"},"+",2,null,{"$f":"$X$34*AK34/SUM($AK$34:$AK$38)","v":2.5925925925925925E-2},null,"+",4,null,{"$f":"$AB$34*AP34/SUM($AP$34:$AP$38)","v":5.4106280193236711E-2},null,"+",1,null,{"$f":"$AF$34*AU34/SUM($AU$34:$AU$38)","v":7.2016460905349787E-3}]
[null,null,null,null,null,null,null,null,null,null,null,null,null,null,null,null,null,null,null,null,null,null,null,null,null,null,null,null,null,null,null,null,null,{"$f":"'4_DataSlave'!D37","v":"Opening: doors"},{"$f":"'4_DataSlave'!E37","v":"Doors"},"+",3,null,{"$f":"$X$34*AK35/SUM($AK$34:$AK$38)","v":3.888888888888889E-2},null,"+",2,null,{"$f":"$AB$34*AP35/SUM($AP$34:$AP$38)","v":2.7053140096618356E-2},null,"+",2,null,{"$f":"$AF$34*AU35/SUM($AU$34:$AU$38)","v":1.4403292181069957E-2}]
[null,null,null,null,null,null,null,null,null,null,null,null,null,null,null,null,null,null,null,null,null,null,null,null,null,null,null,null,null,null,null,null,null,{"$f":"'4_DataSlave'!D38","v":"Opening exposure"},{"$f":"'4_DataSlave'!E38","v":"Exposure "},"+",1,null,{"$f":"$X$34*AK36/SUM($AK$34:$AK$38)","v":1.2962962962962963E-2},null,"+",2,null,{"$f":"$AB$34*AP36/SUM($AP$34:$AP$38)","v":2.7053140096618356E-2},null,"+",2,null,{"$f":"$AF$34*AU36/SUM($AU$34:$AU$38)","v":1.4403292181069957E-2}]
[null,null,null,null,null,null,null,null,null,null,null,null,null,null,null,null,null,null,null,null,null,null,null,null,null,null,null,null,null,null,null,null,null,{"$f":"'4_DataSlave'!D39","v":"Standoff distance"},{"$f":"'4_DataSlave'!E39","v":"Standoff "},"+",2,null,{"$f":"$X$34*AK37/SUM($AK$34:$AK$38)","v":2.5925925925925925E-2},null,"+",0,null,{"$f":"$AB$34*AP37/SUM($AP$34:$AP$38)","v":0},null,"+",0,null,{"$f":"$AF$34*AU37/SUM($AU$34:$AU$38)","v":0}]
[null,null,null,null,null,null,null,null,null,null,null,null,null,null,null,null,null,null,null,null,null,null,null,null,null,null,null,null,null,null,null,null,null,{"$f":"'4_DataSlave'!D40","v":"Internal fencing"},{"$f":"'4_DataSlave'!E40","v":"Int_fence"},"+",0,null,{"$f":"$X$34*AK38/SUM($AK$34:$AK$38)","v":0},null,"+",1,null,{"$f":"$AB$34*AP38/SUM($AP$34:$AP$38)","v":1.3526570048309178E-2},null,"+",1,null,{"$f":"$AF$34*AU38/SUM($AU$34:$AU$38)","v":7.2016460905349787E-3}]
[null,null,null,null,null,null,null,null,null,null,null,null,null,null,null,null,null,null,null,"Internal Circulation",null,2,null,{"$f":"$J$23*$V$39/SUM($V$23:$V$48)","v":5.185185185185185E-2},null,2,null,{"$f":"$J$23*$Z$39/SUM($Z$23:$Z$48)","v":6.08695652173913E-2},null,4,null,{"$f":"$J$23*$AD$39/SUM($AD$23:$AD$48)","v":0.1728395061728395},null,{"$f":"'4_DataSlave'!D41","v":"Safety of mouvements"},{"$f":"'4_DataSlave'!E41","v":"Movement"},"+",2,null,{"$f":"$X$39*AK39/SUM($AK$39:$AK$42)","v":1.4814814814814814E-2},null,"-",1,null,{"$f":"$AB$39*AP39/SUM($AP$39:$AP$42)","v":1.5217391304347825E-2},null,"+",2,null,{"$f":"$AF$39*AU39/SUM($AU$39:$AU$42)","v":6.9135802469135796E-2}]
[null,null,null,null,null,null,null,null,null,null,null,null,null,null,null,null,null,null,null,null,null,null,null,null,null,null,null,null,null,null,null,null,null,{"$f":"'4_DataSlave'!D42","v":"Safety of stairways"},{"$f":"'4_DataSlave'!E42","v":"Stairs"},"+",2,null,{"$f":"$X$39*AK40/SUM($AK$39:$AK$42)","v":1.4814814814814814E-2},null,"+",0,null,{"$f":"$AB$39*AP40/SUM($AP$39:$AP$42)","v":0},null,"+",1,null,{"$f":"$AF$39*AU40/SUM($AU$39:$AU$42)","v":3.4567901234567898E-2}]
[null,null,null,null,null,null,null,null,null,null,null,null,null,null,null,null,null,null,null,null,null,null,null,null,null,null,null,null,null,null,null,null,null,{"$f":"'4_DataSlave'!D43","v":"Safety of elevator system"},{"$f":"'4_DataSlave'!E43","v":"Elevators"},"+",1,null,{"$f":"$X$39*AK41/SUM($AK$39:$AK$42)","v":7.4074074074074068E-3},null,"+",0,null,{"$f":"$AB$39*AP41/SUM($AP$39:$AP$42)","v":0},null,"+",1,null,{"$f":"$AF$39*AU41/SUM($AU$39:$AU$42)","v":3.4567901234567898E-2}]
[null,null,null,null,null,null,null,null,null,null,null,null,null,null,null,null,null,null,null,null,null,null,null,null,null,null,null,null,null,null,null,null,null,{"$f":"'4_DataSlave'!D44","v":"Evacuation routes"},{"$f":"'4_DataSlave'!E44","v":"Evacuation "},"+",2,null,{"$f":"$X$39*AK42/SUM($AK$39:$AK$42)","v":1.4814814814814814E-2},null,"+",3,null,{"$f":"$AB$39*AP42/SUM($AP$39:$AP$42)","v":4.5652173913043478E-2},null,"+",1,null,{"$f":"$AF$39*AU42/SUM($AU$39:$AU$42)","v":3.4567901234567898E-2}]
[null,null,null,null,null,null,null,null,null,null,null,null,null,null,null,null,null,null,null,"Self-sufficiency",null,6,null,{"$f":"$J$23*$V$43/SUM($V$23:$V$48)","v":0.15555555555555553},null,1,null,{"$f":"$J$23*$Z$43/SUM($Z$23:$Z$48)","v":3.043478260869565E-2},null,3,null,{"$f":"$J$23*$AD$43/SUM($AD$23:$AD$48)","v":0.12962962962962962},null,{"$f":"'4_DataSlave'!D45","v":"Safety of telecommmunication system"},{"$f":"'4_DataSlave'!E45","v":"Telecom "},"+",3,null,{"$f":"$X$43*AK43/SUM($AK$43:$AK$48)","v":3.1111111111111103E-2},null,"+",1,null,{"$f":"$AB$43*AP43/SUM($AP$43:$AP$48)","v":3.043478260869565E-2},null,"+",2,null,{"$f":"$AF$43*AU43/SUM($AU$43:$AU$48)","v":2.1604938271604937E-2}]
[null,null,null,null,null,null,null,null,null,null,null,null,null,null,null,null,null,null,null,null,null,null,null,null,null,null,null,null,null,null,null,null,null,{"$f":"'4_DataSlave'!D46","v":"Safety of water  system  "},{"$f":"'4_DataSlave'!E46","v":"Water "},"+",2,null,2.0740740740740737E-2,null,"+",0,null,0,null,"+",1,null,1.0802469135802469E-2]
[null,null,null,null,null,null,null,null,null,null,null,null,null,null,null,null,null,null,null,null,null,null,null,null,null,null,null,null,null,null,null,null,null,{"$f":"'4_DataSlave'!D47","v":"Safety of electrical system"},{"$f":"'4_DataSlave'!E47","v":"Electrical  "},"+",4,null,4.1481481481481473E-2,null,"+",0,null,0,null,"+",3,null,3.2407407407407406E-2]
[null,null,null,null,null,null,null,null,null,null,null,null,null,null,null,null,null,null,null,null,null,null,null,null,null,null,null,null,null,null,null,null,null,{"$f":"'4_DataSlave'!D48","v":"Safe disposal of medical waste"},{"$f":"'4_DataSlave'!E48","v":"Med_waste"},"+",4,null,4.1481481481481473E-2,null,"+",0,null,0,null,"+",3,null,3.2407407407407406E-2]
[null,null,null,null,null,null,null,null,null,null,null,null,null,null,null,null,null,null,null,null,null,null,null,null,null,null,null,null,null,null,null,null,null,{"$f":"'4_DataSlave'!D49","v":"Safety of sewage disposal"},{"$f":"'4_DataSlave'!E49","v":"Sewage "},"+",1,null,1.0370370370370368E-2,null,"+",0,null,0,null,"+",1,null,1.0802469135802469E-2]
[null,null,null,null,null,null,null,null,null,null,null,null,null,null,null,null,null,null,null,null,null,null,null,null,null,null,null,null,null,null,null,null,null,{"$f":"'4_DataSlave'!D50","v":"Safety of dead body evacuation"},{"$f":"'4_DataSlave'!E50","v":"Dead"},"+",1,null,1.0370370370370368E-2,null,"+",0,null,0,null,"+",2,null,2.1604938271604937E-2]
[]
[null,null,null,{"$f":"SUM(D6:D48)","v":1},null,null,null,null,null,{"$f":"SUM(J6:J48)","v":1},null,null,null,{"$f":"SUM(N6:N48)","v":1},null,null,null,{"$f":"SUM(R6:R48)","v":1},null,null,null,null,null,{"$f":"SUM(X6:X48)","v":0.99999999999999989},null,null,null,{"$f":"SUM(AB6:AB48)","v":1},null,null,null,{"$f":"SUM(AF6:AF48)","v":1},null,null,null,null,null,null,{"$f":"SUM(AM6:AM48)","v":0.99999999999999978},null,null,null,null,{"$f":"SUM(AR6:AR48)","v":1},null,null,null,null,{"$f":"SUM(AW6:AW48)","v":0.99999999999999989}]

{"sheet":"4_DataSlave","index":4,"n_rows":77,"n_cols":47,"rows_kept":77,"cut":false,"hidden":true,"merged":[[3,44,4,46],[6,13,6,15],[6,16,6,18],[60,37,61,38],[57,37,58,38],[54,37,55,38],[57,29,58,30],[6,22,6,24],[6,33,6,35],[51,37,52,38],[3,29,4,31],[3,32,4,32],[3,33,4,35],[6,25,6,27],[3,25,4,27]]}
["Domain","Situation","Scenario","Opss","Scenario short","Range name","Deviation from mean","Max deviation","Boosted scoring","Original weight","User Boosted weight",null,null,null,null,null,null,null,null,null,null,"User scenario scores"]
["Module 1 - HAZARD","Indirect (and direct) use of Heavy weapons","Heavy weapons","Fuck, they are bombing us!","Bombing","hz_bomb",{"$f":"(V2-AVERAGE($V2:$V$4))/COUNT($V$2:$V$4)","v":{"$error":"#VALUE!"}},{"$f":"IF(G2=MAX($G$2:$G$4),G2,0)","v":{"$error":"#VALUE!"}},{"$f":"V2*IF(H2=MAX(H2:H4),H2+2,1)","v":{"$error":"#VALUE!"}},{"$f":"V2/SUM($V$2:$V$4)","v":{"$error":"#VALUE!"}},{"$f":"I2/SUM($I$2:$I$4)","v":{"$error":"#VALUE!"}},null,null,null,null,null,null,null,null,null,null,{"$f":"IF(ISBLANK('1_Survey'!F7)=FALSE,IF('1_Survey'!F7=\"Zero\",0,IF('1_Survey'!F7=\"Low\",1,IF('1_Survey'!F7=\"Average\",2,3))),\"Not Filled\")","v":"Not Filled"}]
["Module 1 - HAZARD","Intrusion (armed/non armed/robbery)","Intrusion","Hail To The Thief","Intrusion","hz_intrs",{"$f":"(V3-AVERAGE($V2:$V$4))/COUNT($V$2:$V$4)","v":{"$error":"#VALUE!"}},{"$f":"IF(G3=MAX($G$2:$G$4),G3,0)","v":{"$error":"#VALUE!"}},{"$f":"V3*IF(H3=MAX(H2:H4),H3+2,1)","v":{"$error":"#VALUE!"}},{"$f":"V3/SUM($V$2:$V$4)","v":{"$error":"#VALUE!"}},{"$f":"I3/SUM($I$2:$I$4)","v":{"$error":"#VALUE!"}},null,null,null,null,null,null,null,null,null,null,{"$f":"IF(ISBLANK('1_Survey'!F8)=FALSE,IF('1_Survey'!F8=\"Zero\",0,IF('1_Survey'!F8=\"Low\",1,IF('1_Survey'!F8=\"Average\",2,3))),\"Not Filled\")","v":"Not Filled"}]
["Module 1 - HAZARD","Civil unrest leading to MIP (riots) ","Massive Influx Wunded","The city is on fire","MIP","hz_mip",{"$f":"(V4-AVERAGE($V2:$V$4))/COUNT($V$2:$V$4)","v":{"$error":"#VALUE!"}},{"$f":"IF(G4=MAX($G$2:$G$4),G4,0)","v":{"$error":"#VALUE!"}},{"$f":"V4*IF(H4=MAX(H2:H4),H4+2,1)","v":{"$error":"#VALUE!"}},{"$f":"V4/SUM($V$2:$V$4)","v":{"$error":"#VALUE!"}},{"$f":"I4/SUM($I$2:$I$4)","v":{"$error":"#VALUE!"}},null,null,null,null,null,null,null,null,null,null,{"$f":"IF(ISBLANK('1_Survey'!F9)=FALSE,IF('1_Survey'!F9=\"Zero\",0,IF('1_Survey'!F9=\"Low\",1,IF('1_Survey'!F9=\"Average\",2,3))),\"Not Filled\")","v":"Not Filled"},null,null,null,"Overwrite Internal Exposure to produce to total available score",null,null,null,"write Only Internal Exposure Ex. Spread",null,null,"Write Only portion Ext. Exp.","Write Prepardness j\nexcluding all Exposures",null,null,null,null,null,null,null,null,null,null,"In order to run the macro to attach the Label just leave the double column with the nicknames"]
["Module 1 - HAZARD","External Infrastructure","External Infrastructure","Black Hole effect","Ext. Infrastr.","ee_xtinf",null,null,null,null,null,null,null,null,null,null,null,null,null,null,null,{"$f":"IF(ISBLANK('1_Survey'!F11)=FALSE,IF('1_Survey'!F11=\"N/A\",10,(IF('1_Survey'!F11=\"Zero\",0,IF('1_Survey'!F11=\"Low\",1,IF('1_Survey'!F11=\"Average\",2,3))))),\"Not Filled\")","v":"Not Filled"}]
["Module 1 - HAZARD","Confidence in Risk Analysis","Confidence in Risk Analysis","Better be sure","Confidence","ce_conf",null,null,null,null,null,null,null,null,null,null,null,null,null,null,null,{"$f":"IF(ISBLANK('1_Survey'!F13)=FALSE,IF('1_Survey'!F13=\"Low\",1,IF('1_Survey'!F13=\"Average\",2,3)),\"Not Filled\")","v":"Not Filled"},null,null,null,null,null,null,null,null,"Int. ii",null,"Ext ei"]
["Domain","Imperative","Category","Indicator","Indic. short","Range name","d1","w1","d2","w2","d3","w3","User score","Identify the N/A and write their score",null,null,"Add the score not attributed because of the N/A",null,null,"ii","ei",null,"dij*wij*pj = vij",null,null,null,null,null,"Achievable","x'i1","x'i2","x'i3","(∑j(-1)*vi)/p","Indicator score weighted by scenario & user excluded those all exposure int & ext",null,null,"Prepardeness","HCiD/Avail.","Pie tot. overall","Potential to increase","Rank potential",null,null,null,null,"Indic. short","Top 5 Priority"]
["Module 2 - MANAGEMENT","PROCESS/PREPARDNESS ","Safety and security framework ","Risk assessment & Contingency planning","Contingency","pr_cntpl","+",{"$f":"'3_WeightingAssistent'!AM6","v":5.2884615384615384E-2},"+",{"$f":"'3_WeightingAssistent'!AR6","v":5.2083333333333336E-2},{"$f":"'3_WeightingAssistent'!AT6","v":"+"},{"$f":"'3_WeightingAssistent'!AW6","v":5.1724137931034482E-2},{"$f":"IF(ISBLANK('1_Survey'!F15)=FALSE,IF('1_Survey'!F15=\"N/A\",10,IF('1_Survey'!F15=\"Zero\",0,IF('1_Survey'!F15=\"Zero-Low\",0.16,IF('1_Survey'!F15=\"Low\",0.33,IF('1_Survey'!F15=\"Low-Average\",0.45,IF('1_Survey'!F15=\"Average\",0.66,IF('1_Survey'!F15=\"Average-High\",0.82,1))))))),\"Not Filled\")","v":"Not Filled"},{"$f":"IF($M8=10,H8,0)","v":0},{"$f":"IF($M8=10,J8,0)","v":0},{"$f":"IF($M8=10,L8,0)","v":0},{"$f":"IF($M8<>10,H8+$N$52,0)","v":{"$error":"#DIV/0!"}},{"$f":"IF($M8<>10,J8+$O$52,0)","v":{"$error":"#DIV/0!"}},{"$f":"IF($M8<>10,L8+$P$52,0)","v":{"$error":"#DIV/0!"}},0,1,null,{"$f":"IF(G8=\"-\",'4_DataSlave'!$K$2*Q8*-1,'4_DataSlave'!$K$2*Q8)","v":{"$error":"#VALUE!"}},{"$f":"IF(I8=\"-\",'4_DataSlave'!$K$3*R8*-1,'4_DataSlave'!$K$3*R8)","v":{"$error":"#VALUE!"}},{"$f":"IF(K8=\"-\",'4_DataSlave'!$K$4*S8*-1,'4_DataSlave'!$K$4*S8)","v":{"$error":"#VALUE!"}},{"$f":"IF(AND($T8=1,G8=\"-\"),IF($M8=0.33,W8,IF($M8=0.66,0,IF($M8=1,-1*W8,0))),W8)","v":{"$error":"#VALUE!"}},{"$f":"IF(AND($T8=1,I8=\"-\"),IF($M8=0.33,X8,IF($M8=0.66,0,IF($M8=1,-1*X8,0))),X8)","v":{"$error":"#VALUE!"}},{"$f":"IF(AND($T8=1,K8=\"-\"),IF($M8=0.33,Y8,IF($M8=0.66,0,IF($M8=1,-1*Y8,0))),Y8)","v":{"$error":"#VALUE!"}},{"$f":"SUM(Z8:AB8)","v":{"$error":"#VALUE!"}},{"$f":"IF(AND($T8=1,G8=\"-\"),IF($M8=0.33,W8,IF($M8=0.66,0,IF($M8=1,-1*W8,0))),0)","v":0},{"$f":"IF(AND($T8=1,I8=\"-\"),IF($M8=0.33,X8,IF($M8=0.66,0,IF($M8=1,-1*X8,0))),0)","v":0},{"$f":"IF(AND($T8=1,K8=\"-\"),IF($M8=0.33,Y8,IF($M8=0.66,0,IF($M8=1,-1*Y8,0))),0)","v":0},{"$f":"IF(AND(U8=1,M8=0,$V$5<4),-1*ABS(AC8)*(4-$V$5)/3,0)","v":0},{"$f":"IF(AND(AD8=0,$AG8=0),$M8*W8,0)","v":{"$error":"#VALUE!"}},{"$f":"IF(AND(AE8=0,$AG8=0),$M8*X8,0)","v":{"$error":"#VALUE!"}},{"$f":"IF(AND(AF8=0,$AG8=0),$M8*Y8,0)","v":{"$error":"#VALUE!"}},{"$f":"SUM(AD8:AJ8)","v":{"$error":"#VALUE!"}},{"$f":"IFERROR(IF(AK8/AC8<0,0,AK8/AC8),0)","v":0},{"$f":"1-AL8","v":1},{"$f":"AC8-AK8","v":{"$error":"#VALUE!"}},{"$f":"_xlfn.RANK.AVG(AN8,AN$8:AN$50)","v":{"$error":"#VALUE!"}},null,null,null,{"$f":"AT8","v":"Contingency"},"Contingency",{"$f":"IFERROR(IF(AO8<=5,AN8,\"\"),0)","v":0}]
["Module 2 - MANAGEMENT","PROCESS/PREPARDNESS ","Safety and security framework ","Identification ","Identification ","pr_ident",{"$f":"'3_WeightingAssistent'!AJ7","v":"+"},{"$f":"'3_WeightingAssistent'!AM7","v":1.4423076923076924E-2},{"$f":"'3_WeightingAssistent'!AO7","v":"+"},{"$f":"'3_WeightingAssistent'!AR7","v":2.0833333333333332E-2},{"$f":"'3_WeightingAssistent'!AT7","v":"+"},{"$f":"'3_WeightingAssistent'!AW7","v":5.1724137931034482E-3},{"$f":"IF(ISBLANK('1_Survey'!F16)=FALSE,IF('1_Survey'!F16=\"N/A\",10,IF('1_Survey'!F16=\"Zero\",0,IF('1_Survey'!F16=\"Zero-Low\",0.16,IF('1_Survey'!F16=\"Low\",0.33,IF('1_Survey'!F16=\"Low-Average\",0.45,IF('1_Survey'!F16=\"Average\",0.66,IF('1_Survey'!F16=\"Average-High\",0.82,1))))))),\"Not Filled\")","v":"Not Filled"},0,0,0,{"$f":"IF($M9<>10,H9+$N$52,0)","v":{"$error":"#DIV/0!"}},{"$f":"IF($M9<>10,J9+$O$52,0)","v":{"$error":"#DIV/0!"}},{"$f":"IF($M9<>10,L9+$P$52,0)","v":{"$error":"#DIV/0!"}},0,0,null,{"$f":"IF(G9=\"-\",'4_DataSlave'!$K$2*Q9*-1,'4_DataSlave'!$K$2*Q9)","v":{"$error":"#VALUE!"}},{"$f":"IF(I9=\"-\",'4_DataSlave'!$K$3*R9*-1,'4_DataSlave'!$K$3*R9)","v":{"$error":"#VALUE!"}},{"$f":"IF(K9=\"-\",'4_DataSlave'!$K$4*S9*-1,'4_DataSlave'!$K$4*S9)","v":{"$error":"#VALUE!"}},{"$f":"IF(AND($T9=1,G9=\"-\"),IF($M9=0.33,W9,IF($M9=0.66,0,IF($M9=1,-1*W9,0))),W9)","v":{"$error":"#VALUE!"}},{"$f":"IF(AND($T9=1,I9=\"-\"),IF($M9=0.33,X9,IF($M9=0.66,0,IF($M9=1,-1*X9,0))),X9)","v":{"$error":"#VALUE!"}},{"$f":"IF(AND($T9=1,K9=\"-\"),IF($M9=0.33,Y9,IF($M9=0.66,0,IF($M9=1,-1*Y9,0))),Y9)","v":{"$error":"#VALUE!"}},{"$error":"#VALUE!"},{"$f":"IF(AND($T9=1,G9=\"-\"),IF($M9=0.33,W9,IF($M9=0.66,0,IF($M9=1,-1*W9,0))),0)","v":0},{"$f":"IF(AND($T9=1,I9=\"-\"),IF($M9=0.33,X9,IF($M9=0.66,0,IF($M9=1,-1*X9,0))),0)","v":0},{"$f":"IF(AND($T9=1,K9=\"-\"),IF($M9=0.33,Y9,IF($M9=0.66,0,IF($M9=1,-1*Y9,0))),0)","v":0},{"$f":"IF(AND(U9=1,M9=0,$V$5<4),-1*ABS(AC9)*(4-$V$5)/3,0)","v":0},{"$f":"IF(AND(AD9=0,$AG9=0),$M9*W9,0)","v":{"$error":"#VALUE!"}},{"$f":"IF(AND(AE9=0,$AG9=0),$M9*X9,0)","v":{"$error":"#VALUE!"}},{"$f":"IF(AND(AF9=0,$AG9=0),$M9*Y9,0)","v":{"$error":"#VALUE!"}},{"$f":"SUM(AD9:AJ9)","v":{"$error":"#VALUE!"}},0,1,{"$error":"#VALUE!"},{"$error":"#VALUE!"},null,null,null,"Identification ","Identification ",{"$f":"IFERROR(IF(AO9<=5,AN9,\"\"),0)","v":0}]
["Module 2 - MANAGEMENT","PROCESS/PREPARDNESS ","Safety and security framework ","\"No weapons\" policy","No_weapons ","pr_nowpn",{"$f":"'3_WeightingAssistent'!AJ8","v":"+"},{"$f":"'3_WeightingAssistent'!AM8","v":0},{"$f":"'3_WeightingAssistent'!AO8","v":"+"},{"$f":"'3_WeightingAssistent'!AR8","v":1.0416666666666666E-2},{"$f":"'3_WeightingAssistent'!AT8","v":"+"},{"$f":"'3_WeightingAssistent'!AW8","v":1.0344827586206896E-2},{"$f":"IF(ISBLANK('1_Survey'!F17)=FALSE,IF('1_Survey'!F17=\"N/A\",10,IF('1_Survey'!F17=\"Zero\",0,IF('1_Survey'!F17=\"Zero-Low\",0.16,IF('1_Survey'!F17=\"Low\",0.33,IF('1_Survey'!F17=\"Low-Average\",0.45,IF('1_Survey'!F17=\"Average\",0.66,IF('1_Survey'!F17=\"Average-High\",0.82,1))))))),\"Not Filled\")","v":"Not Filled"},0,0,0,{"$error":"#DIV/0!"},{"$error":"#DIV/0!"},{"$error":"#DIV/0!"},0,0,null,{"$f":"IF(G10=\"-\",'4_DataSlave'!$K$2*Q10*-1,'4_DataSlave'!$K$2*Q10)","v":{"$error":"#VALUE!"}},{"$f":"IF(I10=\"-\",'4_DataSlave'!$K$3*R10*-1,'4_DataSlave'!$K$3*R10)","v":{"$error":"#VALUE!"}},{"$f":"IF(K10=\"-\",'4_DataSlave'!$K$4*S10*-1,'4_DataSlave'!$K$4*S10)","v":{"$error":"#VALUE!"}},{"$error":"#VALUE!"},{"$error":"#VALUE!"},{"$error":"#VALUE!"},{"$error":"#VALUE!"},0,0,0,0,{"$error":"#VALUE!"},{"$error":"#VALUE!"},{"$error":"#VALUE!"},{"$error":"#VALUE!"},0,1,{"$error":"#VALUE!"},{"$error":"#VALUE!"},null,null,null,"No weapons ","No weapons ",0]
["Module 2 - MANAGEMENT","PROCESS/PREPARDNESS ","Safety and security framework ","Perception review","Perception","pr_prcpt",{"$f":"'3_WeightingAssistent'!AJ9","v":"+"},{"$f":"'3_WeightingAssistent'!AM9","v":4.807692307692308E-3},{"$f":"'3_WeightingAssistent'!AO9","v":"+"},{"$f":"'3_WeightingAssistent'!AR9","v":1.0416666666666666E-2},{"$f":"'3_WeightingAssistent'!AT9","v":"+"},{"$f":"'3_WeightingAssistent'!AW9","v":1.0344827586206896E-2},{"$f":"IF(ISBLANK('1_Survey'!F18)=FALSE,IF('1_Survey'!F18=\"N/A\",10,IF('1_Survey'!F18=\"Zero\",0,IF('1_Survey'!F18=\"Zero-Low\",0.16,IF('1_Survey'!F18=\"Low\",0.33,IF('1_Survey'!F18=\"Low-Average\",0.45,IF('1_Survey'!F18=\"Average\",0.66,IF('1_Survey'!F18=\"Average-High\",0.82,1))))))),\"Not Filled\")","v":"Not Filled"},0,0,0,{"$error":"#DIV/0!"},{"$error":"#DIV/0!"},{"$error":"#DIV/0!"},0,0,null,{"$f":"IF(G11=\"-\",'4_DataSlave'!$K$2*Q11*-1,'4_DataSlave'!$K$2*Q11)","v":{"$error":"#VALUE!"}},{"$f":"IF(I11=\"-\",'4_DataSlave'!$K$3*R11*-1,'4_DataSlave'!$K$3*R11)","v":{"$error":"#VALUE!"}},{"$f":"IF(K11=\"-\",'4_DataSlave'!$K$4*S11*-1,'4_DataSlave'!$K$4*S11)","v":{"$error":"#VALUE!"}},{"$error":"#VALUE!"},{"$error":"#VALUE!"},{"$error":"#VALUE!"},{"$error":"#VALUE!"},0,0,0,0,{"$error":"#VALUE!"},{"$error":"#VALUE!"},{"$error":"#VALUE!"},{"$f":"SUM(AD11:AJ11)","v":{"$error":"#VALUE!"}},0,1,{"$error":"#VALUE!"},{"$error":"#VALUE!"},null,null,null,"Perception","Perception",0]
["Module 2 - MANAGEMENT","PROCESS/PREPARDNESS ","Safety and security framework ","Fire protection system  ","Fire ","pr_fire",{"$f":"'3_WeightingAssistent'!AJ10","v":"+"},{"$f":"'3_WeightingAssistent'!AM10","v":4.807692307692308E-2},{"$f":"'3_WeightingAssistent'!AO10","v":"+"},{"$f":"'3_WeightingAssistent'!AR10","v":5.2083333333333336E-2},{"$f":"'3_WeightingAssistent'!AT10","v":"+"},{"$f":"'3_WeightingAssistent'!AW10","v":5.1724137931034482E-2},{"$f":"IF(ISBLANK('1_Survey'!F19)=FALSE,IF('1_Survey'!F19=\"N/A\",10,IF('1_Survey'!F19=\"Zero\",0,IF('1_Survey'!F19=\"Zero-Low\",0.16,IF('1_Survey'!F19=\"Low\",0.33,IF('1_Survey'!F19=\"Low-Average\",0.45,IF('1_Survey'!F19=\"Average\",0.66,IF('1_Survey'!F19=\"Average-High\",0.82,1))))))),\"Not Filled\")","v":"Not Filled"},0,0,0,{"$error":"#DIV/0!"},{"$error":"#DIV/0!"},{"$error":"#DIV/0!"},0,1,null,{"$f":"IF(G12=\"-\",'4_DataSlave'!$K$2*Q12*-1,'4_DataSlave'!$K$2*Q12)","v":{"$error":"#VALUE!"}},{"$f":"IF(I12=\"-\",'4_DataSlave'!$K$3*R12*-1,'4_DataSlave'!$K$3*R12)","v":{"$error":"#VALUE!"}},{"$f":"IF(K12=\"-\",'4_DataSlave'!$K$4*S12*-1,'4_DataSlave'!$K$4*S12)","v":{"$error":"#VALUE!"}},{"$error":"#VALUE!"},{"$error":"#VALUE!"},{"$error":"#VALUE!"},{"$error":"#VALUE!"},0,0,0,0,{"$error":"#VALUE!"},{"$error":"#VALUE!"},{"$error":"#VALUE!"},{"$error":"#VALUE!"},0,1,{"$error":"#VALUE!"},{"$error":"#VALUE!"},null,null,null,"Fire ","Fire ",0]
["Module 2 - MANAGEMENT","PROCESS/PREPARDNESS ","Safety and security framework ","Monitoring of a HC facility HR guards","Security ","pr_secmon",{"$f":"'3_WeightingAssistent'!AJ11","v":"+"},{"$f":"'3_WeightingAssistent'!AM11","v":4.807692307692308E-3},{"$f":"'3_WeightingAssistent'!AO11","v":"+"},{"$f":"'3_WeightingAssistent'!AR11","v":0.10416666666666667},{"$f":"'3_WeightingAssistent'!AT11","v":"+"},{"$f":"'3_WeightingAssistent'!AW11","v":2.0689655172413793E-2},{"$f":"IF(ISBLANK('1_Survey'!F20)=FALSE,IF('1_Survey'!F20=\"N/A\",10,IF('1_Survey'!F20=\"Zero\",0,IF('1_Survey'!F20=\"Zero-Low\",0.16,IF('1_Survey'!F20=\"Low\",0.33,IF('1_Survey'!F20=\"Low-Average\",0.45,IF('1_Survey'!F20=\"Average\",0.66,IF('1_Survey'!F20=\"Average-High\",0.82,1))))))),\"Not Filled\")","v":"Not Filled"},0,0,0,{"$error":"#DIV/0!"},{"$error":"#DIV/0!"},{"$error":"#DIV/0!"},0,0,null,{"$f":"IF(G13=\"-\",'4_DataSlave'!$K$2*Q13*-1,'4_DataSlave'!$K$2*Q13)","v":{"$error":"#VALUE!"}},{"$f":"IF(I13=\"-\",'4_DataSlave'!$K$3*R13*-1,'4_DataSlave'!$K$3*R13)","v":{"$error":"#VALUE!"}},{"$f":"IF(K13=\"-\",'4_DataSlave'!$K$4*S13*-1,'4_DataSlave'!$K$4*S13)","v":{"$error":"#VALUE!"}},{"$error":"#VALUE!"},{"$error":"#VALUE!"},{"$error":"#VALUE!"},{"$error":"#VALUE!"},0,0,0,0,{"$error":"#VALUE!"},{"$error":"#VALUE!"},{"$error":"#VALUE!"},{"$error":"#VALUE!"},0,1,{"$error":"#VALUE!"},{"$error":"#VALUE!"},null,null,null,"Security ","Security ",0]
["Module 2 - MANAGEMENT","PEOPLE","Media","Media strategy","Media","mp_media",{"$f":"'3_WeightingAssistent'!AJ12","v":"+"},{"$f":"'3_WeightingAssistent'!AM12","v":7.6923076923076919E-3},{"$f":"'3_WeightingAssistent'!AO12","v":"+"},{"$f":"'3_WeightingAssistent'!AR12","v":4.9999999999999992E-3},{"$f":"'3_WeightingAssistent'!AT12","v":"+"},{"$f":"'3_WeightingAssistent'!AW12","v":6.3157894736842104E-3},{"$f":"IF(ISBLANK('1_Survey'!F22)=FALSE,IF('1_Survey'!F22=\"N/A\",10,IF('1_Survey'!F22=\"Zero\",0,IF('1_Survey'!F22=\"Zero-Low\",0.16,IF('1_Survey'!F22=\"Low\",0.33,IF('1_Survey'!F22=\"Low-Average\",0.45,IF('1_Survey'!F22=\"Average\",0.66,IF('1_Survey'!F22=\"Average-High\",0.82,1))))))),\"Not Filled\")","v":"Not Filled"},{"$f":"IF($M14=10,H14,0)","v":0},{"$f":"IF($M14=10,J14,0)","v":0},{"$f":"IF($M14=10,L14,0)","v":0},{"$error":"#DIV/0!"},{"$error":"#DIV/0!"},{"$error":"#DIV/0!"},0,0,null,{"$f":"IF(G14=\"-\",'4_DataSlave'!$K$2*Q14*-1,'4_DataSlave'!$K$2*Q14)","v":{"$error":"#VALUE!"}},{"$f":"IF(I14=\"-\",'4_DataSlave'!$K$3*R14*-1,'4_DataSlave'!$K$3*R14)","v":{"$error":"#VALUE!"}},{"$f":"IF(K14=\"-\",'4_DataSlave'!$K$4*S14*-1,'4_DataSlave'!$K$4*S14)","v":{"$error":"#VALUE!"}},{"$error":"#VALUE!"},{"$error":"#VALUE!"},{"$error":"#VALUE!"},{"$error":"#VALUE!"},0,0,0,0,{"$error":"#VALUE!"},{"$error":"#VALUE!"},{"$error":"#VALUE!"},{"$error":"#VALUE!"},0,1,{"$error":"#VALUE!"},{"$error":"#VALUE!"},null,null,null,"Media","Media",0]
["Module 2 - MANAGEMENT","PEOPLE","Patients and relatives","Accomodating needs of patients' relatives\n","Relatives","mp_rltvs",{"$f":"'3_WeightingAssistent'!AJ13","v":"+"},{"$f":"'3_WeightingAssistent'!AM13","v":1.5384615384615384E-2},{"$f":"'3_WeightingAssistent'!AO13","v":"+"},{"$f":"'3_WeightingAssistent'!AR13","v":4.9999999999999992E-3},{"$f":"'3_WeightingAssistent'!AT13","v":"+"},{"$f":"'3_WeightingAssistent'!AW13","v":1.8947368421052629E-2},{"$f":"IF(ISBLANK('1_Survey'!F24)=FALSE,IF('1_Survey'!F24=\"N/A\",10,IF('1_Survey'!F24=\"Zero\",0,IF('1_Survey'!F24=\"Zero-Low\",0.16,IF('1_Survey'!F24=\"Low\",0.33,IF('1_Survey'!F24=\"Low-Average\",0.45,IF('1_Survey'!F24=\"Average\",0.66,IF('1_Survey'!F24=\"Average-High\",0.82,1))))))),\"Not Filled\")","v":"Not Filled"},0,0,0,{"$error":"#DIV/0!"},{"$error":"#DIV/0!"},{"$error":"#DIV/0!"},0,0,null,{"$f":"IF(G15=\"-\",'4_DataSlave'!$K$2*Q15*-1,'4_DataSlave'!$K$2*Q15)","v":{"$error":"#VALUE!"}},{"$f":"IF(I15=\"-\",'4_DataSlave'!$K$3*R15*-1,'4_DataSlave'!$K$3*R15)","v":{"$error":"#VALUE!"}},{"$f":"IF(K15=\"-\",'4_DataSlave'!$K$4*S15*-1,'4_DataSlave'!$K$4*S15)","v":{"$error":"#VALUE!"}},{"$error":"#VALUE!"},{"$error":"#VALUE!"},{"$error":"#VALUE!"},{"$error":"#VALUE!"},0,0,0,0,{"$error":"#VALUE!"},{"$error":"#VALUE!"},{"$error":"#VALUE!"},{"$error":"#VALUE!"},0,1,{"$error":"#VALUE!"},{"$error":"#VALUE!"},null,null,null,"Relatives","Relatives",0]
["Module 2 - MANAGEMENT","PEOPLE","Patients and relatives","Protection of patients medical records","Records","mp_recs",{"$f":"'3_WeightingAssistent'!AJ14","v":"+"},{"$f":"'3_WeightingAssistent'!AM14","v":1.5384615384615384E-2},{"$f":"'3_WeightingAssistent'!AO14","v":"+"},{"$f":"'3_WeightingAssistent'!AR14","v":4.9999999999999992E-3},{"$f":"'3_WeightingAssistent'!AT14","v":"+"},{"$f":"'3_WeightingAssistent'!AW14","v":1.8947368421052629E-2},{"$f":"IF(ISBLANK('1_Survey'!F25)=FALSE,IF('1_Survey'!F25=\"N/A\",10,IF('1_Survey'!F25=\"Zero\",0,IF('1_Survey'!F25=\"Zero-Low\",0.16,IF('1_Survey'!F25=\"Low\",0.33,IF('1_Survey'!F25=\"Low-Average\",0.45,IF('1_Survey'!F25=\"Average\",0.66,IF('1_Survey'!F25=\"Average-High\",0.82,1))))))),\"Not Filled\")","v":"Not Filled"},0,0,0,{"$error":"#DIV/0!"},{"$error":"#DIV/0!"},{"$error":"#DIV/0!"},0,0,null,{"$f":"IF(G16=\"-\",'4_DataSlave'!$K$2*Q16*-1,'4_DataSlave'!$K$2*Q16)","v":{"$error":"#VALUE!"}},{"$f":"IF(I16=\"-\",'4_DataSlave'!$K$3*R16*-1,'4_DataSlave'!$K$3*R16)","v":{"$error":"#VALUE!"}},{"$f":"IF(K16=\"-\",'4_DataSlave'!$K$4*S16*-1,'4_DataSlave'!$K$4*S16)","v":{"$error":"#VALUE!"}},{"$error":"#VALUE!"},{"$error":"#VALUE!"},{"$error":"#VALUE!"},{"$error":"#VALUE!"},0,0,0,0,{"$error":"#VALUE!"},{"$error":"#VALUE!"},{"$error":"#VALUE!"},{"$error":"#VALUE!"},0,1,{"$error":"#VALUE!"},{"$error":"#VALUE!"},null,null,null,"Records","Records",0]
["Module 2 - MANAGEMENT","PEOPLE","Staff & Equipment","Surge capacity","Surge ","mp_surge",{"$f":"'3_WeightingAssistent'!AJ15","v":"+"},{"$f":"'3_WeightingAssistent'!AM15","v":2.0512820512820513E-2},{"$f":"'3_WeightingAssistent'!AO15","v":"-"},{"$f":"'3_WeightingAssistent'!AR15","v":3.3333333333333327E-3},{"$f":"'3_WeightingAssistent'!AT15","v":"+"},{"$f":"'3_WeightingAssistent'!AW15","v":3.4449760765550237E-2},{"$f":"IF(ISBLANK('1_Survey'!F27)=FALSE,IF('1_Survey'!F27=\"N/A\",10,IF('1_Survey'!F27=\"Zero\",0,IF('1_Survey'!F27=\"Zero-Low\",0.16,IF('1_Survey'!F27=\"Low\",0.33,IF('1_Survey'!F27=\"Low-Average\",0.45,IF('1_Survey'!F27=\"Average\",0.66,IF('1_Survey'!F27=\"Average-High\",0.82,1))))))),\"Not Filled\")","v":"Not Filled"},0,0,0,{"$error":"#DIV/0!"},{"$error":"#DIV/0!"},{"$error":"#DIV/0!"},0,1,null,{"$f":"IF(G17=\"-\",'4_DataSlave'!$K$2*Q17*-1,'4_DataSlave'!$K$2*Q17)","v":{"$error":"#VALUE!"}},{"$f":"IF(I17=\"-\",'4_DataSlave'!$K$3*R17*-1,'4_DataSlave'!$K$3*R17)","v":{"$error":"#VALUE!"}},{"$f":"IF(K17=\"-\",'4_DataSlave'!$K$4*S17*-1,'4_DataSlave'!$K$4*S17)","v":{"$error":"#VALUE!"}},{"$error":"#VALUE!"},{"$error":"#VALUE!"},{"$error":"#VALUE!"},{"$error":"#VALUE!"},0,0,0,0,{"$error":"#VALUE!"},{"$error":"#VALUE!"},{"$error":"#VALUE!"},{"$error":"#VALUE!"},0,1,{"$error":"#VALUE!"},{"$error":"#VALUE!"},null,null,null,"Surge ","Surge ",0]
["Module 2 - MANAGEMENT","PEOPLE","Staff & Equipment","Stock of medicines, instruments and other items  ","MedStock","mp_pharm",{"$f":"'3_WeightingAssistent'!AJ16","v":"+"},{"$f":"'3_WeightingAssistent'!AM16","v":2.0512820512820513E-2},{"$f":"'3_WeightingAssistent'!AO16","v":"-"},{"$f":"'3_WeightingAssistent'!AR16","v":3.3333333333333327E-3},{"$f":"'3_WeightingAssistent'!AT16","v":"+"},{"$f":"'3_WeightingAssistent'!AW16","v":2.066985645933014E-2},{"$f":"IF(ISBLANK('1_Survey'!F28)=FALSE,IF('1_Survey'!F28=\"N/A\",10,IF('1_Survey'!F28=\"Zero\",0,IF('1_Survey'!F28=\"Zero-Low\",0.16,IF('1_Survey'!F28=\"Low\",0.33,IF('1_Survey'!F28=\"Low-Average\",0.45,IF('1_Survey'!F28=\"Average\",0.66,IF('1_Survey'!F28=\"Average-High\",0.82,1))))))),\"Not Filled\")","v":"Not Filled"},0,0,0,{"$error":"#DIV/0!"},{"$error":"#DIV/0!"},{"$error":"#DIV/0!"},0,1,null,{"$f":"IF(G18=\"-\",'4_DataSlave'!$K$2*Q18*-1,'4_DataSlave'!$K$2*Q18)","v":{"$error":"#VALUE!"}},{"$f":"IF(I18=\"-\",'4_DataSlave'!$K$3*R18*-1,'4_DataSlave'!$K$3*R18)","v":{"$error":"#VALUE!"}},{"$f":"IF(K18=\"-\",'4_DataSlave'!$K$4*S18*-1,'4_DataSlave'!$K$4*S18)","v":{"$error":"#VALUE!"}},{"$error":"#VALUE!"},{"$error":"#VALUE!"},{"$error":"#VALUE!"},{"$error":"#VALUE!"},0,0,0,0,{"$error":"#VALUE!"},{"$error":"#VALUE!"},{"$error":"#VALUE!"},{"$error":"#VALUE!"},0,1,{"$error":"#VALUE!"},{"$error":"#VALUE!"},null,null,null,"MedStock","MedStock",0]
["Module 2 - MANAGEMENT","PEOPLE","Staff & Equipment","Storage of supplies","Storage ","mp_supps",{"$f":"'3_WeightingAssistent'!AJ17","v":"+"},{"$f":"'3_WeightingAssistent'!AM17","v":2.0512820512820513E-2},{"$f":"'3_WeightingAssistent'!AO17","v":"-"},{"$f":"'3_WeightingAssistent'!AR17","v":3.3333333333333327E-3},{"$f":"'3_WeightingAssistent'!AT17","v":"+"},{"$f":"'3_WeightingAssistent'!AW17","v":2.066985645933014E-2},{"$f":"IF(ISBLANK('1_Survey'!F29)=FALSE,IF('1_Survey'!F29=\"N/A\",10,IF('1_Survey'!F29=\"Zero\",0,IF('1_Survey'!F29=\"Zero-Low\",0.16,IF('1_Survey'!F29=\"Low\",0.33,IF('1_Survey'!F29=\"Low-Average\",0.45,IF('1_Survey'!F29=\"Average\",0.66,IF('1_Survey'!F29=\"Average-High\",0.82,1))))))),\"Not Filled\")","v":"Not Filled"},0,0,0,{"$error":"#DIV/0!"},{"$error":"#DIV/0!"},{"$error":"#DIV/0!"},0,1,null,{"$f":"IF(G19=\"-\",'4_DataSlave'!$K$2*Q19*-1,'4_DataSlave'!$K$2*Q19)","v":{"$error":"#VALUE!"}},{"$f":"IF(I19=\"-\",'4_DataSlave'!$K$3*R19*-1,'4_DataSlave'!$K$3*R19)","v":{"$error":"#VALUE!"}},{"$f":"IF(K19=\"-\",'4_DataSlave'!$K$4*S19*-1,'4_DataSlave'!$K$4*S19)","v":{"$error":"#VALUE!"}},{"$error":"#VALUE!"},{"$error":"#VALUE!"},{"$error":"#VALUE!"},{"$error":"#VALUE!"},0,0,0,0,{"$error":"#VALUE!"},{"$error":"#VALUE!"},{"$error":"#VALUE!"},{"$error":"#VALUE!"},0,1,{"$error":"#VALUE!"},{"$error":"#VALUE!"},null,null,null,"Storage ","Storage ",0]
["Module 2 - MANAGEMENT","RELOCATION","Re-Location","Suitability of new location ","Relocation ","rl_reloc",{"$f":"'3_WeightingAssistent'!AJ18","v":"+"},{"$f":"'3_WeightingAssistent'!AM18","v":9.9999999999999985E-3},{"$f":"'3_WeightingAssistent'!AO18","v":"+"},{"$f":"'3_WeightingAssistent'!AR18","v":0},{"$f":"'3_WeightingAssistent'!AT18","v":"+"},{"$f":"'3_WeightingAssistent'!AW18","v":0},{"$f":"IF(ISBLANK('1_Survey'!F31)=FALSE,IF('1_Survey'!F31=\"N/A\",10,IF('1_Survey'!F31=\"Zero\",0,IF('1_Survey'!F31=\"Zero-Low\",0.16,IF('1_Survey'!F31=\"Low\",0.33,IF('1_Survey'!F31=\"Low-Average\",0.45,IF('1_Survey'!F31=\"Average\",0.66,IF('1_Survey'!F27=\"Average-High\",0.82,1))))))),\"Not Filled\")","v":"Not Filled"},0,0,0,{"$error":"#DIV/0!"},{"$error":"#DIV/0!"},{"$error":"#DIV/0!"},0,0,null,{"$f":"IF(G20=\"-\",'4_DataSlave'!$K$2*Q20*-1,'4_DataSlave'!$K$2*Q20)","v":{"$error":"#VALUE!"}},{"$f":"IF(I20=\"-\",'4_DataSlave'!$K$3*R20*-1,'4_DataSlave'!$K$3*R20)","v":{"$error":"#VALUE!"}},{"$f":"IF(K20=\"-\",'4_DataSlave'!$K$4*S20*-1,'4_DataSlave'!$K$4*S20)","v":{"$error":"#VALUE!"}},{"$error":"#VALUE!"},{"$error":"#VALUE!"},{"$error":"#VALUE!"},{"$error":"#VALUE!"},0,0,0,0,{"$error":"#VALUE!"},{"$error":"#VALUE!"},{"$error":"#VALUE!"},{"$error":"#VALUE!"},0,1,{"$error":"#VALUE!"},{"$error":"#VALUE!"},null,null,null,"Relocation ","Relocation ",0]
["Module 2 - MANAGEMENT","RELOCATION","Re-Location","Evacuation","Reloc_Plan","rl_evac",{"$f":"'3_WeightingAssistent'!AJ19","v":"+"},{"$f":"'3_WeightingAssistent'!AM19","v":1.4999999999999999E-2},{"$f":"'3_WeightingAssistent'!AO19","v":"+"},{"$f":"'3_WeightingAssistent'!AR19","v":0},{"$f":"'3_WeightingAssistent'!AT19","v":"+"},{"$f":"'3_WeightingAssistent'!AW19","v":0},{"$f":"IF(ISBLANK('1_Survey'!F32)=FALSE,IF('1_Survey'!F32=\"N/A\",10,IF('1_Survey'!F32=\"Zero\",0,IF('1_Survey'!F32=\"Zero-Low\",0.16,IF('1_Survey'!F32=\"Low\",0.33,IF('1_Survey'!F32=\"Low-Average\",0.45,IF('1_Survey'!F32=\"Average\",0.66,IF('1_Survey'!F32=\"Average-High\",0.82,1))))))),\"Not Filled\")","v":"Not Filled"},0,0,0,{"$error":"#DIV/0!"},{"$error":"#DIV/0!"},{"$error":"#DIV/0!"},0,0,null,{"$f":"IF(G21=\"-\",'4_DataSlave'!$K$2*Q21*-1,'4_DataSlave'!$K$2*Q21)","v":{"$error":"#VALUE!"}},{"$f":"IF(I21=\"-\",'4_DataSlave'!$K$3*R21*-1,'4_DataSlave'!$K$3*R21)","v":{"$error":"#VALUE!"}},{"$f":"IF(K21=\"-\",'4_DataSlave'!$K$4*S21*-1,'4_DataSlave'!$K$4*S21)","v":{"$error":"#VALUE!"}},{"$error":"#VALUE!"},{"$error":"#VALUE!"},{"$error":"#VALUE!"},{"$error":"#VALUE!"},0,0,0,0,{"$error":"#VALUE!"},{"$error":"#VALUE!"},{"$error":"#VALUE!"},{"$error":"#VALUE!"},0,1,{"$error":"#VALUE!"},{"$error":"#VALUE!"},null,null,null,"Reloc_Plan","Reloc_Plan",0]
["Module 2 - MANAGEMENT","ACCESS","Access External","Access routes","Access ","ac_ac",{"$f":"'3_WeightingAssistent'!AJ20","v":"+"},{"$f":"'3_WeightingAssistent'!AM20","v":1.6666666666666666E-2},{"$f":"'3_WeightingAssistent'!AO20","v":"+"},{"$f":"'3_WeightingAssistent'!AR20","v":2.4999999999999998E-2},{"$f":"'3_WeightingAssistent'!AT20","v":"+"},{"$f":"'3_WeightingAssistent'!AW20","v":1.4999999999999999E-2},{"$f":"IF(ISBLANK('1_Survey'!F34)=FALSE,IF('1_Survey'!F34=\"N/A\",10,IF('1_Survey'!F34=\"Zero\",0,IF('1_Survey'!F34=\"Zero-Low\",0.16,IF('1_Survey'!F34=\"Low\",0.33,IF('1_Survey'!F34=\"Low-Average\",0.45,IF('1_Survey'!F34=\"Average\",0.66,IF('1_Survey'!F34=\"Average-High\",0.82,1))))))),\"Not Filled\")","v":"Not Filled"},0,0,0,{"$error":"#DIV/0!"},{"$error":"#DIV/0!"},{"$error":"#DIV/0!"},0,0,null,{"$f":"IF(G22=\"-\",'4_DataSlave'!$K$2*Q22*-1,'4_DataSlave'!$K$2*Q22)","v":{"$error":"#VALUE!"}},{"$f":"IF(I22=\"-\",'4_DataSlave'!$K$3*R22*-1,'4_DataSlave'!$K$3*R22)","v":{"$error":"#VALUE!"}},{"$f":"IF(K22=\"-\",'4_DataSlave'!$K$4*S22*-1,'4_DataSlave'!$K$4*S22)","v":{"$error":"#VALUE!"}},{"$error":"#VALUE!"},{"$error":"#VALUE!"},{"$error":"#VALUE!"},{"$error":"#VALUE!"},0,0,0,0,{"$error":"#VALUE!"},{"$error":"#VALUE!"},{"$error":"#VALUE!"},{"$error":"#VALUE!"},0,1,{"$error":"#VALUE!"},{"$error":"#VALUE!"},null,null,null,"Access ","Access ",0]
["Module 2 - MANAGEMENT","ACCESS","Access External","Access of HC personnel and ambulances","Ambulances","ac_ambln",{"$f":"'3_WeightingAssistent'!AJ21","v":"+"},{"$f":"'3_WeightingAssistent'!AM21","v":1.6666666666666666E-2},{"$f":"'3_WeightingAssistent'!AO21","v":"+"},{"$f":"'3_WeightingAssistent'!AR21","v":0},{"$f":"'3_WeightingAssistent'!AT21","v":"+"},{"$f":"'3_WeightingAssistent'!AW21","v":0.01},{"$f":"IF(ISBLANK('1_Survey'!F35)=FALSE,IF('1_Survey'!F35=\"N/A\",10,IF('1_Survey'!F35=\"Zero\",0,IF('1_Survey'!F35=\"Zero-Low\",0.16,IF('1_Survey'!F35=\"Low\",0.33,IF('1_Survey'!F35=\"Low-Average\",0.45,IF('1_Survey'!F35=\"Average\",0.66,IF('1_Survey'!F35=\"Average-High\",0.82,1))))))),\"Not Filled\")","v":"Not Filled"},0,0,0,{"$error":"#DIV/0!"},{"$error":"#DIV/0!"},{"$error":"#DIV/0!"},0,1,null,{"$f":"IF(G23=\"-\",'4_DataSlave'!$K$2*Q23*-1,'4_DataSlave'!$K$2*Q23)","v":{"$error":"#VALUE!"}},{"$f":"IF(I23=\"-\",'4_DataSlave'!$K$3*R23*-1,'4_DataSlave'!$K$3*R23)","v":{"$error":"#VALUE!"}},{"$f":"IF(K23=\"-\",'4_DataSlave'!$K$4*S23*-1,'4_DataSlave'!$K$4*S23)","v":{"$error":"#VALUE!"}},{"$error":"#VALUE!"},{"$error":"#VALUE!"},{"$error":"#VALUE!"},{"$error":"#VALUE!"},0,0,0,0,{"$error":"#VALUE!"},{"$error":"#VALUE!"},{"$error":"#VALUE!"},{"$error":"#VALUE!"},0,1,{"$error":"#VALUE!"},{"$error":"#VALUE!"},null,null,null,"Ambulances","Ambulances",0]
["Module 2 - MANAGEMENT","ACCESS","Access External","Secure supplier resources ","Supplier","ac_suppr",{"$f":"'3_WeightingAssistent'!AJ22","v":"+"},{"$f":"'3_WeightingAssistent'!AM22","v":1.6666666666666666E-2},{"$f":"'3_WeightingAssistent'!AO22","v":"+"},{"$f":"'3_WeightingAssistent'!AR22","v":0},{"$f":"'3_WeightingAssistent'!AT22","v":"+"},{"$f":"'3_WeightingAssistent'!AW22","v":5.0000000000000001E-3},{"$f":"IF(ISBLANK('1_Survey'!F36)=FALSE,IF('1_Survey'!F36=\"N/A\",10,IF('1_Survey'!F36=\"Zero\",0,IF('1_Survey'!F36=\"Zero-Low\",0.16,IF('1_Survey'!F36=\"Low\",0.33,IF('1_Survey'!F36=\"Low-Average\",0.45,IF('1_Survey'!F36=\"Average\",0.66,IF('1_Survey'!F36=\"Average-High\",0.82,1))))))),\"Not Filled\")","v":"Not Filled"},0,0,0,{"$error":"#DIV/0!"},{"$error":"#DIV/0!"},{"$error":"#DIV/0!"},0,1,null,{"$f":"IF(G24=\"-\",'4_DataSlave'!$K$2*Q24*-1,'4_DataSlave'!$K$2*Q24)","v":{"$error":"#VALUE!"}},{"$f":"IF(I24=\"-\",'4_DataSlave'!$K$3*R24*-1,'4_DataSlave'!$K$3*R24)","v":{"$error":"#VALUE!"}},{"$f":"IF(K24=\"-\",'4_DataSlave'!$K$4*S24*-1,'4_DataSlave'!$K$4*S24)","v":{"$error":"#VALUE!"}},{"$error":"#VALUE!"},{"$error":"#VALUE!"},{"$error":"#VALUE!"},{"$error":"#VALUE!"},0,0,0,0,{"$error":"#VALUE!"},{"$error":"#VALUE!"},{"$error":"#VALUE!"},{"$error":"#VALUE!"},0,1,{"$error":"#VALUE!"},{"$error":"#VALUE!"},null,null,null,"Supplier","Supplier",0]
["Module 3 - INFRASTRUCTURE","INFRASTRUCTURE","Managing Access and Control Entries","Lighting systems","Lighting ","mc_light",{"$f":"'3_WeightingAssistent'!AJ23","v":"+"},{"$f":"'3_WeightingAssistent'!AM23","v":1.2962962962962963E-2},{"$f":"'3_WeightingAssistent'!AO23","v":"+"},{"$f":"'3_WeightingAssistent'!AR23","v":9.1304347826086943E-2},{"$f":"'3_WeightingAssistent'!AT23","v":"+"},{"$f":"'3_WeightingAssistent'!AW23","v":3.8408779149519887E-2},{"$f":"IF(ISBLANK('1_Survey'!F38)=FALSE,IF('1_Survey'!F38=\"N/A\",10,IF('1_Survey'!F38=\"Zero\",0,IF('1_Survey'!F38=\"Zero-Low\",0.16,IF('1_Survey'!F38=\"Low\",0.33,IF('1_Survey'!F38=\"Low-Average\",0.45,IF('1_Survey'!F38=\"Average\",0.66,IF('1_Survey'!F38=\"Average-High\",0.82,1))))))),\"Not Filled\")","v":"Not Filled"},0,0,0,{"$error":"#DIV/0!"},{"$error":"#DIV/0!"},{"$error":"#DIV/0!"},0,0,null,{"$f":"IF(G25=\"-\",'4_DataSlave'!$K$2*Q25*-1,'4_DataSlave'!$K$2*Q25)","v":{"$error":"#VALUE!"}},{"$f":"IF(I25=\"-\",'4_DataSlave'!$K$3*R25*-1,'4_DataSlave'!$K$3*R25)","v":{"$error":"#VALUE!"}},{"$f":"IF(K25=\"-\",'4_DataSlave'!$K$4*S25*-1,'4_DataSlave'!$K$4*S25)","v":{"$error":"#VALUE!"}},{"$error":"#VALUE!"},{"$error":"#VALUE!"},{"$error":"#VALUE!"},{"$error":"#VALUE!"},0,0,0,0,{"$error":"#VALUE!"},{"$error":"#VALUE!"},{"$error":"#VALUE!"},{"$error":"#VALUE!"},0,1,{"$error":"#VALUE!"},{"$error":"#VALUE!"},null,null,null,"Lighting ","Lighting ",0]
["Module 3 - INFRASTRUCTURE","INFRASTRUCTURE","Managing Access and Control Entries","Safety of the perimeter fence ","Fence ","mc_fence",{"$f":"'3_WeightingAssistent'!AJ24","v":"+"},{"$f":"'3_WeightingAssistent'!AM24","v":6.4814814814814813E-3},{"$f":"'3_WeightingAssistent'!AO24","v":"+"},{"$f":"'3_WeightingAssistent'!AR24","v":9.1304347826086943E-2},{"$f":"'3_WeightingAssistent'!AT24","v":"+"},{"$f":"'3_WeightingAssistent'!AW24","v":7.6817558299039773E-2},{"$f":"IF(ISBLANK('1_Survey'!F39)=FALSE,IF('1_Survey'!F39=\"N/A\",10,IF('1_Survey'!F39=\"Zero\",0,IF('1_Survey'!F39=\"Zero-Low\",0.16,IF('1_Survey'!F39=\"Low\",0.33,IF('1_Survey'!F39=\"Low-Average\",0.45,IF('1_Survey'!F39=\"Average\",0.66,IF('1_Survey'!F39=\"Average-High\",0.82,1))))))),\"Not Filled\")","v":"Not Filled"},0,0,0,{"$error":"#DIV/0!"},{"$error":"#DIV/0!"},{"$error":"#DIV/0!"},0,0,null,{"$f":"IF(G26=\"-\",'4_DataSlave'!$K$2*Q26*-1,'4_DataSlave'!$K$2*Q26)","v":{"$error":"#VALUE!"}},{"$f":"IF(I26=\"-\",'4_DataSlave'!$K$3*R26*-1,'4_DataSlave'!$K$3*R26)","v":{"$error":"#VALUE!"}},{"$f":"IF(K26=\"-\",'4_DataSlave'!$K$4*S26*-1,'4_DataSlave'!$K$4*S26)","v":{"$error":"#VALUE!"}},{"$error":"#VALUE!"},{"$error":"#VALUE!"},{"$error":"#VALUE!"},{"$error":"#VALUE!"},0,0,0,0,{"$error":"#VALUE!"},{"$error":"#VALUE!"},{"$error":"#VALUE!"},{"$error":"#VALUE!"},0,1,{"$error":"#VALUE!"},{"$error":"#VALUE!"},null,null,null,"Fence ","Fence ",0]
["Module 3 - INFRASTRUCTURE","INFRASTRUCTURE","Managing Access and Control Entries","Gates and entrances","Gates","mc_gates",{"$f":"'3_WeightingAssistent'!AJ25","v":"+"},{"$f":"'3_WeightingAssistent'!AM25","v":6.4814814814814813E-3},{"$f":"'3_WeightingAssistent'!AO25","v":"+"},{"$f":"'3_WeightingAssistent'!AR25","v":9.1304347826086943E-2},{"$f":"'3_WeightingAssistent'!AT25","v":"+"},{"$f":"'3_WeightingAssistent'!AW25","v":5.761316872427983E-2},{"$f":"IF(ISBLANK('1_Survey'!F40)=FALSE,IF('1_Survey'!F40=\"N/A\",10,IF('1_Survey'!F40=\"Zero\",0,IF('1_Survey'!F40=\"Zero-Low\",0.16,IF('1_Survey'!F40=\"Low\",0.33,IF('1_Survey'!F40=\"Low-Average\",0.45,IF('1_Survey'!F40=\"Average\",0.66,IF('1_Survey'!F40=\"Average-High\",0.82,1))))))),\"Not Filled\")","v":"Not Filled"},0,0,0,{"$error":"#DIV/0!"},{"$error":"#DIV/0!"},{"$error":"#DIV/0!"},0,0,null,{"$f":"IF(G27=\"-\",'4_DataSlave'!$K$2*Q27*-1,'4_DataSlave'!$K$2*Q27)","v":{"$error":"#VALUE!"}},{"$f":"IF(I27=\"-\",'4_DataSlave'!$K$3*R27*-1,'4_DataSlave'!$K$3*R27)","v":{"$error":"#VALUE!"}},{"$f":"IF(K27=\"-\",'4_DataSlave'!$K$4*S27*-1,'4_DataSlave'!$K$4*S27)","v":{"$error":"#VALUE!"}},{"$error":"#VALUE!"},{"$error":"#VALUE!"},{"$error":"#VALUE!"},{"$error":"#VALUE!"},0,0,0,0,{"$error":"#VALUE!"},{"$error":"#VALUE!"},{"$error":"#VALUE!"},{"$error":"#VALUE!"},0,1,{"$error":"#VALUE!"},{"$error":"#VALUE!"},null,null,null,"Gates","Gates",0]
["Module 3 - INFRASTRUCTURE","INFRASTRUCTURE","Structure","Conditions","Condition","st_cond",{"$f":"'3_WeightingAssistent'!AJ26","v":"+"},{"$f":"'3_WeightingAssistent'!AM26","v":0},{"$f":"'3_WeightingAssistent'!AO26","v":"+"},{"$f":"'3_WeightingAssistent'!AR26","v":3.043478260869565E-2},{"$f":"'3_WeightingAssistent'!AT26","v":"-"},{"$f":"'3_WeightingAssistent'!AW26","v":8.6419753086419745E-3},{"$f":"IF(ISBLANK('1_Survey'!F42)=FALSE,IF('1_Survey'!F42=\"N/A\",10,IF('1_Survey'!F42=\"Zero\",0,IF('1_Survey'!F42=\"Zero-Low\",0.16,IF('1_Survey'!F42=\"Low\",0.33,IF('1_Survey'!F42=\"Low-Average\",0.45,IF('1_Survey'!F42=\"Average\",0.66,IF('1_Survey'!F42=\"Average-High\",0.82,1))))))),\"Not Filled\")","v":"Not Filled"},0,0,0,{"$error":"#DIV/0!"},{"$error":"#DIV/0!"},{"$error":"#DIV/0!"},0,0,null,{"$f":"IF(G28=\"-\",'4_DataSlave'!$K$2*Q28*-1,'4_DataSlave'!$K$2*Q28)","v":{"$error":"#VALUE!"}},{"$f":"IF(I28=\"-\",'4_DataSlave'!$K$3*R28*-1,'4_DataSlave'!$K$3*R28)","v":{"$error":"#VALUE!"}},{"$f":"IF(K28=\"-\",'4_DataSlave'!$K$4*S28*-1,'4_DataSlave'!$K$4*S28)","v":{"$error":"#VALUE!"}},{"$error":"#VALUE!"},{"$error":"#VALUE!"},{"$error":"#VALUE!"},{"$error":"#VALUE!"},0,0,0,0,{"$error":"#VALUE!"},{"$error":"#VALUE!"},{"$error":"#VALUE!"},{"$error":"#VALUE!"},0,1,{"$error":"#VALUE!"},{"$error":"#VALUE!"},null,null,null,"Condition","Condition",0]
["Module 3 - INFRASTRUCTURE","INFRASTRUCTURE","Structure","Structural Integrity","Integrity ","st_intgr",{"$f":"'3_WeightingAssistent'!AJ27","v":"+"},{"$f":"'3_WeightingAssistent'!AM27","v":5.1851851851851843E-2},{"$f":"'3_WeightingAssistent'!AO27","v":"+"},{"$f":"'3_WeightingAssistent'!AR27","v":0},{"$f":"'3_WeightingAssistent'!AT27","v":"+"},{"$f":"'3_WeightingAssistent'!AW27","v":0},{"$f":"IF(ISBLANK('1_Survey'!F43)=FALSE,IF('1_Survey'!F43=\"N/A\",10,IF('1_Survey'!F43=\"Zero\",0,IF('1_Survey'!F43=\"Zero-Low\",0.16,IF('1_Survey'!F43=\"Low\",0.33,IF('1_Survey'!F43=\"Low-Average\",0.45,IF('1_Survey'!F43=\"Average\",0.66,IF('1_Survey'!F43=\"Average-High\",0.82,1))))))),\"Not Filled\")","v":"Not Filled"},0,0,0,{"$error":"#DIV/0!"},{"$error":"#DIV/0!"},{"$error":"#DIV/0!"},0,0,null,{"$f":"IF(G29=\"-\",'4_DataSlave'!$K$2*Q29*-1,'4_DataSlave'!$K$2*Q29)","v":{"$error":"#VALUE!"}},{"$f":"IF(I29=\"-\",'4_DataSlave'!$K$3*R29*-1,'4_DataSlave'!$K$3*R29)","v":{"$error":"#VALUE!"}},{"$f":"IF(K29=\"-\",'4_DataSlave'!$K$4*S29*-1,'4_DataSlave'!$K$4*S29)","v":{"$error":"#VALUE!"}},{"$error":"#VALUE!"},{"$error":"#VALUE!"},{"$error":"#VALUE!"},{"$error":"#VALUE!"},0,0,0,0,{"$error":"#VALUE!"},{"$error":"#VALUE!"},{"$error":"#VALUE!"},{"$error":"#VALUE!"},0,1,{"$error":"#VALUE!"},{"$error":"#VALUE!"},null,null,null,"Integrity ","Integrity ",0]
["Module 3 - INFRASTRUCTURE","INFRASTRUCTURE","Structure","Structure Material ","Material","st_stmsr",{"$f":"'3_WeightingAssistent'!AJ28","v":"+"},{"$f":"'3_WeightingAssistent'!AM28","v":2.5925925925925922E-2},{"$f":"'3_WeightingAssistent'!AO28","v":"+"},{"$f":"'3_WeightingAssistent'!AR28","v":0},{"$f":"'3_WeightingAssistent'!AT28","v":"+"},{"$f":"'3_WeightingAssistent'!AW28","v":0},{"$f":"IF(ISBLANK('1_Survey'!F44)=FALSE,IF('1_Survey'!F44=\"N/A\",10,IF('1_Survey'!F44=\"Zero\",0,IF('1_Survey'!F44=\"Zero-Low\",0.16,IF('1_Survey'!F44=\"Low\",0.33,IF('1_Survey'!F44=\"Low-Average\",0.45,IF('1_Survey'!F44=\"Average\",0.66,IF('1_Survey'!F44=\"Average-High\",0.82,1))))))),\"Not Filled\")","v":"Not Filled"},0,0,0,{"$error":"#DIV/0!"},{"$error":"#DIV/0!"},{"$error":"#DIV/0!"},0,0,null,{"$f":"IF(G30=\"-\",'4_DataSlave'!$K$2*Q30*-1,'4_DataSlave'!$K$2*Q30)","v":{"$error":"#VALUE!"}},{"$f":"IF(I30=\"-\",'4_DataSlave'!$K$3*R30*-1,'4_DataSlave'!$K$3*R30)","v":{"$error":"#VALUE!"}},{"$f":"IF(K30=\"-\",'4_DataSlave'!$K$4*S30*-1,'4_DataSlave'!$K$4*S30)","v":{"$error":"#VALUE!"}},{"$error":"#VALUE!"},{"$error":"#VALUE!"},{"$error":"#VALUE!"},{"$error":"#VALUE!"},0,0,0,0,{"$error":"#VALUE!"},{"$error":"#VALUE!"},{"$error":"#VALUE!"},{"$error":"#VALUE!"},0,1,{"$error":"#VALUE!"},{"$error":"#VALUE!"},null,null,null,"Material","Material",0]
["Module 3 - INFRASTRUCTURE","INFRASTRUCTURE","Structure","Reinforce critical structure element","Passive_Sec ","st_mat",{"$f":"'3_WeightingAssistent'!AJ29","v":"+"},{"$f":"'3_WeightingAssistent'!AM29","v":7.7777777777777765E-2},{"$f":"'3_WeightingAssistent'!AO29","v":"+"},{"$f":"'3_WeightingAssistent'!AR29","v":3.043478260869565E-2},{"$f":"'3_WeightingAssistent'!AT29","v":"+"},{"$f":"'3_WeightingAssistent'!AW29","v":0},{"$f":"IF(ISBLANK('1_Survey'!F45)=FALSE,IF('1_Survey'!F45=\"N/A\",10,IF('1_Survey'!F45=\"Zero\",0,IF('1_Survey'!F45=\"Zero-Low\",0.16,IF('1_Survey'!F45=\"Low\",0.33,IF('1_Survey'!F45=\"Low-Average\",0.45,IF('1_Survey'!F45=\"Average\",0.66,IF('1_Survey'!F45=\"Average-High\",0.82,1))))))),\"Not Filled\")","v":"Not Filled"},0,0,0,{"$error":"#DIV/0!"},{"$error":"#DIV/0!"},{"$error":"#DIV/0!"},0,0,null,{"$f":"IF(G31=\"-\",'4_DataSlave'!$K$2*Q31*-1,'4_DataSlave'!$K$2*Q31)","v":{"$error":"#VALUE!"}},{"$f":"IF(I31=\"-\",'4_DataSlave'!$K$3*R31*-1,'4_DataSlave'!$K$3*R31)","v":{"$error":"#VALUE!"}},{"$f":"IF(K31=\"-\",'4_DataSlave'!$K$4*S31*-1,'4_DataSlave'!$K$4*S31)","v":{"$error":"#VALUE!"}},{"$error":"#VALUE!"},{"$error":"#VALUE!"},{"$error":"#VALUE!"},{"$error":"#VALUE!"},0,0,0,0,{"$error":"#VALUE!"},{"$error":"#VALUE!"},{"$error":"#VALUE!"},{"$error":"#VALUE!"},0,1,{"$error":"#VALUE!"},{"$error":"#VALUE!"},null,null,null,"Passive_Sec ","Passive_Sec ",0]
["Module 3 - INFRASTRUCTURE","INFRASTRUCTURE","Layout : space arrangements","Distribution operational priority areas","Priority areas ","ly_distr",{"$f":"'3_WeightingAssistent'!AJ30","v":"+"},{"$f":"'3_WeightingAssistent'!AM30","v":5.6565656565656569E-2},{"$f":"'3_WeightingAssistent'!AO30","v":"+"},{"$f":"'3_WeightingAssistent'!AR30","v":2.1739130434782612E-2},{"$f":"'3_WeightingAssistent'!AT30","v":"+"},{"$f":"'3_WeightingAssistent'!AW30","v":4.9382716049382713E-2},{"$f":"IF(ISBLANK('1_Survey'!F47)=FALSE,IF('1_Survey'!F47=\"N/A\",10,IF('1_Survey'!F47=\"Zero\",0,IF('1_Survey'!F47=\"Zero-Low\",0.16,IF('1_Survey'!F47=\"Low\",0.33,IF('1_Survey'!F47=\"Low-Average\",0.45,IF('1_Survey'!F47=\"Average\",0.66,IF('1_Survey'!F47=\"Average-High\",0.82,1))))))),\"Not Filled\")","v":"Not Filled"},0,0,0,{"$error":"#DIV/0!"},{"$error":"#DIV/0!"},{"$error":"#DIV/0!"},0,0,null,{"$f":"IF(G32=\"-\",'4_DataSlave'!$K$2*Q32*-1,'4_DataSlave'!$K$2*Q32)","v":{"$error":"#VALUE!"}},{"$f":"IF(I32=\"-\",'4_DataSlave'!$K$3*R32*-1,'4_DataSlave'!$K$3*R32)","v":{"$error":"#VALUE!"}},{"$f":"IF(K32=\"-\",'4_DataSlave'!$K$4*S32*-1,'4_DataSlave'!$K$4*S32)","v":{"$error":"#VALUE!"}},{"$error":"#VALUE!"},{"$error":"#VALUE!"},{"$error":"#VALUE!"},{"$error":"#VALUE!"},0,0,0,0,{"$error":"#VALUE!"},{"$error":"#VALUE!"},{"$error":"#VALUE!"},{"$error":"#VALUE!"},0,1,{"$error":"#VALUE!"},{"$error":"#VALUE!"},null,null,null,"Priority areas ","Priority areas ",0]
["Module 3 - INFRASTRUCTURE","INFRASTRUCTURE","Layout : space arrangements","Concentrated vs. Spread","Layout ","ly_spr",{"$f":"'3_WeightingAssistent'!AJ31","v":"-"},{"$f":"'3_WeightingAssistent'!AM31","v":0.11313131313131314},{"$f":"'3_WeightingAssistent'!AO31","v":"+"},{"$f":"'3_WeightingAssistent'!AR31","v":4.3478260869565223E-2},{"$f":"'3_WeightingAssistent'!AT31","v":"+"},{"$f":"'3_WeightingAssistent'!AW31","v":0},{"$f":"IF(ISBLANK('1_Survey'!F48)=FALSE,IF('1_Survey'!F48=\"N/A\",10,IF('1_Survey'!F48=\"Zero\",0,IF('1_Survey'!F48=\"Zero-Low\",0.16,IF('1_Survey'!F48=\"Low\",0.33,IF('1_Survey'!F48=\"Low-Average\",0.45,IF('1_Survey'!F48=\"Average\",0.66,IF('1_Survey'!F48=\"Average-High\",0.82,1))))))),\"Not Filled\")","v":"Not Filled"},0,0,0,{"$error":"#DIV/0!"},{"$error":"#DIV/0!"},{"$f":"IF($M33<>10,L33+$P$52,0)","v":{"$error":"#DIV/0!"}},1,0,null,{"$f":"IF(G33=\"-\",'4_DataSlave'!$K$2*Q33*-1,'4_DataSlave'!$K$2*Q33)","v":{"$error":"#VALUE!"}},{"$f":"IF(I33=\"-\",'4_DataSlave'!$K$3*R33*-1,'4_DataSlave'!$K$3*R33)","v":{"$error":"#VALUE!"}},{"$f":"IF(K33=\"-\",'4_DataSlave'!$K$4*S33*-1,'4_DataSlave'!$K$4*S33)","v":{"$error":"#VALUE!"}},0,{"$error":"#VALUE!"},{"$error":"#VALUE!"},{"$f":"SUM(Z33:AB33)","v":{"$error":"#VALUE!"}},0,0,0,0,{"$error":"#VALUE!"},{"$error":"#VALUE!"},{"$error":"#VALUE!"},{"$error":"#VALUE!"},0,1,{"$error":"#VALUE!"},{"$error":"#VALUE!"},null,null,null,"Layout ","Layout ",0]
["Module 3 - INFRASTRUCTURE","INFRASTRUCTURE","Layout : space arrangements","Existence of free space","Free space ","ly_brea",{"$f":"'3_WeightingAssistent'!AJ32","v":"+"},{"$f":"'3_WeightingAssistent'!AM32","v":3.7710437710437708E-2},{"$f":"'3_WeightingAssistent'!AO32","v":"+"},{"$f":"'3_WeightingAssistent'!AR32","v":0},{"$f":"'3_WeightingAssistent'!AT32","v":"+"},{"$f":"'3_WeightingAssistent'!AW32","v":9.8765432098765427E-2},{"$f":"IF(ISBLANK('1_Survey'!F49)=FALSE,IF('1_Survey'!F49=\"N/A\",10,IF('1_Survey'!F49=\"Zero\",0,IF('1_Survey'!F49=\"Zero-Low\",0.16,IF('1_Survey'!F49=\"Low\",0.33,IF('1_Survey'!F49=\"Low-Average\",0.45,IF('1_Survey'!F49=\"Average\",0.66,IF('1_Survey'!F49=\"Average-High\",0.82,1))))))),\"Not Filled\")","v":"Not Filled"},0,0,0,{"$error":"#DIV/0!"},{"$error":"#DIV/0!"},{"$error":"#DIV/0!"},0,0,null,{"$f":"IF(G34=\"-\",'4_DataSlave'!$K$2*Q34*-1,'4_DataSlave'!$K$2*Q34)","v":{"$error":"#VALUE!"}},{"$f":"IF(I34=\"-\",'4_DataSlave'!$K$3*R34*-1,'4_DataSlave'!$K$3*R34)","v":{"$error":"#VALUE!"}},{"$f":"IF(K34=\"-\",'4_DataSlave'!$K$4*S34*-1,'4_DataSlave'!$K$4*S34)","v":{"$error":"#VALUE!"}},{"$error":"#VALUE!"},{"$error":"#VALUE!"},{"$error":"#VALUE!"},{"$f":"SUM(Z34:AB34)","v":{"$error":"#VALUE!"}},0,0,0,0,{"$error":"#VALUE!"},{"$error":"#VALUE!"},{"$error":"#VALUE!"},{"$error":"#VALUE!"},0,1,{"$error":"#VALUE!"},{"$error":"#VALUE!"},null,null,null,"Free space ","Free space ",0]
["Module 3 - INFRASTRUCTURE","INFRASTRUCTURE","Layout : space arrangements","Location of  valuable assests","Valuable assets ","ly_valbl",{"$f":"'3_WeightingAssistent'!AJ33","v":"+"},{"$f":"'3_WeightingAssistent'!AM33","v":0},{"$f":"'3_WeightingAssistent'!AO33","v":"+"},{"$f":"'3_WeightingAssistent'!AR33","v":8.6956521739130446E-2},{"$f":"'3_WeightingAssistent'!AT33","v":"+"},{"$f":"'3_WeightingAssistent'!AW33","v":2.4691358024691357E-2},{"$f":"IF(ISBLANK('1_Survey'!F50)=FALSE,IF('1_Survey'!F50=\"N/A\",10,IF('1_Survey'!F50=\"Zero\",0,IF('1_Survey'!F50=\"Zero-Low\",0.16,IF('1_Survey'!F50=\"Low\",0.33,IF('1_Survey'!F50=\"Low-Average\",0.45,IF('1_Survey'!F50=\"Average\",0.66,IF('1_Survey'!F50=\"Average-High\",0.82,1))))))),\"Not Filled\")","v":"Not Filled"},0,0,0,{"$error":"#DIV/0!"},{"$error":"#DIV/0!"},{"$error":"#DIV/0!"},0,0,null,{"$f":"IF(G35=\"-\",'4_DataSlave'!$K$2*Q35*-1,'4_DataSlave'!$K$2*Q35)","v":{"$error":"#VALUE!"}},{"$f":"IF(I35=\"-\",'4_DataSlave'!$K$3*R35*-1,'4_DataSlave'!$K$3*R35)","v":{"$error":"#VALUE!"}},{"$f":"IF(K35=\"-\",'4_DataSlave'!$K$4*S35*-1,'4_DataSlave'!$K$4*S35)","v":{"$error":"#VALUE!"}},{"$error":"#VALUE!"},{"$error":"#VALUE!"},{"$error":"#VALUE!"},{"$error":"#VALUE!"},0,0,0,0,{"$error":"#VALUE!"},{"$error":"#VALUE!"},{"$error":"#VALUE!"},{"$error":"#VALUE!"},0,1,{"$error":"#VALUE!"},{"$error":"#VALUE!"},null,null,null,"Valuable assets ","Valuable assets ",0]
["Module 3 - INFRASTRUCTURE","INFRASTRUCTURE","Exposure to external threaths","Opening:  windows","Windows","xp_wndws",{"$f":"'3_WeightingAssistent'!AJ34","v":"+"},{"$f":"'3_WeightingAssistent'!AM34","v":2.5925925925925925E-2},{"$f":"'3_WeightingAssistent'!AO34","v":"+"},{"$f":"'3_WeightingAssistent'!AR34","v":5.4106280193236711E-2},{"$f":"'3_WeightingAssistent'!AT34","v":"+"},{"$f":"'3_WeightingAssistent'!AW34","v":7.2016460905349787E-3},{"$f":"IF(ISBLANK('1_Survey'!F52)=FALSE,IF('1_Survey'!F52=\"N/A\",10,IF('1_Survey'!F52=\"Zero\",0,IF('1_Survey'!F52=\"Zero-Low\",0.16,IF('1_Survey'!F52=\"Low\",0.33,IF('1_Survey'!F52=\"Low-Average\",0.45,IF('1_Survey'!F52=\"Average\",0.66,IF('1_Survey'!F52=\"Average-High\",0.82,1))))))),\"Not Filled\")","v":"Not Filled"},0,0,0,{"$error":"#DIV/0!"},{"$error":"#DIV/0!"},{"$error":"#DIV/0!"},0,0,null,{"$f":"IF(G36=\"-\",'4_DataSlave'!$K$2*Q36*-1,'4_DataSlave'!$K$2*Q36)","v":{"$error":"#VALUE!"}},{"$f":"IF(I36=\"-\",'4_DataSlave'!$K$3*R36*-1,'4_DataSlave'!$K$3*R36)","v":{"$error":"#VALUE!"}},{"$f":"IF(K36=\"-\",'4_DataSlave'!$K$4*S36*-1,'4_DataSlave'!$K$4*S36)","v":{"$error":"#VALUE!"}},{"$error":"#VALUE!"},{"$error":"#VALUE!"},{"$error":"#VALUE!"},{"$error":"#VALUE!"},0,0,0,0,{"$error":"#VALUE!"},{"$error":"#VALUE!"},{"$error":"#VALUE!"},{"$error":"#VALUE!"},0,1,{"$error":"#VALUE!"},{"$error":"#VALUE!"},null,null,null,"Windows","Windows",0]
["Module 3 - INFRASTRUCTURE","INFRASTRUCTURE","Exposure to external threaths","Opening: doors","Doors","xp_doors",{"$f":"'3_WeightingAssistent'!AJ35","v":"+"},{"$f":"'3_WeightingAssistent'!AM35","v":3.888888888888889E-2},{"$f":"'3_WeightingAssistent'!AO35","v":"+"},{"$f":"'3_WeightingAssistent'!AR35","v":2.7053140096618356E-2},{"$f":"'3_WeightingAssistent'!AT35","v":"+"},{"$f":"'3_WeightingAssistent'!AW35","v":1.4403292181069957E-2},{"$f":"IF(ISBLANK('1_Survey'!F53)=FALSE,IF('1_Survey'!F53=\"N/A\",10,IF('1_Survey'!F53=\"Zero\",0,IF('1_Survey'!F53=\"Zero-Low\",0.16,IF('1_Survey'!F53=\"Low\",0.33,IF('1_Survey'!F53=\"Low-Average\",0.45,IF('1_Survey'!F53=\"Average\",0.66,IF('1_Survey'!F53=\"Average-High\",0.82,1))))))),\"Not Filled\")","v":"Not Filled"},0,0,0,{"$error":"#DIV/0!"},{"$error":"#DIV/0!"},{"$error":"#DIV/0!"},0,0,null,{"$f":"IF(G37=\"-\",'4_DataSlave'!$K$2*Q37*-1,'4_DataSlave'!$K$2*Q37)","v":{"$error":"#VALUE!"}},{"$f":"IF(I37=\"-\",'4_DataSlave'!$K$3*R37*-1,'4_DataSlave'!$K$3*R37)","v":{"$error":"#VALUE!"}},{"$f":"IF(K37=\"-\",'4_DataSlave'!$K$4*S37*-1,'4_DataSlave'!$K$4*S37)","v":{"$error":"#VALUE!"}},{"$error":"#VALUE!"},{"$error":"#VALUE!"},{"$error":"#VALUE!"},{"$error":"#VALUE!"},0,0,0,0,{"$error":"#VALUE!"},{"$error":"#VALUE!"},{"$error":"#VALUE!"},{"$error":"#VALUE!"},0,1,{"$error":"#VALUE!"},{"$error":"#VALUE!"},null,null,null,"Doors","Doors",0]
["Module 3 - INFRASTRUCTURE","INFRASTRUCTURE","Exposure to external threaths","Opening exposure","Exposure ","xp_expsr",{"$f":"'3_WeightingAssistent'!AJ36","v":"+"},{"$f":"'3_WeightingAssistent'!AM36","v":1.2962962962962963E-2},{"$f":"'3_WeightingAssistent'!AO36","v":"+"},{"$f":"'3_WeightingAssistent'!AR36","v":2.7053140096618356E-2},{"$f":"'3_WeightingAssistent'!AT36","v":"+"},{"$f":"'3_WeightingAssistent'!AW36","v":1.4403292181069957E-2},{"$f":"IF(ISBLANK('1_Survey'!F54)=FALSE,IF('1_Survey'!F54=\"N/A\",10,IF('1_Survey'!F54=\"Zero\",0,IF('1_Survey'!F54=\"Zero-Low\",0.16,IF('1_Survey'!F54=\"Low\",0.33,IF('1_Survey'!F54=\"Low-Average\",0.45,IF('1_Survey'!F54=\"Average\",0.66,IF('1_Survey'!F54=\"Average-High\",0.82,1))))))),\"Not Filled\")","v":"Not Filled"},0,0,0,{"$error":"#DIV/0!"},{"$error":"#DIV/0!"},{"$error":"#DIV/0!"},0,0,null,{"$f":"IF(G38=\"-\",'4_DataSlave'!$K$2*Q38*-1,'4_DataSlave'!$K$2*Q38)","v":{"$error":"#VALUE!"}},{"$f":"IF(I38=\"-\",'4_DataSlave'!$K$3*R38*-1,'4_DataSlave'!$K$3*R38)","v":{"$error":"#VALUE!"}},{"$f":"IF(K38=\"-\",'4_DataSlave'!$K$4*S38*-1,'4_DataSlave'!$K$4*S38)","v":{"$error":"#VALUE!"}},{"$error":"#VALUE!"},{"$error":"#VALUE!"},{"$error":"#VALUE!"},{"$error":"#VALUE!"},0,0,0,0,{"$error":"#VALUE!"},{"$error":"#VALUE!"},{"$error":"#VALUE!"},{"$error":"#VALUE!"},0,1,{"$error":"#VALUE!"},{"$error":"#VALUE!"},null,null,null,"Exposure ","Exposure ",0]
["Module 3 - INFRASTRUCTURE","INFRASTRUCTURE","Exposure to external threaths","Standoff distance","Standoff ","xp_stnf",{"$f":"'3_WeightingAssistent'!AJ37","v":"+"},{"$f":"'3_WeightingAssistent'!AM37","v":2.5925925925925925E-2},{"$f":"'3_WeightingAssistent'!AO37","v":"+"},{"$f":"'3_WeightingAssistent'!AR37","v":0},{"$f":"'3_WeightingAssistent'!AT37","v":"+"},{"$f":"'3_WeightingAssistent'!AW37","v":0},{"$f":"IF(ISBLANK('1_Survey'!F55)=FALSE,IF('1_Survey'!F55=\"N/A\",10,IF('1_Survey'!F55=\"Zero\",0,IF('1_Survey'!F55=\"Zero-Low\",0.16,IF('1_Survey'!F55=\"Low\",0.33,IF('1_Survey'!F55=\"Low-Average\",0.45,IF('1_Survey'!F55=\"Average\",0.66,IF('1_Survey'!F55=\"Average-High\",0.82,1))))))),\"Not Filled\")","v":"Not Filled"},0,0,0,{"$error":"#DIV/0!"},{"$error":"#DIV/0!"},{"$error":"#DIV/0!"},0,0,null,{"$f":"IF(G39=\"-\",'4_DataSlave'!$K$2*Q39*-1,'4_DataSlave'!$K$2*Q39)","v":{"$error":"#VALUE!"}},{"$f":"IF(I39=\"-\",'4_DataSlave'!$K$3*R39*-1,'4_DataSlave'!$K$3*R39)","v":{"$error":"#VALUE!"}},{"$f":"IF(K39=\"-\",'4_DataSlave'!$K$4*S39*-1,'4_DataSlave'!$K$4*S39)","v":{"$error":"#VALUE!"}},{"$error":"#VALUE!"},{"$error":"#VALUE!"},{"$error":"#VALUE!"},{"$error":"#VALUE!"},0,0,0,0,{"$error":"#VALUE!"},{"$error":"#VALUE!"},{"$error":"#VALUE!"},{"$error":"#VALUE!"},0,1,{"$error":"#VALUE!"},{"$error":"#VALUE!"},null,null,null,"Standoff ","Standoff ",0]
["Module 3 - INFRASTRUCTURE","INFRASTRUCTURE","Exposure to external threaths","Internal fencing","Int_fence","xp_infnc",{"$f":"'3_WeightingAssistent'!AJ38","v":"+"},{"$f":"'3_WeightingAssistent'!AM38","v":0},{"$f":"'3_WeightingAssistent'!AO38","v":"+"},{"$f":"'3_WeightingAssistent'!AR38","v":1.3526570048309178E-2},{"$f":"'3_WeightingAssistent'!AT38","v":"+"},{"$f":"'3_WeightingAssistent'!AW38","v":7.2016460905349787E-3},{"$f":"IF(ISBLANK('1_Survey'!F56)=FALSE,IF('1_Survey'!F56=\"N/A\",10,IF('1_Survey'!F56=\"Zero\",0,IF('1_Survey'!F56=\"Zero-Low\",0.16,IF('1_Survey'!F56=\"Low\",0.33,IF('1_Survey'!F56=\"Low-Average\",0.45,IF('1_Survey'!F56=\"Average\",0.66,IF('1_Survey'!F56=\"Average-High\",0.82,1))))))),\"Not Filled\")","v":"Not Filled"},0,0,0,{"$error":"#DIV/0!"},{"$error":"#DIV/0!"},{"$error":"#DIV/0!"},0,0,null,{"$f":"IF(G40=\"-\",'4_DataSlave'!$K$2*Q40*-1,'4_DataSlave'!$K$2*Q40)","v":{"$error":"#VALUE!"}},{"$f":"IF(I40=\"-\",'4_DataSlave'!$K$3*R40*-1,'4_DataSlave'!$K$3*R40)","v":{"$error":"#VALUE!"}},{"$f":"IF(K40=\"-\",'4_DataSlave'!$K$4*S40*-1,'4_DataSlave'!$K$4*S40)","v":{"$error":"#VALUE!"}},{"$error":"#VALUE!"},{"$error":"#VALUE!"},{"$error":"#VALUE!"},{"$error":"#VALUE!"},0,0,0,0,{"$error":"#VALUE!"},{"$error":"#VALUE!"},{"$error":"#VALUE!"},{"$error":"#VALUE!"},0,1,{"$error":"#VALUE!"},{"$error":"#VALUE!"},null,null,null,"Int_fence","Int_fence",0]
["Module 3 - INFRASTRUCTURE","INFRASTRUCTURE","Internal Circulation","Safety of mouvements","Movement","ic_movs",{"$f":"'3_WeightingAssistent'!AJ39","v":"+"},{"$f":"'3_WeightingAssistent'!AM39","v":1.4814814814814814E-2},{"$f":"'3_WeightingAssistent'!AO39","v":"-"},{"$f":"'3_WeightingAssistent'!AR39","v":1.5217391304347825E-2},{"$f":"'3_WeightingAssistent'!AT39","v":"+"},{"$f":"'3_WeightingAssistent'!AW39","v":6.9135802469135796E-2},{"$f":"IF(ISBLANK('1_Survey'!F58)=FALSE,IF('1_Survey'!F58=\"N/A\",10,IF('1_Survey'!F58=\"Zero\",0,IF('1_Survey'!F58=\"Zero-Low\",0.16,IF('1_Survey'!F58=\"Low\",0.33,IF('1_Survey'!F58=\"Low-Average\",0.45,IF('1_Survey'!F58=\"Average\",0.66,IF('1_Survey'!F58=\"Average-High\",0.82,1))))))),\"Not Filled\")","v":"Not Filled"},0,0,0,{"$error":"#DIV/0!"},{"$error":"#DIV/0!"},{"$error":"#DIV/0!"},1,0,null,{"$f":"IF(G41=\"-\",'4_DataSlave'!$K$2*Q41*-1,'4_DataSlave'!$K$2*Q41)","v":{"$error":"#VALUE!"}},{"$f":"IF(I41=\"-\",'4_DataSlave'!$K$3*R41*-1,'4_DataSlave'!$K$3*R41)","v":{"$error":"#VALUE!"}},{"$f":"IF(K41=\"-\",'4_DataSlave'!$K$4*S41*-1,'4_DataSlave'!$K$4*S41)","v":{"$error":"#VALUE!"}},{"$error":"#VALUE!"},0,{"$error":"#VALUE!"},{"$error":"#VALUE!"},0,0,0,0,{"$error":"#VALUE!"},{"$error":"#VALUE!"},{"$error":"#VALUE!"},{"$error":"#VALUE!"},0,1,{"$error":"#VALUE!"},{"$error":"#VALUE!"},null,null,null,"Movement","Movement",0]
["Module 3 - INFRASTRUCTURE","INFRASTRUCTURE","Internal Circulation","Safety of stairways","Stairs","ic_stair",{"$f":"'3_WeightingAssistent'!AJ40","v":"+"},{"$f":"'3_WeightingAssistent'!AM40","v":1.4814814814814814E-2},{"$f":"'3_WeightingAssistent'!AO40","v":"+"},{"$f":"'3_WeightingAssistent'!AR40","v":0},{"$f":"'3_WeightingAssistent'!AT40","v":"+"},{"$f":"'3_WeightingAssistent'!AW40","v":3.4567901234567898E-2},{"$f":"IF(ISBLANK('1_Survey'!F59)=FALSE,IF('1_Survey'!F59=\"N/A\",10,IF('1_Survey'!F59=\"Zero\",0,IF('1_Survey'!F59=\"Zero-Low\",0.16,IF('1_Survey'!F59=\"Low\",0.33,IF('1_Survey'!F59=\"Low-Average\",0.45,IF('1_Survey'!F59=\"Average\",0.66,IF('1_Survey'!F59=\"Average-High\",0.82,1))))))),\"Not Filled\")","v":"Not Filled"},0,0,0,{"$error":"#DIV/0!"},{"$error":"#DIV/0!"},{"$error":"#DIV/0!"},0,0,null,{"$f":"IF(G42=\"-\",'4_DataSlave'!$K$2*Q42*-1,'4_DataSlave'!$K$2*Q42)","v":{"$error":"#VALUE!"}},{"$f":"IF(I42=\"-\",'4_DataSlave'!$K$3*R42*-1,'4_DataSlave'!$K$3*R42)","v":{"$error":"#VALUE!"}},{"$f":"IF(K42=\"-\",'4_DataSlave'!$K$4*S42*-1,'4_DataSlave'!$K$4*S42)","v":{"$error":"#VALUE!"}},{"$error":"#VALUE!"},{"$error":"#VALUE!"},{"$error":"#VALUE!"},{"$error":"#VALUE!"},0,0,0,0,{"$error":"#VALUE!"},{"$error":"#VALUE!"},{"$error":"#VALUE!"},{"$error":"#VALUE!"},0,1,{"$error":"#VALUE!"},{"$error":"#VALUE!"},null,null,null,"Stairs","Stairs",0]
["Module 3 - INFRASTRUCTURE","INFRASTRUCTURE","Internal Circulation","Safety of elevator system","Elevators","ic_elev",{"$f":"'3_WeightingAssistent'!AJ41","v":"+"},{"$f":"'3_WeightingAssistent'!AM41","v":7.4074074074074068E-3},{"$f":"'3_WeightingAssistent'!AO41","v":"+"},{"$f":"'3_WeightingAssistent'!AR41","v":0},{"$f":"'3_WeightingAssistent'!AT41","v":"+"},{"$f":"'3_WeightingAssistent'!AW41","v":3.4567901234567898E-2},{"$f":"IF(ISBLANK('1_Survey'!F60)=FALSE,IF('1_Survey'!F60=\"N/A\",10,IF('1_Survey'!F60=\"Zero\",0,IF('1_Survey'!F60=\"Zero-Low\",0.16,IF('1_Survey'!F60=\"Low\",0.33,IF('1_Survey'!F60=\"Low-Average\",0.45,IF('1_Survey'!F60=\"Average\",0.66,IF('1_Survey'!F60=\"Average-High\",0.82,1))))))),\"Not Filled\")","v":"Not Filled"},0,0,0,{"$error":"#DIV/0!"},{"$error":"#DIV/0!"},{"$error":"#DIV/0!"},0,0,null,{"$f":"IF(G43=\"-\",'4_DataSlave'!$K$2*Q43*-1,'4_DataSlave'!$K$2*Q43)","v":{"$error":"#VALUE!"}},{"$f":"IF(I43=\"-\",'4_DataSlave'!$K$3*R43*-1,'4_DataSlave'!$K$3*R43)","v":{"$error":"#VALUE!"}},{"$f":"IF(K43=\"-\",'4_DataSlave'!$K$4*S43*-1,'4_DataSlave'!$K$4*S43)","v":{"$error":"#VALUE!"}},{"$error":"#VALUE!"},{"$error":"#VALUE!"},{"$error":"#VALUE!"},{"$error":"#VALUE!"},0,0,0,0,{"$error":"#VALUE!"},{"$error":"#VALUE!"},{"$error":"#VALUE!"},{"$error":"#VALUE!"},0,1,{"$error":"#VALUE!"},{"$error":"#VALUE!"},null,null,null,"Elevators","Elevators",0]
["Module 3 - INFRASTRUCTURE","INFRASTRUCTURE","Internal Circulation","Evacuation routes","Evacuation ","ic_exits",{"$f":"'3_WeightingAssistent'!AJ42","v":"+"},{"$f":"'3_WeightingAssistent'!AM42","v":1.4814814814814814E-2},{"$f":"'3_WeightingAssistent'!AO42","v":"+"},{"$f":"'3_WeightingAssistent'!AR42","v":4.5652173913043478E-2},{"$f":"'3_WeightingAssistent'!AT42","v":"+"},{"$f":"'3_WeightingAssistent'!AW42","v":3.4567901234567898E-2},{"$f":"IF(ISBLANK('1_Survey'!F61)=FALSE,IF('1_Survey'!F61=\"N/A\",10,IF('1_Survey'!F61=\"Zero\",0,IF('1_Survey'!F61=\"Zero-Low\",0.16,IF('1_Survey'!F61=\"Low\",0.33,IF('1_Survey'!F61=\"Low-Average\",0.45,IF('1_Survey'!F61=\"Average\",0.66,IF('1_Survey'!F61=\"Average-High\",0.82,1))))))),\"Not Filled\")","v":"Not Filled"},0,0,0,{"$error":"#DIV/0!"},{"$error":"#DIV/0!"},{"$error":"#DIV/0!"},0,0,null,{"$f":"IF(G44=\"-\",'4_DataSlave'!$K$2*Q44*-1,'4_DataSlave'!$K$2*Q44)","v":{"$error":"#VALUE!"}},{"$f":"IF(I44=\"-\",'4_DataSlave'!$K$3*R44*-1,'4_DataSlave'!$K$3*R44)","v":{"$error":"#VALUE!"}},{"$f":"IF(K44=\"-\",'4_DataSlave'!$K$4*S44*-1,'4_DataSlave'!$K$4*S44)","v":{"$error":"#VALUE!"}},{"$error":"#VALUE!"},{"$error":"#VALUE!"},{"$error":"#VALUE!"},{"$error":"#VALUE!"},0,0,0,0,{"$error":"#VALUE!"},{"$error":"#VALUE!"},{"$error":"#VALUE!"},{"$error":"#VALUE!"},0,1,{"$error":"#VALUE!"},{"$error":"#VALUE!"},null,null,null,"Evacuation ","Evacuation ",0]
["Module 3 - INFRASTRUCTURE","INFRASTRUCTURE","Self-sufficiency","Safety of telecommmunication system","Telecom ","ss_tel",{"$f":"'3_WeightingAssistent'!AJ43","v":"+"},{"$f":"'3_WeightingAssistent'!AM43","v":3.1111111111111103E-2},{"$f":"'3_WeightingAssistent'!AO43","v":"+"},{"$f":"'3_WeightingAssistent'!AR43","v":3.043478260869565E-2},{"$f":"'3_WeightingAssistent'!AT43","v":"+"},{"$f":"'3_WeightingAssistent'!AW43","v":2.1604938271604937E-2},{"$f":"IF(ISBLANK('1_Survey'!F63)=FALSE,IF('1_Survey'!F63=\"N/A\",10,IF('1_Survey'!F63=\"Zero\",0,IF('1_Survey'!F63=\"Zero-Low\",0.16,IF('1_Survey'!F63=\"Low\",0.33,IF('1_Survey'!F63=\"Low-Average\",0.45,IF('1_Survey'!F63=\"Average\",0.66,IF('1_Survey'!F63=\"Average-High\",0.82,1))))))),\"Not Filled\")","v":"Not Filled"},0,0,0,{"$error":"#DIV/0!"},{"$error":"#DIV/0!"},{"$error":"#DIV/0!"},0,1,null,{"$f":"IF(G45=\"-\",'4_DataSlave'!$K$2*Q45*-1,'4_DataSlave'!$K$2*Q45)","v":{"$error":"#VALUE!"}},{"$f":"IF(I45=\"-\",'4_DataSlave'!$K$3*R45*-1,'4_DataSlave'!$K$3*R45)","v":{"$error":"#VALUE!"}},{"$f":"IF(K45=\"-\",'4_DataSlave'!$K$4*S45*-1,'4_DataSlave'!$K$4*S45)","v":{"$error":"#VALUE!"}},{"$error":"#VALUE!"},{"$error":"#VALUE!"},{"$error":"#VALUE!"},{"$error":"#VALUE!"},0,0,0,0,{"$error":"#VALUE!"},{"$error":"#VALUE!"},{"$error":"#VALUE!"},{"$error":"#VALUE!"},0,1,{"$error":"#VALUE!"},{"$error":"#VALUE!"},null,null,null,"Telecom ","Telecom ",0]
["Module 3 - INFRASTRUCTURE","INFRASTRUCTURE","Self-sufficiency","Safety of water  system  ","Water ","ss_water",{"$f":"'3_WeightingAssistent'!AJ44","v":"+"},{"$f":"'3_WeightingAssistent'!AM44","v":2.0740740740740737E-2},{"$f":"'3_WeightingAssistent'!AO44","v":"+"},{"$f":"'3_WeightingAssistent'!AR44","v":0},{"$f":"'3_WeightingAssistent'!AT44","v":"+"},{"$f":"'3_WeightingAssistent'!AW44","v":1.0802469135802469E-2},{"$f":"IF(ISBLANK('1_Survey'!F64)=FALSE,IF('1_Survey'!F64=\"N/A\",10,IF('1_Survey'!F64=\"Zero\",0,IF('1_Survey'!F64=\"Zero-Low\",0.16,IF('1_Survey'!F64=\"Low\",0.33,IF('1_Survey'!F64=\"Low-Average\",0.45,IF('1_Survey'!F64=\"Average\",0.66,IF('1_Survey'!F64=\"Average-High\",0.82,1))))))),\"Not Filled\")","v":"Not Filled"},0,0,0,{"$error":"#DIV/0!"},{"$error":"#DIV/0!"},{"$error":"#DIV/0!"},0,1,null,{"$f":"IF(G46=\"-\",'4_DataSlave'!$K$2*Q46*-1,'4_DataSlave'!$K$2*Q46)","v":{"$error":"#VALUE!"}},{"$f":"IF(I46=\"-\",'4_DataSlave'!$K$3*R46*-1,'4_DataSlave'!$K$3*R46)","v":{"$error":"#VALUE!"}},{"$f":"IF(K46=\"-\",'4_DataSlave'!$K$4*S46*-1,'4_DataSlave'!$K$4*S46)","v":{"$error":"#VALUE!"}},{"$error":"#VALUE!"},{"$error":"#VALUE!"},{"$error":"#VALUE!"},{"$error":"#VALUE!"},0,0,0,0,{"$error":"#VALUE!"},{"$error":"#VALUE!"},{"$error":"#VALUE!"},{"$error":"#VALUE!"},0,1,{"$error":"#VALUE!"},{"$error":"#VALUE!"},null,null,null,"Water ","Water ",0]
["Module 3 - INFRASTRUCTURE","INFRASTRUCTURE","Self-sufficiency","Safety of electrical system","Electrical  ","ss_elect",{"$f":"'3_WeightingAssistent'!AJ45","v":"+"},{"$f":"'3_WeightingAssistent'!AM45","v":4.1481481481481473E-2},{"$f":"'3_WeightingAssistent'!AO45","v":"+"},{"$f":"'3_WeightingAssistent'!AR45","v":0},{"$f":"'3_WeightingAssistent'!AT45","v":"+"},{"$f":"'3_WeightingAssistent'!AW45","v":3.2407407407407406E-2},{"$f":"IF(ISBLANK('1_Survey'!F65)=FALSE,IF('1_Survey'!F65=\"N/A\",10,IF('1_Survey'!F65=\"Zero\",0,IF('1_Survey'!F65=\"Zero-Low\",0.16,IF('1_Survey'!F65=\"Low\",0.33,IF('1_Survey'!F65=\"Low-Average\",0.45,IF('1_Survey'!F65=\"Average\",0.66,IF('1_Survey'!F65=\"Average-High\",0.82,1))))))),\"Not Filled\")","v":"Not Filled"},0,0,0,{"$error":"#DIV/0!"},{"$error":"#DIV/0!"},{"$error":"#DIV/0!"},0,1,null,{"$f":"IF(G47=\"-\",'4_DataSlave'!$K$2*Q47*-1,'4_DataSlave'!$K$2*Q47)","v":{"$error":"#VALUE!"}},{"$f":"IF(I47=\"-\",'4_DataSlave'!$K$3*R47*-1,'4_DataSlave'!$K$3*R47)","v":{"$error":"#VALUE!"}},{"$f":"IF(K47=\"-\",'4_DataSlave'!$K$4*S47*-1,'4_DataSlave'!$K$4*S47)","v":{"$error":"#VALUE!"}},{"$error":"#VALUE!"},{"$error":"#VALUE!"},{"$error":"#VALUE!"},{"$error":"#VALUE!"},0,0,0,0,{"$error":"#VALUE!"},{"$error":"#VALUE!"},{"$error":"#VALUE!"},{"$error":"#VALUE!"},0,1,{"$error":"#VALUE!"},{"$error":"#VALUE!"},null,null,null,"Electrical  ","Electrical  ",0]
["Module 3 - INFRASTRUCTURE","INFRASTRUCTURE","Self-sufficiency","Safe disposal of medical waste","Med_waste","ss_waste",{"$f":"'3_WeightingAssistent'!AJ46","v":"+"},{"$f":"'3_WeightingAssistent'!AM46","v":4.1481481481481473E-2},{"$f":"'3_WeightingAssistent'!AO46","v":"+"},{"$f":"'3_WeightingAssistent'!AR46","v":0},{"$f":"'3_WeightingAssistent'!AT46","v":"+"},{"$f":"'3_WeightingAssistent'!AW46","v":3.2407407407407406E-2},{"$f":"IF(ISBLANK('1_Survey'!F66)=FALSE,IF('1_Survey'!F66=\"N/A\",10,IF('1_Survey'!F66=\"Zero\",0,IF('1_Survey'!F66=\"Zero-Low\",0.16,IF('1_Survey'!F66=\"Low\",0.33,IF('1_Survey'!F66=\"Low-Average\",0.45,IF('1_Survey'!F66=\"Average\",0.66,IF('1_Survey'!F66=\"Average-High\",0.82,1))))))),\"Not Filled\")","v":"Not Filled"},0,0,0,{"$error":"#DIV/0!"},{"$error":"#DIV/0!"},{"$error":"#DIV/0!"},0,1,null,{"$f":"IF(G48=\"-\",'4_DataSlave'!$K$2*Q48*-1,'4_DataSlave'!$K$2*Q48)","v":{"$error":"#VALUE!"}},{"$f":"IF(I48=\"-\",'4_DataSlave'!$K$3*R48*-1,'4_DataSlave'!$K$3*R48)","v":{"$error":"#VALUE!"}},{"$f":"IF(K48=\"-\",'4_DataSlave'!$K$4*S48*-1,'4_DataSlave'!$K$4*S48)","v":{"$error":"#VALUE!"}},{"$error":"#VALUE!"},{"$error":"#VALUE!"},{"$error":"#VALUE!"},{"$error":"#VALUE!"},0,0,0,0,{"$error":"#VALUE!"},{"$error":"#VALUE!"},{"$error":"#VALUE!"},{"$error":"#VALUE!"},0,1,{"$error":"#VALUE!"},{"$error":"#VALUE!"},null,null,null,"Med_waste","Med_waste",0]
["Module 3 - INFRASTRUCTURE","INFRASTRUCTURE","Self-sufficiency","Safety of sewage disposal","Sewage ","ss_sewag",{"$f":"'3_WeightingAssistent'!AJ47","v":"+"},{"$f":"'3_WeightingAssistent'!AM47","v":1.0370370370370368E-2},{"$f":"'3_WeightingAssistent'!AO47","v":"+"},{"$f":"'3_WeightingAssistent'!AR47","v":0},{"$f":"'3_WeightingAssistent'!AT47","v":"+"},{"$f":"'3_WeightingAssistent'!AW47","v":1.0802469135802469E-2},{"$f":"IF(ISBLANK('1_Survey'!F67)=FALSE,IF('1_Survey'!F67=\"N/A\",10,IF('1_Survey'!F67=\"Zero\",0,IF('1_Survey'!F67=\"Zero-Low\",0.16,IF('1_Survey'!F67=\"Low\",0.33,IF('1_Survey'!F67=\"Low-Average\",0.45,IF('1_Survey'!F67=\"Average\",0.66,IF('1_Survey'!F67=\"Average-High\",0.82,1))))))),\"Not Filled\")","v":"Not Filled"},0,0,0,{"$error":"#DIV/0!"},{"$error":"#DIV/0!"},{"$error":"#DIV/0!"},0,1,null,{"$f":"IF(G49=\"-\",'4_DataSlave'!$K$2*Q49*-1,'4_DataSlave'!$K$2*Q49)","v":{"$error":"#VALUE!"}},{"$f":"IF(I49=\"-\",'4_DataSlave'!$K$3*R49*-1,'4_DataSlave'!$K$3*R49)","v":{"$error":"#VALUE!"}},{"$f":"IF(K49=\"-\",'4_DataSlave'!$K$4*S49*-1,'4_DataSlave'!$K$4*S49)","v":{"$error":"#VALUE!"}},{"$error":"#VALUE!"},{"$error":"#VALUE!"},{"$error":"#VALUE!"},{"$error":"#VALUE!"},0,0,0,0,{"$error":"#VALUE!"},{"$error":"#VALUE!"},{"$error":"#VALUE!"},{"$error":"#VALUE!"},0,1,{"$error":"#VALUE!"},{"$error":"#VALUE!"},null,null,null,"Sewage ","Sewage ",0]
["Module 3 - INFRASTRUCTURE","INFRASTRUCTURE","Self-sufficiency","Safety of dead body evacuation","Dead","ss_dead",{"$f":"'3_WeightingAssistent'!AJ48","v":"+"},{"$f":"'3_WeightingAssistent'!AM48","v":1.0370370370370368E-2},{"$f":"'3_WeightingAssistent'!AO48","v":"+"},{"$f":"'3_WeightingAssistent'!AR48","v":0},{"$f":"'3_WeightingAssistent'!AT48","v":"+"},{"$f":"'3_WeightingAssistent'!AW48","v":2.1604938271604937E-2},{"$f":"IF(ISBLANK('1_Survey'!F68)=FALSE,IF('1_Survey'!F68=\"N/A\",10,IF('1_Survey'!F68=\"Zero\",0,IF('1_Survey'!F68=\"Zero-Low\",0.16,IF('1_Survey'!F68=\"Low\",0.33,IF('1_Survey'!F68=\"Low-Average\",0.45,IF('1_Survey'!F68=\"Average\",0.66,IF('1_Survey'!F68=\"Average-High\",0.82,1))))))),\"Not Filled\")","v":"Not Filled"},0,0,0,{"$error":"#DIV/0!"},{"$error":"#DIV/0!"},{"$error":"#DIV/0!"},0,1,null,{"$f":"IF(G50=\"-\",'4_DataSlave'!$K$2*Q50*-1,'4_DataSlave'!$K$2*Q50)","v":{"$error":"#VALUE!"}},{"$f":"IF(I50=\"-\",'4_DataSlave'!$K$3*R50*-1,'4_DataSlave'!$K$3*R50)","v":{"$error":"#VALUE!"}},{"$f":"IF(K50=\"-\",'4_DataSlave'!$K$4*S50*-1,'4_DataSlave'!$K$4*S50)","v":{"$error":"#VALUE!"}},{"$error":"#VALUE!"},{"$error":"#VALUE!"},{"$error":"#VALUE!"},{"$error":"#VALUE!"},0,0,0,0,{"$error":"#VALUE!"},{"$error":"#VALUE!"},{"$error":"#VALUE!"},{"$error":"#VALUE!"},0,1,{"$error":"#VALUE!"},{"$error":"#VALUE!"},null,null,null,"Dead","Dead",0]
[null,null,null,null,null,null,null,{"$f":"SUM(H8:H50)","v":0.99999999999999978},null,{"$f":"SUM(J8:J50)","v":1},null,{"$f":"SUM(L8:L50)","v":0.99999999999999989},{"$f":"COUNT(M8:M50)-COUNTIF(M8:M50,\"=10\")","v":0},{"$f":"SUM(N8:N50)","v":0},0,0,{"$error":"#DIV/0!"},{"$error":"#DIV/0!"},{"$error":"#DIV/0!"},null,null,null,null,null,null,null,null,null,{"$f":"SUM(AC8:AC50)","v":{"$error":"#VALUE!"}},null,null,null,null,null,null,null,{"$f":"SUM(AK8:AK50)","v":{"$error":"#VALUE!"}},{"$f":"IF(AK51/AE54<0,0,AK51/AE54)","v":{"$error":"#VALUE!"}},{"$error":"#VALUE!"}]
[null,{"$f":"ISBLANK('1_Survey'!F41)","v":true},null,null,null,null,null,null,null,null,null,null,null,{"$f":"N51/$M$51","v":{"$error":"#DIV/0!"}},{"$f":"O51/$M$51","v":{"$error":"#DIV/0!"}},{"$f":"P51/$M$51","v":{"$error":"#DIV/0!"}},null,null,null,null,null,null,null,null,null,null,null,null,null,"Exp (int)",{"$f":"SUMIF(AD8:AF50,\"<0\")","v":0},null,null,null,null,null,null,"Preparedness: Overall"]
[null,null,null,null,null,null,null,null,null,null,null,null,null,null,null,null,null,null,null,null,null,null,null,null,null,null,null,null,null,"Exposure (ext)",{"$f":"SUMIF(AG8:AG50,\"<0\")","v":0}]
[null,null,null,null,null,null,null,null,null,null,null,null,null,null,null,null,null,null,null,null,null,null,null,null,null,null,null,null,null,"Vulnerability",{"$f":"AC51+AE53","v":{"$error":"#VALUE!"}},null,null,null,null,null,null,{"$f":"SUM(AH8:AH50)","v":{"$error":"#VALUE!"}},{"$f":"1-AL54","v":{"$error":"#VALUE!"}}]
[null,null,null,null,null,null,null,null,null,null,null,null,null,null,null,null,null,null,null,null,null,null,null,null,null,null,null,null,null,"Net Vulnerability",{"$f":"(AE54-AK51)*-1","v":{"$error":"#VALUE!"}},null,null,null,null,null,null,"Preparedness: Bombing"]
[null,null,null,null,null,null,null,null,null,null,null,null,null,null,null,null,null,null,null,null,null,null,null,null,null,null,null,null,null,"Tot vulnerability",{"$f":"-1*AE54","v":{"$error":"#VALUE!"}}]
[null,null,null,null,null,null,null,null,null,null,null,null,null,null,null,null,null,null,null,null,null,null,null,null,null,null,null,null,null,null,null,null,null,null,null,null,null,{"$f":"SUM(AI8:AI50)","v":{"$error":"#VALUE!"}},{"$f":"1-AL57","v":{"$error":"#VALUE!"}}]
[null,null,null,null,null,null,null,null,null,null,null,null,null,null,null,null,null,null,null,null,null,null,null,null,null,null,null,null,null,"Hazards: assessed likelihood",null,null,null,null,null,null,null,"Preparedness: Intrusion"]
[]
[null,null,null,null,null,null,null,null,null,null,null,null,null,null,null,null,null,null,null,null,null,null,null,null,null,null,null,null,null,{"$f":"E2","v":"Bombing"},{"$f":"$K2","v":{"$error":"#VALUE!"}},null,null,null,null,null,null,{"$f":"SUM(AJ8:AJ50)","v":{"$error":"#VALUE!"}},{"$f":"1-AL60","v":{"$error":"#VALUE!"}}]
["No N/a","Low","Average","High","Zero",null,null,null,null,null,null,null,null,null,null,null,null,null,null,null,null,null,null,null,null,null,null,null,null,{"$f":"E3","v":"Intrusion"},{"$f":"$K3","v":{"$error":"#VALUE!"}},null,null,null,null,null,null,"Preparedness: MIW"]
["No Zero","Low","Average","High","N/A",null,null,null,null,null,null,null,null,null,null,null,null,null,null,null,null,null,null,null,null,null,null,null,null,{"$f":"E4","v":"MIP"},{"$f":"$K4","v":{"$error":"#VALUE!"}}]
["No Zero or N/A","Low","Average","High"]
["All","Low","Average","High","Zero","N/A",null,null,null,null,null,null,null,null,null,null,null,null,null,null,null,null,null,null,null,null,null,null,null,null,"Management",null,"Infrastructure"]
["Spread","Spread layout (campus like)","Medium concentrated layout","Concentrated layout",null,null,null,null,null,null,null,null,null,null,null,null,null,null,null,null,null,null,null,null,null,null,null,null,null,"Preparedness Domain",{"$f":"IF(SUM(AK8:AK24)/SUM($AC$8:$AC$24)<0,0,SUM(AK8:AK24)/SUM($AC$8:$AC$24))","v":{"$error":"#VALUE!"}},null,{"$f":"IF(SUM($AK$25:$AK$50)/SUM($AC$25:$AC$50)<0,0,SUM($AK$25:$AK$50)/SUM($AC$25:$AC$50))","v":{"$error":"#VALUE!"}}]
["No N/a","Zero","Zero-Low","Low","Low-Average","Average","Average-High","High"]
["No Zero","Low","Low-Average","Average","Average-High","High","N/A",null,null,null,null,null,null,null,null,null,null,null,null,null,null,null,null,null,null,null,null,null,null,"Exposure vs. Hazards level",null,null,"Exposure","Hazard level"]
["No Zero or N/A","Low","Low-Average","Average","Average-High","High",null,null,null,null,null,null,null,null,null,null,null,null,null,null,null,null,null,null,null,null,null,null,null,"Context related",null,null,{"$f":"SUM(AG71:AG73)/3","v":{"$error":"#VALUE!"}},{"$f":"SUM($AG$75:$AG$77)/3","v":0}]
["All","Zero","Zero-Low","Low","Low-Average","Average","Average-High","High","N/A"]
[null,null,null,null,null,null,null,null,null,null,null,null,null,null,null,null,null,null,null,null,null,null,null,null,null,null,null,null,null,"Exposure Thresholds"]
[null,null,null,null,null,null,null,null,null,null,null,null,null,null,null,null,null,null,null,null,null,null,null,null,null,null,null,null,null,"Avg-High",0.95,{"$f":"IF($AE$54>=$AE$71,($AE$54-$AE$71)/(1-$AE$71),0)","v":{"$error":"#VALUE!"}},{"$f":"IF($AE$54>=$AE$71,2+$AF$71,0)","v":{"$error":"#VALUE!"}}]
[null,null,null,null,null,null,null,null,null,null,null,null,null,null,null,null,null,null,null,null,null,null,null,null,null,null,null,null,null,"Low-Avg",0.85,{"$f":"IF(AND($AE$54>=$AE$72,$AE$54<$AE$71),($AE$54-$AE$72)/($AE$71-$AE$72),0)","v":{"$error":"#VALUE!"}},{"$f":"IF(AF72<>0,1+$AF$72,0)","v":{"$error":"#VALUE!"}}]
[null,null,null,null,null,null,null,null,null,null,null,null,null,null,null,null,null,null,null,null,null,null,null,null,null,null,null,null,null,null,null,{"$f":"IF($AE$54<$AE$72,$AE$54/$AE$72,0)","v":{"$error":"#VALUE!"}},{"$f":"IF(AF73<>0,$AF$73,0)","v":{"$error":"#VALUE!"}}]
[null,null,null,null,null,null,null,null,null,null,null,null,null,null,null,null,null,null,null,null,null,null,null,null,null,null,"Abs Hazard Level",null,null,"Hazards Level Thresholds"]
[null,null,null,null,null,null,null,null,null,null,null,null,null,null,null,null,null,null,null,null,null,null,null,null,null,null,{"$f":"SUM($V$2:$V$4)","v":0},null,null,"Avg-High",6,null,{"$f":"IF($AA$75>=$AE$75,2+($AA$75-$AE$75)/3,0)","v":0}]
[null,null,null,null,null,null,null,null,null,null,null,null,null,null,null,null,null,null,null,null,null,null,null,null,null,null,null,null,null,"Low-Avg",2,null,{"$f":"IF(AND($AA$75<$AE$75,$AA$75>=$AE$76),1+($AA$75-$AE$76)/($AE$75-$AE$76),0)","v":0}]
[null,null,null,null,null,null,null,null,null,null,null,null,null,null,null,null,null,null,null,null,null,null,null,null,null,null,null,null,null,null,null,null,{"$f":"IF($AA$75<$AE$76,$AA$75/$AE$76,0)","v":0}]